Organisation Name,Organisation Code,Unique Ref No,Effective Date,Directorate, Supplier Name ,Payment Date,Net Amount,Purpose of Spend,"Procurement Classification
(Higher Level)","Procurement Classification
(Lower Level)","CAPITAL / 
REVENUE"
Walsall Council,http://opendatacommunities.org/id/metropolitan-district-council/walsall ,WC162-1,31.05.24,CHILDRENS,247 CARS (WILLENHALL) LIMITED,21/05/2024,"2,437.00",6241-Hire of Vehicle with Driver,TRANSPORT,DIRECT TRANSPORT COSTS,REVENUE
Walsall Council,http://opendatacommunities.org/id/metropolitan-district-council/walsall ,WC162-2,31.05.24,CHILDRENS,247 CARS (WILLENHALL) LIMITED,21/05/2024,"2,272.00",6241-Hire of Vehicle with Driver,TRANSPORT,DIRECT TRANSPORT COSTS,REVENUE
Walsall Council,http://opendatacommunities.org/id/metropolitan-district-council/walsall ,WC162-3,31.05.24,CHILDRENS,247 CARS (WILLENHALL) LIMITED,21/05/2024,"2,272.00",6241-Hire of Vehicle with Driver,TRANSPORT,DIRECT TRANSPORT COSTS,REVENUE
Walsall Council,http://opendatacommunities.org/id/metropolitan-district-council/walsall ,WC162-4,31.05.24,CHILDRENS,247 CARS (WILLENHALL) LIMITED,21/05/2024,"2,272.00",6241-Hire of Vehicle with Driver,TRANSPORT,DIRECT TRANSPORT COSTS,REVENUE
Walsall Council,http://opendatacommunities.org/id/metropolitan-district-council/walsall ,WC162-5,31.05.24,CHILDRENS,247 CARS (WILLENHALL) LIMITED,21/05/2024,"1,601.60",6241-Hire of Vehicle with Driver,TRANSPORT,DIRECT TRANSPORT COSTS,REVENUE
Walsall Council,http://opendatacommunities.org/id/metropolitan-district-council/walsall ,WC162-6,31.05.24,CHILDRENS,247 CARS (WILLENHALL) LIMITED,21/05/2024,961.20,6241-Hire of Vehicle with Driver,TRANSPORT,DIRECT TRANSPORT COSTS,REVENUE
Walsall Council,http://opendatacommunities.org/id/metropolitan-district-council/walsall ,WC162-7,31.05.24,CHILDRENS,247 CARS (WILLENHALL) LIMITED,21/05/2024,"3,876.00",6241-Hire of Vehicle with Driver,TRANSPORT,DIRECT TRANSPORT COSTS,REVENUE
Walsall Council,http://opendatacommunities.org/id/metropolitan-district-council/walsall ,WC162-8,31.05.24,CHILDRENS,247 CARS (WILLENHALL) LIMITED,21/05/2024,"2,554.00",6241-Hire of Vehicle with Driver,TRANSPORT,DIRECT TRANSPORT COSTS,REVENUE
Walsall Council,http://opendatacommunities.org/id/metropolitan-district-council/walsall ,WC162-9,31.05.24,CHILDRENS,247 CARS (WILLENHALL) LIMITED,21/05/2024,"1,330.00",6241-Hire of Vehicle with Driver,TRANSPORT,DIRECT TRANSPORT COSTS,REVENUE
Walsall Council,http://opendatacommunities.org/id/metropolitan-district-council/walsall ,WC162-10,31.05.24,CHILDRENS,247 CARS (WILLENHALL) LIMITED,21/05/2024,"2,272.00",6241-Hire of Vehicle with Driver,TRANSPORT,DIRECT TRANSPORT COSTS,REVENUE
Walsall Council,http://opendatacommunities.org/id/metropolitan-district-council/walsall ,WC162-11,31.05.24,CHILDRENS,247 CARS (WILLENHALL) LIMITED,21/05/2024,"2,272.00",6241-Hire of Vehicle with Driver,TRANSPORT,DIRECT TRANSPORT COSTS,REVENUE
Walsall Council,http://opendatacommunities.org/id/metropolitan-district-council/walsall ,WC162-12,31.05.24,CHILDRENS,247 CARS (WILLENHALL) LIMITED,21/05/2024,"2,272.00",6241-Hire of Vehicle with Driver,TRANSPORT,DIRECT TRANSPORT COSTS,REVENUE
Walsall Council,http://opendatacommunities.org/id/metropolitan-district-council/walsall ,WC162-13,31.05.24,CHILDRENS,247 CARS (WILLENHALL) LIMITED,21/05/2024,"2,272.00",6241-Hire of Vehicle with Driver,TRANSPORT,DIRECT TRANSPORT COSTS,REVENUE
Walsall Council,http://opendatacommunities.org/id/metropolitan-district-council/walsall ,WC162-14,31.05.24,CHILDRENS,247 CARS (WILLENHALL) LIMITED,21/05/2024,"1,600.00",6241-Hire of Vehicle with Driver,TRANSPORT,DIRECT TRANSPORT COSTS,REVENUE
Walsall Council,http://opendatacommunities.org/id/metropolitan-district-council/walsall ,WC162-15,31.05.24,CHILDRENS,247 CARS (WILLENHALL) LIMITED,21/05/2024,"1,757.50",6241-Hire of Vehicle with Driver,TRANSPORT,DIRECT TRANSPORT COSTS,REVENUE
Walsall Council,http://opendatacommunities.org/id/metropolitan-district-council/walsall ,WC162-16,31.05.24,CHILDRENS,247 CARS (WILLENHALL) LIMITED,21/05/2024,"2,272.00",6241-Hire of Vehicle with Driver,TRANSPORT,DIRECT TRANSPORT COSTS,REVENUE
Walsall Council,http://opendatacommunities.org/id/metropolitan-district-council/walsall ,WC162-17,31.05.24,CHILDRENS,247 CARS (WILLENHALL) LIMITED,21/05/2024,"2,114.60",6241-Hire of Vehicle with Driver,TRANSPORT,DIRECT TRANSPORT COSTS,REVENUE
Walsall Council,http://opendatacommunities.org/id/metropolitan-district-council/walsall ,WC162-18,31.05.24,CHILDRENS,247 CARS (WILLENHALL) LIMITED,21/05/2024,"1,892.00",6241-Hire of Vehicle with Driver,TRANSPORT,DIRECT TRANSPORT COSTS,REVENUE
Walsall Council,http://opendatacommunities.org/id/metropolitan-district-council/walsall ,WC162-19,31.05.24,CHILDRENS,247 CARS (WILLENHALL) LIMITED,21/05/2024,"2,191.60",6241-Hire of Vehicle with Driver,TRANSPORT,DIRECT TRANSPORT COSTS,REVENUE
Walsall Council,http://opendatacommunities.org/id/metropolitan-district-council/walsall ,WC162-20,31.05.24,CHILDRENS,247 CARS (WILLENHALL) LIMITED,21/05/2024,"2,532.60",6241-Hire of Vehicle with Driver,TRANSPORT,DIRECT TRANSPORT COSTS,REVENUE
Walsall Council,http://opendatacommunities.org/id/metropolitan-district-council/walsall ,WC162-21,31.05.24,CHILDRENS,247 CARS (WILLENHALL) LIMITED,21/05/2024,"1,691.00",6241-Hire of Vehicle with Driver,TRANSPORT,DIRECT TRANSPORT COSTS,REVENUE
Walsall Council,http://opendatacommunities.org/id/metropolitan-district-council/walsall ,WC162-22,31.05.24,CHILDRENS,247 CARS (WILLENHALL) LIMITED,21/05/2024,"2,877.17",6241-Hire of Vehicle with Driver,TRANSPORT,DIRECT TRANSPORT COSTS,REVENUE
Walsall Council,http://opendatacommunities.org/id/metropolitan-district-council/walsall ,WC162-23,31.05.24,CHILDRENS,247 CARS (WILLENHALL) LIMITED,21/05/2024,"1,727.00",6241-Hire of Vehicle with Driver,TRANSPORT,DIRECT TRANSPORT COSTS,REVENUE
Walsall Council,http://opendatacommunities.org/id/metropolitan-district-council/walsall ,WC162-24,31.05.24,CHILDRENS,247 CARS (WILLENHALL) LIMITED,21/05/2024,"1,298.25",6241-Hire of Vehicle with Driver,TRANSPORT,DIRECT TRANSPORT COSTS,REVENUE
Walsall Council,http://opendatacommunities.org/id/metropolitan-district-council/walsall ,WC162-25,31.05.24,CHILDRENS,247 CARS (WILLENHALL) LIMITED,21/05/2024,"2,602.60",6241-Hire of Vehicle with Driver,TRANSPORT,DIRECT TRANSPORT COSTS,REVENUE
Walsall Council,http://opendatacommunities.org/id/metropolitan-district-council/walsall ,WC162-26,31.05.24,CHILDRENS,247 CARS (WILLENHALL) LIMITED,21/05/2024,"2,822.00",6241-Hire of Vehicle with Driver,TRANSPORT,DIRECT TRANSPORT COSTS,REVENUE
Walsall Council,http://opendatacommunities.org/id/metropolitan-district-council/walsall ,WC162-27,31.05.24,CHILDRENS,247 CARS (WILLENHALL) LIMITED,21/05/2024,"1,777.00",6241-Hire of Vehicle with Driver,TRANSPORT,DIRECT TRANSPORT COSTS,REVENUE
Walsall Council,http://opendatacommunities.org/id/metropolitan-district-council/walsall ,WC162-28,31.05.24,CHILDRENS,247 CARS (WILLENHALL) LIMITED,21/05/2024,"1,688.15",6241-Hire of Vehicle with Driver,TRANSPORT,DIRECT TRANSPORT COSTS,REVENUE
Walsall Council,http://opendatacommunities.org/id/metropolitan-district-council/walsall ,WC162-29,31.05.24,CHILDRENS,247 CARS (WILLENHALL) LIMITED,21/05/2024,"1,600.00",6241-Hire of Vehicle with Driver,TRANSPORT,DIRECT TRANSPORT COSTS,REVENUE
Walsall Council,http://opendatacommunities.org/id/metropolitan-district-council/walsall ,WC162-30,31.05.24,CHILDRENS,247 CARS (WILLENHALL) LIMITED,21/05/2024,"1,757.50",6241-Hire of Vehicle with Driver,TRANSPORT,DIRECT TRANSPORT COSTS,REVENUE
Walsall Council,http://opendatacommunities.org/id/metropolitan-district-council/walsall ,WC162-31,31.05.24,CHILDRENS,247 CARS (WILLENHALL) LIMITED,21/05/2024,"1,757.50",6241-Hire of Vehicle with Driver,TRANSPORT,DIRECT TRANSPORT COSTS,REVENUE
Walsall Council,http://opendatacommunities.org/id/metropolitan-district-council/walsall ,WC162-32,31.05.24,CHILDRENS,247 CARS (WILLENHALL) LIMITED,21/05/2024,"2,272.00",6241-Hire of Vehicle with Driver,TRANSPORT,DIRECT TRANSPORT COSTS,REVENUE
Walsall Council,http://opendatacommunities.org/id/metropolitan-district-council/walsall ,WC162-33,31.05.24,CHILDRENS,247 CARS (WILLENHALL) LIMITED,21/05/2024,"2,400.00",6241-Hire of Vehicle with Driver,TRANSPORT,DIRECT TRANSPORT COSTS,REVENUE
Walsall Council,http://opendatacommunities.org/id/metropolitan-district-council/walsall ,WC162-34,31.05.24,CHILDRENS,247 CARS (WILLENHALL) LIMITED,21/05/2024,"2,400.60",6241-Hire of Vehicle with Driver,TRANSPORT,DIRECT TRANSPORT COSTS,REVENUE
Walsall Council,http://opendatacommunities.org/id/metropolitan-district-council/walsall ,WC162-35,31.05.24,CHILDRENS,247 CARS (WILLENHALL) LIMITED,21/05/2024,"3,316.60",6241-Hire of Vehicle with Driver,TRANSPORT,DIRECT TRANSPORT COSTS,REVENUE
Walsall Council,http://opendatacommunities.org/id/metropolitan-district-council/walsall ,WC162-36,31.05.24,CHILDRENS,247 CARS (WILLENHALL) LIMITED,21/05/2024,"3,621.40",6241-Hire of Vehicle with Driver,TRANSPORT,DIRECT TRANSPORT COSTS,REVENUE
Walsall Council,http://opendatacommunities.org/id/metropolitan-district-council/walsall ,WC162-37,31.05.24,CHILDRENS,247 CARS (WILLENHALL) LIMITED,21/05/2024,"2,498.00",6241-Hire of Vehicle with Driver,TRANSPORT,DIRECT TRANSPORT COSTS,REVENUE
Walsall Council,http://opendatacommunities.org/id/metropolitan-district-council/walsall ,WC162-38,31.05.24,CHILDRENS,247 CARS (WILLENHALL) LIMITED,21/05/2024,"1,914.44",6241-Hire of Vehicle with Driver,TRANSPORT,DIRECT TRANSPORT COSTS,REVENUE
Walsall Council,http://opendatacommunities.org/id/metropolitan-district-council/walsall ,WC162-39,31.05.24,CHILDRENS,247 CARS (WILLENHALL) LIMITED,21/05/2024,316.50,6241-Hire of Vehicle with Driver,TRANSPORT,DIRECT TRANSPORT COSTS,REVENUE
Walsall Council,http://opendatacommunities.org/id/metropolitan-district-council/walsall ,WC162-40,31.05.24,CHILDRENS,247 CARS (WILLENHALL) LIMITED,21/05/2024,"2,272.00",6241-Hire of Vehicle with Driver,TRANSPORT,DIRECT TRANSPORT COSTS,REVENUE
Walsall Council,http://opendatacommunities.org/id/metropolitan-district-council/walsall ,WC162-41,31.05.24,CHILDRENS,247 CARS (WILLENHALL) LIMITED,21/05/2024,"2,140.00",6241-Hire of Vehicle with Driver,TRANSPORT,DIRECT TRANSPORT COSTS,REVENUE
Walsall Council,http://opendatacommunities.org/id/metropolitan-district-council/walsall ,WC162-42,31.05.24,CHILDRENS,247 CARS (WILLENHALL) LIMITED,21/05/2024,"2,060.00",6241-Hire of Vehicle with Driver,TRANSPORT,DIRECT TRANSPORT COSTS,REVENUE
Walsall Council,http://opendatacommunities.org/id/metropolitan-district-council/walsall ,WC162-43,31.05.24,CHILDRENS,247 CARS (WILLENHALL) LIMITED,21/05/2024,"1,605.50",6241-Hire of Vehicle with Driver,TRANSPORT,DIRECT TRANSPORT COSTS,REVENUE
Walsall Council,http://opendatacommunities.org/id/metropolitan-district-council/walsall ,WC162-44,31.05.24,CHILDRENS,247 CARS (WILLENHALL) LIMITED,21/05/2024,"1,481.60",6241-Hire of Vehicle with Driver,TRANSPORT,DIRECT TRANSPORT COSTS,REVENUE
Walsall Council,http://opendatacommunities.org/id/metropolitan-district-council/walsall ,WC162-45,31.05.24,CHILDRENS,247 CARS (WILLENHALL) LIMITED,21/05/2024,"2,490.90",6241-Hire of Vehicle with Driver,TRANSPORT,DIRECT TRANSPORT COSTS,REVENUE
Walsall Council,http://opendatacommunities.org/id/metropolitan-district-council/walsall ,WC162-46,31.05.24,CHILDRENS,247 CARS (WILLENHALL) LIMITED,21/05/2024,"1,600.00",6241-Hire of Vehicle with Driver,TRANSPORT,DIRECT TRANSPORT COSTS,REVENUE
Walsall Council,http://opendatacommunities.org/id/metropolitan-district-council/walsall ,WC162-47,31.05.24,CHILDRENS,247 CARS (WILLENHALL) LIMITED,21/05/2024,"2,064.60",6241-Hire of Vehicle with Driver,TRANSPORT,DIRECT TRANSPORT COSTS,REVENUE
Walsall Council,http://opendatacommunities.org/id/metropolitan-district-council/walsall ,WC162-48,31.05.24,CHILDRENS,247 CARS (WILLENHALL) LIMITED,14/05/2024,"1,167.12",1220-Professional Fees & Services,SUPPLIES & SERVICES,SERVICES,REVENUE
Walsall Council,http://opendatacommunities.org/id/metropolitan-district-council/walsall ,WC162-49,31.05.24,CHILDRENS,247 CARS (WILLENHALL) LIMITED,14/05/2024,"1,613.10",1220-Professional Fees & Services,SUPPLIES & SERVICES,SERVICES,REVENUE
Walsall Council,http://opendatacommunities.org/id/metropolitan-district-council/walsall ,WC162-50,31.05.24,RESOURCES AND TRANSFORMATION,31ST SUTTON COLDFIELD WEST SCOUT GROUP BUILDING FUND,21/05/2024,565.00,6610-Hire of Room,SUPPLIES & SERVICES,SERVICES,REVENUE
Walsall Council,http://opendatacommunities.org/id/metropolitan-district-council/walsall ,WC162-51,31.05.24,ADULT SOCIAL CARE,5 CARE SERVICES LTD,01/05/2024,288.00,6554-Professional Services-Priv Contractor & Other Agencies,THIRD PARTY PAYMENTS,PRIVATE CONTRACTOR,REVENUE
Walsall Council,http://opendatacommunities.org/id/metropolitan-district-council/walsall ,WC162-52,31.05.24,ADULT SOCIAL CARE,5 CARE SERVICES LTD,01/05/2024,364.50,6554-Professional Services-Priv Contractor & Other Agencies,THIRD PARTY PAYMENTS,PRIVATE CONTRACTOR,REVENUE
Walsall Council,http://opendatacommunities.org/id/metropolitan-district-council/walsall ,WC162-53,31.05.24,ADULT SOCIAL CARE,5 CARE SERVICES LTD,01/05/2024,"1,008.00",6554-Professional Services-Priv Contractor & Other Agencies,THIRD PARTY PAYMENTS,PRIVATE CONTRACTOR,REVENUE
Walsall Council,http://opendatacommunities.org/id/metropolitan-district-council/walsall ,WC162-54,31.05.24,ADULT SOCIAL CARE,5 CARE SERVICES LTD,01/05/2024,447.91,6554-Professional Services-Priv Contractor & Other Agencies,THIRD PARTY PAYMENTS,PRIVATE CONTRACTOR,REVENUE
Walsall Council,http://opendatacommunities.org/id/metropolitan-district-council/walsall ,WC162-55,31.05.24,ADULT SOCIAL CARE,5 CARE SERVICES LTD,01/05/2024,402.91,6554-Professional Services-Priv Contractor & Other Agencies,THIRD PARTY PAYMENTS,PRIVATE CONTRACTOR,REVENUE
Walsall Council,http://opendatacommunities.org/id/metropolitan-district-council/walsall ,WC162-56,31.05.24,ADULT SOCIAL CARE,5 CARE SERVICES LTD,01/05/2024,306.10,6554-Professional Services-Priv Contractor & Other Agencies,THIRD PARTY PAYMENTS,PRIVATE CONTRACTOR,REVENUE
Walsall Council,http://opendatacommunities.org/id/metropolitan-district-council/walsall ,WC162-57,31.05.24,ADULT SOCIAL CARE,5 CARE SERVICES LTD,01/05/2024,"2,308.95",6554-Professional Services-Priv Contractor & Other Agencies,THIRD PARTY PAYMENTS,PRIVATE CONTRACTOR,REVENUE
Walsall Council,http://opendatacommunities.org/id/metropolitan-district-council/walsall ,WC162-58,31.05.24,ADULT SOCIAL CARE,5 CARE SERVICES LTD,01/05/2024,937.36,6554-Professional Services-Priv Contractor & Other Agencies,THIRD PARTY PAYMENTS,PRIVATE CONTRACTOR,REVENUE
Walsall Council,http://opendatacommunities.org/id/metropolitan-district-council/walsall ,WC162-59,31.05.24,ADULT SOCIAL CARE,5 CARE SERVICES LTD,01/05/2024,819.00,6554-Professional Services-Priv Contractor & Other Agencies,THIRD PARTY PAYMENTS,PRIVATE CONTRACTOR,REVENUE
Walsall Council,http://opendatacommunities.org/id/metropolitan-district-council/walsall ,WC162-60,31.05.24,ADULT SOCIAL CARE,5 CARE SERVICES LTD,01/05/2024,"2,164.95",6554-Professional Services-Priv Contractor & Other Agencies,THIRD PARTY PAYMENTS,PRIVATE CONTRACTOR,REVENUE
Walsall Council,http://opendatacommunities.org/id/metropolitan-district-council/walsall ,WC162-61,31.05.24,ADULT SOCIAL CARE,5 CARE SERVICES LTD,01/05/2024,929.51,6554-Professional Services-Priv Contractor & Other Agencies,THIRD PARTY PAYMENTS,PRIVATE CONTRACTOR,REVENUE
Walsall Council,http://opendatacommunities.org/id/metropolitan-district-council/walsall ,WC162-62,31.05.24,ADULT SOCIAL CARE,5 CARE SERVICES LTD,01/05/2024,382.50,6554-Professional Services-Priv Contractor & Other Agencies,THIRD PARTY PAYMENTS,PRIVATE CONTRACTOR,REVENUE
Walsall Council,http://opendatacommunities.org/id/metropolitan-district-council/walsall ,WC162-63,31.05.24,ADULT SOCIAL CARE,5 CARE SERVICES LTD,01/05/2024,886.95,6554-Professional Services-Priv Contractor & Other Agencies,THIRD PARTY PAYMENTS,PRIVATE CONTRACTOR,REVENUE
Walsall Council,http://opendatacommunities.org/id/metropolitan-district-council/walsall ,WC162-64,31.05.24,ADULT SOCIAL CARE,5 CARE SERVICES LTD,01/05/2024,587.51,6554-Professional Services-Priv Contractor & Other Agencies,THIRD PARTY PAYMENTS,PRIVATE CONTRACTOR,REVENUE
Walsall Council,http://opendatacommunities.org/id/metropolitan-district-council/walsall ,WC162-65,31.05.24,ADULT SOCIAL CARE,5 CARE SERVICES LTD,01/05/2024,931.95,6554-Professional Services-Priv Contractor & Other Agencies,THIRD PARTY PAYMENTS,PRIVATE CONTRACTOR,REVENUE
Walsall Council,http://opendatacommunities.org/id/metropolitan-district-council/walsall ,WC162-66,31.05.24,ADULT SOCIAL CARE,5 CARE SERVICES LTD,01/05/2024,432.22,6554-Professional Services-Priv Contractor & Other Agencies,THIRD PARTY PAYMENTS,PRIVATE CONTRACTOR,REVENUE
Walsall Council,http://opendatacommunities.org/id/metropolitan-district-council/walsall ,WC162-67,31.05.24,ADULT SOCIAL CARE,5 CARE SERVICES LTD,01/05/2024,596.80,6554-Professional Services-Priv Contractor & Other Agencies,THIRD PARTY PAYMENTS,PRIVATE CONTRACTOR,REVENUE
Walsall Council,http://opendatacommunities.org/id/metropolitan-district-council/walsall ,WC162-68,31.05.24,ADULT SOCIAL CARE,5 CARE SERVICES LTD,01/05/2024,967.95,6554-Professional Services-Priv Contractor & Other Agencies,THIRD PARTY PAYMENTS,PRIVATE CONTRACTOR,REVENUE
Walsall Council,http://opendatacommunities.org/id/metropolitan-district-council/walsall ,WC162-69,31.05.24,ADULT SOCIAL CARE,5 CARE SERVICES LTD,01/05/2024,310.29,6554-Professional Services-Priv Contractor & Other Agencies,THIRD PARTY PAYMENTS,PRIVATE CONTRACTOR,REVENUE
Walsall Council,http://opendatacommunities.org/id/metropolitan-district-council/walsall ,WC162-70,31.05.24,ADULT SOCIAL CARE,5 CARE SERVICES LTD,01/05/2024,"1,296.00",6554-Professional Services-Priv Contractor & Other Agencies,THIRD PARTY PAYMENTS,PRIVATE CONTRACTOR,REVENUE
Walsall Council,http://opendatacommunities.org/id/metropolitan-district-council/walsall ,WC162-71,31.05.24,ADULT SOCIAL CARE,5 CARE SERVICES LTD,01/05/2024,729.00,6554-Professional Services-Priv Contractor & Other Agencies,THIRD PARTY PAYMENTS,PRIVATE CONTRACTOR,REVENUE
Walsall Council,http://opendatacommunities.org/id/metropolitan-district-council/walsall ,WC162-72,31.05.24,ADULT SOCIAL CARE,5 CARE SERVICES LTD,01/05/2024,503.79,6554-Professional Services-Priv Contractor & Other Agencies,THIRD PARTY PAYMENTS,PRIVATE CONTRACTOR,REVENUE
Walsall Council,http://opendatacommunities.org/id/metropolitan-district-council/walsall ,WC162-73,31.05.24,ADULT SOCIAL CARE,5 CARE SERVICES LTD,01/05/2024,"1,793.72",6554-Professional Services-Priv Contractor & Other Agencies,THIRD PARTY PAYMENTS,PRIVATE CONTRACTOR,REVENUE
Walsall Council,http://opendatacommunities.org/id/metropolitan-district-council/walsall ,WC162-74,31.05.24,ADULT SOCIAL CARE,5 CARE SERVICES LTD,01/05/2024,632.25,6554-Professional Services-Priv Contractor & Other Agencies,THIRD PARTY PAYMENTS,PRIVATE CONTRACTOR,REVENUE
Walsall Council,http://opendatacommunities.org/id/metropolitan-district-council/walsall ,WC162-75,31.05.24,ADULT SOCIAL CARE,5 CARE SERVICES LTD,07/05/2024,304.01,6541-Domiciliary Care,THIRD PARTY PAYMENTS,PRIVATE CONTRACTOR,REVENUE
Walsall Council,http://opendatacommunities.org/id/metropolitan-district-council/walsall ,WC162-76,31.05.24,ADULT SOCIAL CARE,5 CARE SERVICES LTD,07/05/2024,694.80,6541-Domiciliary Care,THIRD PARTY PAYMENTS,PRIVATE CONTRACTOR,REVENUE
Walsall Council,http://opendatacommunities.org/id/metropolitan-district-council/walsall ,WC162-77,31.05.24,ADULT SOCIAL CARE,5 CARE SERVICES LTD,07/05/2024,829.90,6541-Domiciliary Care,THIRD PARTY PAYMENTS,PRIVATE CONTRACTOR,REVENUE
Walsall Council,http://opendatacommunities.org/id/metropolitan-district-council/walsall ,WC162-78,31.05.24,ADULT SOCIAL CARE,5 CARE SERVICES LTD,07/05/2024,752.70,6541-Domiciliary Care,THIRD PARTY PAYMENTS,PRIVATE CONTRACTOR,REVENUE
Walsall Council,http://opendatacommunities.org/id/metropolitan-district-council/walsall ,WC162-79,31.05.24,ADULT SOCIAL CARE,5 CARE SERVICES LTD,07/05/2024,"1,486.10",6541-Domiciliary Care,THIRD PARTY PAYMENTS,PRIVATE CONTRACTOR,REVENUE
Walsall Council,http://opendatacommunities.org/id/metropolitan-district-council/walsall ,WC162-80,31.05.24,ADULT SOCIAL CARE,5 CARE SERVICES LTD,07/05/2024,447.60,6541-Domiciliary Care,THIRD PARTY PAYMENTS,PRIVATE CONTRACTOR,REVENUE
Walsall Council,http://opendatacommunities.org/id/metropolitan-district-council/walsall ,WC162-81,31.05.24,ADULT SOCIAL CARE,5 CARE SERVICES LTD,07/05/2024,607.95,6541-Domiciliary Care,THIRD PARTY PAYMENTS,PRIVATE CONTRACTOR,REVENUE
Walsall Council,http://opendatacommunities.org/id/metropolitan-district-council/walsall ,WC162-82,31.05.24,ADULT SOCIAL CARE,5 CARE SERVICES LTD,07/05/2024,540.40,6541-Domiciliary Care,THIRD PARTY PAYMENTS,PRIVATE CONTRACTOR,REVENUE
Walsall Council,http://opendatacommunities.org/id/metropolitan-district-council/walsall ,WC162-83,31.05.24,ADULT SOCIAL CARE,5 CARE SERVICES LTD,07/05/2024,347.40,6541-Domiciliary Care,THIRD PARTY PAYMENTS,PRIVATE CONTRACTOR,REVENUE
Walsall Council,http://opendatacommunities.org/id/metropolitan-district-council/walsall ,WC162-84,31.05.24,ADULT SOCIAL CARE,5 CARE SERVICES LTD,07/05/2024,304.01,6541-Domiciliary Care,THIRD PARTY PAYMENTS,PRIVATE CONTRACTOR,REVENUE
Walsall Council,http://opendatacommunities.org/id/metropolitan-district-council/walsall ,WC162-85,31.05.24,ADULT SOCIAL CARE,5 CARE SERVICES LTD,07/05/2024,878.15,6541-Domiciliary Care,THIRD PARTY PAYMENTS,PRIVATE CONTRACTOR,REVENUE
Walsall Council,http://opendatacommunities.org/id/metropolitan-district-council/walsall ,WC162-86,31.05.24,ADULT SOCIAL CARE,5 CARE SERVICES LTD,07/05/2024,521.10,6541-Domiciliary Care,THIRD PARTY PAYMENTS,PRIVATE CONTRACTOR,REVENUE
Walsall Council,http://opendatacommunities.org/id/metropolitan-district-council/walsall ,WC162-87,31.05.24,ADULT SOCIAL CARE,5 CARE SERVICES LTD,07/05/2024,607.95,6541-Domiciliary Care,THIRD PARTY PAYMENTS,PRIVATE CONTRACTOR,REVENUE
Walsall Council,http://opendatacommunities.org/id/metropolitan-district-council/walsall ,WC162-88,31.05.24,ADULT SOCIAL CARE,5 CARE SERVICES LTD,07/05/2024,607.95,6541-Domiciliary Care,THIRD PARTY PAYMENTS,PRIVATE CONTRACTOR,REVENUE
Walsall Council,http://opendatacommunities.org/id/metropolitan-district-council/walsall ,WC162-89,31.05.24,ADULT SOCIAL CARE,5 CARE SERVICES LTD,07/05/2024,675.50,6541-Domiciliary Care,THIRD PARTY PAYMENTS,PRIVATE CONTRACTOR,REVENUE
Walsall Council,http://opendatacommunities.org/id/metropolitan-district-council/walsall ,WC162-90,31.05.24,ADULT SOCIAL CARE,5 CARE SERVICES LTD,07/05/2024,810.60,6541-Domiciliary Care,THIRD PARTY PAYMENTS,PRIVATE CONTRACTOR,REVENUE
Walsall Council,http://opendatacommunities.org/id/metropolitan-district-council/walsall ,WC162-91,31.05.24,ADULT SOCIAL CARE,5 CARE SERVICES LTD,07/05/2024,607.95,6541-Domiciliary Care,THIRD PARTY PAYMENTS,PRIVATE CONTRACTOR,REVENUE
Walsall Council,http://opendatacommunities.org/id/metropolitan-district-council/walsall ,WC162-92,31.05.24,ADULT SOCIAL CARE,5 CARE SERVICES LTD,07/05/2024,275.06,6541-Domiciliary Care,THIRD PARTY PAYMENTS,PRIVATE CONTRACTOR,REVENUE
Walsall Council,http://opendatacommunities.org/id/metropolitan-district-council/walsall ,WC162-93,31.05.24,ADULT SOCIAL CARE,5 CARE SERVICES LTD,07/05/2024,945.70,6541-Domiciliary Care,THIRD PARTY PAYMENTS,PRIVATE CONTRACTOR,REVENUE
Walsall Council,http://opendatacommunities.org/id/metropolitan-district-council/walsall ,WC162-94,31.05.24,ADULT SOCIAL CARE,5 CARE SERVICES LTD,07/05/2024,607.95,6541-Domiciliary Care,THIRD PARTY PAYMENTS,PRIVATE CONTRACTOR,REVENUE
Walsall Council,http://opendatacommunities.org/id/metropolitan-district-council/walsall ,WC162-95,31.05.24,ADULT SOCIAL CARE,5 CARE SERVICES LTD,07/05/2024,675.50,6541-Domiciliary Care,THIRD PARTY PAYMENTS,PRIVATE CONTRACTOR,REVENUE
Walsall Council,http://opendatacommunities.org/id/metropolitan-district-council/walsall ,WC162-96,31.05.24,ADULT SOCIAL CARE,5 CARE SERVICES LTD,07/05/2024,405.30,6541-Domiciliary Care,THIRD PARTY PAYMENTS,PRIVATE CONTRACTOR,REVENUE
Walsall Council,http://opendatacommunities.org/id/metropolitan-district-council/walsall ,WC162-97,31.05.24,ADULT SOCIAL CARE,5 CARE SERVICES LTD,07/05/2024,405.30,6541-Domiciliary Care,THIRD PARTY PAYMENTS,PRIVATE CONTRACTOR,REVENUE
Walsall Council,http://opendatacommunities.org/id/metropolitan-district-council/walsall ,WC162-98,31.05.24,ADULT SOCIAL CARE,5 CARE SERVICES LTD,07/05/2024,-472.72,6541-Domiciliary Care,THIRD PARTY PAYMENTS,PRIVATE CONTRACTOR,REVENUE
Walsall Council,http://opendatacommunities.org/id/metropolitan-district-council/walsall ,WC162-99,31.05.24,ADULT SOCIAL CARE,5 CARE SERVICES LTD,07/05/2024,506.66,6541-Domiciliary Care,THIRD PARTY PAYMENTS,PRIVATE CONTRACTOR,REVENUE
Walsall Council,http://opendatacommunities.org/id/metropolitan-district-council/walsall ,WC162-100,31.05.24,ADULT SOCIAL CARE,5 CARE SERVICES LTD,07/05/2024,315.21,6541-Domiciliary Care,THIRD PARTY PAYMENTS,PRIVATE CONTRACTOR,REVENUE
Walsall Council,http://opendatacommunities.org/id/metropolitan-district-council/walsall ,WC162-101,31.05.24,ADULT SOCIAL CARE,5 CARE SERVICES LTD,07/05/2024,-360.00,6541-Domiciliary Care,THIRD PARTY PAYMENTS,PRIVATE CONTRACTOR,REVENUE
Walsall Council,http://opendatacommunities.org/id/metropolitan-district-council/walsall ,WC162-102,31.05.24,ADULT SOCIAL CARE,5 CARE SERVICES LTD,07/05/2024,810.60,6541-Domiciliary Care,THIRD PARTY PAYMENTS,PRIVATE CONTRACTOR,REVENUE
Walsall Council,http://opendatacommunities.org/id/metropolitan-district-council/walsall ,WC162-103,31.05.24,ADULT SOCIAL CARE,5 CARE SERVICES LTD,07/05/2024,607.95,6541-Domiciliary Care,THIRD PARTY PAYMENTS,PRIVATE CONTRACTOR,REVENUE
Walsall Council,http://opendatacommunities.org/id/metropolitan-district-council/walsall ,WC162-104,31.05.24,ADULT SOCIAL CARE,5 CARE SERVICES LTD,07/05/2024,304.01,6541-Domiciliary Care,THIRD PARTY PAYMENTS,PRIVATE CONTRACTOR,REVENUE
Walsall Council,http://opendatacommunities.org/id/metropolitan-district-council/walsall ,WC162-105,31.05.24,ADULT SOCIAL CARE,5 CARE SERVICES LTD,07/05/2024,376.35,6541-Domiciliary Care,THIRD PARTY PAYMENTS,PRIVATE CONTRACTOR,REVENUE
Walsall Council,http://opendatacommunities.org/id/metropolitan-district-council/walsall ,WC162-106,31.05.24,ADULT SOCIAL CARE,5 CARE SERVICES LTD,07/05/2024,955.35,6541-Domiciliary Care,THIRD PARTY PAYMENTS,PRIVATE CONTRACTOR,REVENUE
Walsall Council,http://opendatacommunities.org/id/metropolitan-district-council/walsall ,WC162-107,31.05.24,ADULT SOCIAL CARE,5 CARE SERVICES LTD,07/05/2024,607.95,6541-Domiciliary Care,THIRD PARTY PAYMENTS,PRIVATE CONTRACTOR,REVENUE
Walsall Council,http://opendatacommunities.org/id/metropolitan-district-council/walsall ,WC162-108,31.05.24,ADULT SOCIAL CARE,5 CARE SERVICES LTD,07/05/2024,607.95,6541-Domiciliary Care,THIRD PARTY PAYMENTS,PRIVATE CONTRACTOR,REVENUE
Walsall Council,http://opendatacommunities.org/id/metropolitan-district-council/walsall ,WC162-109,31.05.24,ADULT SOCIAL CARE,5 CARE SERVICES LTD,07/05/2024,607.95,6541-Domiciliary Care,THIRD PARTY PAYMENTS,PRIVATE CONTRACTOR,REVENUE
Walsall Council,http://opendatacommunities.org/id/metropolitan-district-council/walsall ,WC162-110,31.05.24,ADULT SOCIAL CARE,5 CARE SERVICES LTD,07/05/2024,270.20,6541-Domiciliary Care,THIRD PARTY PAYMENTS,PRIVATE CONTRACTOR,REVENUE
Walsall Council,http://opendatacommunities.org/id/metropolitan-district-council/walsall ,WC162-111,31.05.24,ADULT SOCIAL CARE,5 CARE SERVICES LTD,07/05/2024,304.01,6541-Domiciliary Care,THIRD PARTY PAYMENTS,PRIVATE CONTRACTOR,REVENUE
Walsall Council,http://opendatacommunities.org/id/metropolitan-district-council/walsall ,WC162-112,31.05.24,ADULT SOCIAL CARE,5 CARE SERVICES LTD,07/05/2024,829.90,6541-Domiciliary Care,THIRD PARTY PAYMENTS,PRIVATE CONTRACTOR,REVENUE
Walsall Council,http://opendatacommunities.org/id/metropolitan-district-council/walsall ,WC162-113,31.05.24,ADULT SOCIAL CARE,5 CARE SERVICES LTD,07/05/2024,675.50,6541-Domiciliary Care,THIRD PARTY PAYMENTS,PRIVATE CONTRACTOR,REVENUE
Walsall Council,http://opendatacommunities.org/id/metropolitan-district-council/walsall ,WC162-114,31.05.24,ADULT SOCIAL CARE,5 CARE SERVICES LTD,07/05/2024,"1,486.10",6541-Domiciliary Care,THIRD PARTY PAYMENTS,PRIVATE CONTRACTOR,REVENUE
Walsall Council,http://opendatacommunities.org/id/metropolitan-district-council/walsall ,WC162-115,31.05.24,ADULT SOCIAL CARE,5 CARE SERVICES LTD,07/05/2024,607.95,6541-Domiciliary Care,THIRD PARTY PAYMENTS,PRIVATE CONTRACTOR,REVENUE
Walsall Council,http://opendatacommunities.org/id/metropolitan-district-council/walsall ,WC162-116,31.05.24,ADULT SOCIAL CARE,5 CARE SERVICES LTD,07/05/2024,540.40,6541-Domiciliary Care,THIRD PARTY PAYMENTS,PRIVATE CONTRACTOR,REVENUE
Walsall Council,http://opendatacommunities.org/id/metropolitan-district-council/walsall ,WC162-117,31.05.24,ADULT SOCIAL CARE,5 CARE SERVICES LTD,07/05/2024,386.00,6541-Domiciliary Care,THIRD PARTY PAYMENTS,PRIVATE CONTRACTOR,REVENUE
Walsall Council,http://opendatacommunities.org/id/metropolitan-district-council/walsall ,WC162-118,31.05.24,ADULT SOCIAL CARE,5 CARE SERVICES LTD,07/05/2024,607.95,6541-Domiciliary Care,THIRD PARTY PAYMENTS,PRIVATE CONTRACTOR,REVENUE
Walsall Council,http://opendatacommunities.org/id/metropolitan-district-council/walsall ,WC162-119,31.05.24,ADULT SOCIAL CARE,5 CARE SERVICES LTD,07/05/2024,607.95,6541-Domiciliary Care,THIRD PARTY PAYMENTS,PRIVATE CONTRACTOR,REVENUE
Walsall Council,http://opendatacommunities.org/id/metropolitan-district-council/walsall ,WC162-120,31.05.24,ADULT SOCIAL CARE,5 CARE SERVICES LTD,07/05/2024,675.50,6541-Domiciliary Care,THIRD PARTY PAYMENTS,PRIVATE CONTRACTOR,REVENUE
Walsall Council,http://opendatacommunities.org/id/metropolitan-district-council/walsall ,WC162-121,31.05.24,ADULT SOCIAL CARE,5 CARE SERVICES LTD,07/05/2024,607.95,6541-Domiciliary Care,THIRD PARTY PAYMENTS,PRIVATE CONTRACTOR,REVENUE
Walsall Council,http://opendatacommunities.org/id/metropolitan-district-council/walsall ,WC162-122,31.05.24,ADULT SOCIAL CARE,5 CARE SERVICES LTD,07/05/2024,521.10,6541-Domiciliary Care,THIRD PARTY PAYMENTS,PRIVATE CONTRACTOR,REVENUE
Walsall Council,http://opendatacommunities.org/id/metropolitan-district-council/walsall ,WC162-123,31.05.24,ADULT SOCIAL CARE,5 CARE SERVICES LTD,07/05/2024,347.40,6541-Domiciliary Care,THIRD PARTY PAYMENTS,PRIVATE CONTRACTOR,REVENUE
Walsall Council,http://opendatacommunities.org/id/metropolitan-district-council/walsall ,WC162-124,31.05.24,ADULT SOCIAL CARE,5 CARE SERVICES LTD,07/05/2024,304.01,6541-Domiciliary Care,THIRD PARTY PAYMENTS,PRIVATE CONTRACTOR,REVENUE
Walsall Council,http://opendatacommunities.org/id/metropolitan-district-council/walsall ,WC162-125,31.05.24,ADULT SOCIAL CARE,5 CARE SERVICES LTD,07/05/2024,878.15,6541-Domiciliary Care,THIRD PARTY PAYMENTS,PRIVATE CONTRACTOR,REVENUE
Walsall Council,http://opendatacommunities.org/id/metropolitan-district-council/walsall ,WC162-126,31.05.24,ADULT SOCIAL CARE,5 CARE SERVICES LTD,07/05/2024,405.30,6541-Domiciliary Care,THIRD PARTY PAYMENTS,PRIVATE CONTRACTOR,REVENUE
Walsall Council,http://opendatacommunities.org/id/metropolitan-district-council/walsall ,WC162-127,31.05.24,ADULT SOCIAL CARE,5 CARE SERVICES LTD,07/05/2024,810.60,6541-Domiciliary Care,THIRD PARTY PAYMENTS,PRIVATE CONTRACTOR,REVENUE
Walsall Council,http://opendatacommunities.org/id/metropolitan-district-council/walsall ,WC162-128,31.05.24,ADULT SOCIAL CARE,5 CARE SERVICES LTD,07/05/2024,607.95,6541-Domiciliary Care,THIRD PARTY PAYMENTS,PRIVATE CONTRACTOR,REVENUE
Walsall Council,http://opendatacommunities.org/id/metropolitan-district-council/walsall ,WC162-129,31.05.24,ADULT SOCIAL CARE,5 CARE SERVICES LTD,07/05/2024,607.95,6541-Domiciliary Care,THIRD PARTY PAYMENTS,PRIVATE CONTRACTOR,REVENUE
Walsall Council,http://opendatacommunities.org/id/metropolitan-district-council/walsall ,WC162-130,31.05.24,ADULT SOCIAL CARE,5 CARE SERVICES LTD,07/05/2024,810.60,6541-Domiciliary Care,THIRD PARTY PAYMENTS,PRIVATE CONTRACTOR,REVENUE
Walsall Council,http://opendatacommunities.org/id/metropolitan-district-council/walsall ,WC162-131,31.05.24,ADULT SOCIAL CARE,5 CARE SERVICES LTD,07/05/2024,607.95,6541-Domiciliary Care,THIRD PARTY PAYMENTS,PRIVATE CONTRACTOR,REVENUE
Walsall Council,http://opendatacommunities.org/id/metropolitan-district-council/walsall ,WC162-132,31.05.24,ADULT SOCIAL CARE,5 CARE SERVICES LTD,07/05/2024,304.01,6541-Domiciliary Care,THIRD PARTY PAYMENTS,PRIVATE CONTRACTOR,REVENUE
Walsall Council,http://opendatacommunities.org/id/metropolitan-district-council/walsall ,WC162-133,31.05.24,ADULT SOCIAL CARE,5 CARE SERVICES LTD,07/05/2024,607.95,6541-Domiciliary Care,THIRD PARTY PAYMENTS,PRIVATE CONTRACTOR,REVENUE
Walsall Council,http://opendatacommunities.org/id/metropolitan-district-council/walsall ,WC162-134,31.05.24,ADULT SOCIAL CARE,5 CARE SERVICES LTD,07/05/2024,607.95,6541-Domiciliary Care,THIRD PARTY PAYMENTS,PRIVATE CONTRACTOR,REVENUE
Walsall Council,http://opendatacommunities.org/id/metropolitan-district-council/walsall ,WC162-135,31.05.24,ADULT SOCIAL CARE,5 CARE SERVICES LTD,07/05/2024,607.95,6541-Domiciliary Care,THIRD PARTY PAYMENTS,PRIVATE CONTRACTOR,REVENUE
Walsall Council,http://opendatacommunities.org/id/metropolitan-district-council/walsall ,WC162-136,31.05.24,ADULT SOCIAL CARE,5 CARE SERVICES LTD,07/05/2024,275.06,6541-Domiciliary Care,THIRD PARTY PAYMENTS,PRIVATE CONTRACTOR,REVENUE
Walsall Council,http://opendatacommunities.org/id/metropolitan-district-council/walsall ,WC162-137,31.05.24,ADULT SOCIAL CARE,5 CARE SERVICES LTD,07/05/2024,675.50,6541-Domiciliary Care,THIRD PARTY PAYMENTS,PRIVATE CONTRACTOR,REVENUE
Walsall Council,http://opendatacommunities.org/id/metropolitan-district-council/walsall ,WC162-138,31.05.24,ADULT SOCIAL CARE,5 CARE SERVICES LTD,07/05/2024,405.30,6541-Domiciliary Care,THIRD PARTY PAYMENTS,PRIVATE CONTRACTOR,REVENUE
Walsall Council,http://opendatacommunities.org/id/metropolitan-district-council/walsall ,WC162-139,31.05.24,ADULT SOCIAL CARE,5 CARE SERVICES LTD,07/05/2024,506.66,6541-Domiciliary Care,THIRD PARTY PAYMENTS,PRIVATE CONTRACTOR,REVENUE
Walsall Council,http://opendatacommunities.org/id/metropolitan-district-council/walsall ,WC162-140,31.05.24,ADULT SOCIAL CARE,5 CARE SERVICES LTD,07/05/2024,315.21,6541-Domiciliary Care,THIRD PARTY PAYMENTS,PRIVATE CONTRACTOR,REVENUE
Walsall Council,http://opendatacommunities.org/id/metropolitan-district-council/walsall ,WC162-141,31.05.24,ADULT SOCIAL CARE,5 CARE SERVICES LTD,07/05/2024,270.20,6541-Domiciliary Care,THIRD PARTY PAYMENTS,PRIVATE CONTRACTOR,REVENUE
Walsall Council,http://opendatacommunities.org/id/metropolitan-district-council/walsall ,WC162-142,31.05.24,ADULT SOCIAL CARE,5 CARE SERVICES LTD,07/05/2024,945.70,6541-Domiciliary Care,THIRD PARTY PAYMENTS,PRIVATE CONTRACTOR,REVENUE
Walsall Council,http://opendatacommunities.org/id/metropolitan-district-council/walsall ,WC162-143,31.05.24,ADULT SOCIAL CARE,5 CARE SERVICES LTD,07/05/2024,308.80,6541-Domiciliary Care,THIRD PARTY PAYMENTS,PRIVATE CONTRACTOR,REVENUE
Walsall Council,http://opendatacommunities.org/id/metropolitan-district-council/walsall ,WC162-144,31.05.24,ADULT SOCIAL CARE,5 CARE SERVICES LTD,07/05/2024,607.95,6541-Domiciliary Care,THIRD PARTY PAYMENTS,PRIVATE CONTRACTOR,REVENUE
Walsall Council,http://opendatacommunities.org/id/metropolitan-district-council/walsall ,WC162-145,31.05.24,ADULT SOCIAL CARE,5 CARE SERVICES LTD,07/05/2024,270.20,6541-Domiciliary Care,THIRD PARTY PAYMENTS,PRIVATE CONTRACTOR,REVENUE
Walsall Council,http://opendatacommunities.org/id/metropolitan-district-council/walsall ,WC162-146,31.05.24,ADULT SOCIAL CARE,5 CARE SERVICES LTD,20/05/2024,829.90,6541-Domiciliary Care,THIRD PARTY PAYMENTS,PRIVATE CONTRACTOR,REVENUE
Walsall Council,http://opendatacommunities.org/id/metropolitan-district-council/walsall ,WC162-147,31.05.24,ADULT SOCIAL CARE,5 CARE SERVICES LTD,20/05/2024,675.50,6541-Domiciliary Care,THIRD PARTY PAYMENTS,PRIVATE CONTRACTOR,REVENUE
Walsall Council,http://opendatacommunities.org/id/metropolitan-district-council/walsall ,WC162-148,31.05.24,ADULT SOCIAL CARE,5 CARE SERVICES LTD,20/05/2024,"1,486.10",6541-Domiciliary Care,THIRD PARTY PAYMENTS,PRIVATE CONTRACTOR,REVENUE
Walsall Council,http://opendatacommunities.org/id/metropolitan-district-council/walsall ,WC162-149,31.05.24,ADULT SOCIAL CARE,5 CARE SERVICES LTD,20/05/2024,347.40,6541-Domiciliary Care,THIRD PARTY PAYMENTS,PRIVATE CONTRACTOR,REVENUE
Walsall Council,http://opendatacommunities.org/id/metropolitan-district-council/walsall ,WC162-150,31.05.24,ADULT SOCIAL CARE,5 CARE SERVICES LTD,20/05/2024,304.01,6541-Domiciliary Care,THIRD PARTY PAYMENTS,PRIVATE CONTRACTOR,REVENUE
Walsall Council,http://opendatacommunities.org/id/metropolitan-district-council/walsall ,WC162-151,31.05.24,ADULT SOCIAL CARE,5 CARE SERVICES LTD,20/05/2024,878.15,6541-Domiciliary Care,THIRD PARTY PAYMENTS,PRIVATE CONTRACTOR,REVENUE
Walsall Council,http://opendatacommunities.org/id/metropolitan-district-council/walsall ,WC162-152,31.05.24,ADULT SOCIAL CARE,5 CARE SERVICES LTD,20/05/2024,607.95,6541-Domiciliary Care,THIRD PARTY PAYMENTS,PRIVATE CONTRACTOR,REVENUE
Walsall Council,http://opendatacommunities.org/id/metropolitan-district-council/walsall ,WC162-153,31.05.24,ADULT SOCIAL CARE,5 CARE SERVICES LTD,20/05/2024,275.06,6541-Domiciliary Care,THIRD PARTY PAYMENTS,PRIVATE CONTRACTOR,REVENUE
Walsall Council,http://opendatacommunities.org/id/metropolitan-district-council/walsall ,WC162-154,31.05.24,ADULT SOCIAL CARE,5 CARE SERVICES LTD,20/05/2024,675.50,6541-Domiciliary Care,THIRD PARTY PAYMENTS,PRIVATE CONTRACTOR,REVENUE
Walsall Council,http://opendatacommunities.org/id/metropolitan-district-council/walsall ,WC162-155,31.05.24,ADULT SOCIAL CARE,5 CARE SERVICES LTD,20/05/2024,405.30,6541-Domiciliary Care,THIRD PARTY PAYMENTS,PRIVATE CONTRACTOR,REVENUE
Walsall Council,http://opendatacommunities.org/id/metropolitan-district-council/walsall ,WC162-156,31.05.24,ADULT SOCIAL CARE,5 CARE SERVICES LTD,20/05/2024,506.66,6541-Domiciliary Care,THIRD PARTY PAYMENTS,PRIVATE CONTRACTOR,REVENUE
Walsall Council,http://opendatacommunities.org/id/metropolitan-district-council/walsall ,WC162-157,31.05.24,ADULT SOCIAL CARE,5 CARE SERVICES LTD,20/05/2024,315.21,6541-Domiciliary Care,THIRD PARTY PAYMENTS,PRIVATE CONTRACTOR,REVENUE
Walsall Council,http://opendatacommunities.org/id/metropolitan-district-council/walsall ,WC162-158,31.05.24,ADULT SOCIAL CARE,5 CARE SERVICES LTD,20/05/2024,283.04,6541-Domiciliary Care,THIRD PARTY PAYMENTS,PRIVATE CONTRACTOR,REVENUE
Walsall Council,http://opendatacommunities.org/id/metropolitan-district-council/walsall ,WC162-159,31.05.24,ADULT SOCIAL CARE,5 CARE SERVICES LTD,20/05/2024,607.95,6541-Domiciliary Care,THIRD PARTY PAYMENTS,PRIVATE CONTRACTOR,REVENUE
Walsall Council,http://opendatacommunities.org/id/metropolitan-district-council/walsall ,WC162-160,31.05.24,ADULT SOCIAL CARE,5 CARE SERVICES LTD,20/05/2024,270.20,6541-Domiciliary Care,THIRD PARTY PAYMENTS,PRIVATE CONTRACTOR,REVENUE
Walsall Council,http://opendatacommunities.org/id/metropolitan-district-council/walsall ,WC162-161,31.05.24,ADULT SOCIAL CARE,5 CARE SERVICES LTD,20/05/2024,820.25,6541-Domiciliary Care,THIRD PARTY PAYMENTS,PRIVATE CONTRACTOR,REVENUE
Walsall Council,http://opendatacommunities.org/id/metropolitan-district-council/walsall ,WC162-162,31.05.24,ADULT SOCIAL CARE,5 CARE SERVICES LTD,20/05/2024,304.01,6541-Domiciliary Care,THIRD PARTY PAYMENTS,PRIVATE CONTRACTOR,REVENUE
Walsall Council,http://opendatacommunities.org/id/metropolitan-district-council/walsall ,WC162-163,31.05.24,ADULT SOCIAL CARE,5 CARE SERVICES LTD,20/05/2024,694.80,6541-Domiciliary Care,THIRD PARTY PAYMENTS,PRIVATE CONTRACTOR,REVENUE
Walsall Council,http://opendatacommunities.org/id/metropolitan-district-council/walsall ,WC162-164,31.05.24,ADULT SOCIAL CARE,5 CARE SERVICES LTD,20/05/2024,386.00,6541-Domiciliary Care,THIRD PARTY PAYMENTS,PRIVATE CONTRACTOR,REVENUE
Walsall Council,http://opendatacommunities.org/id/metropolitan-district-council/walsall ,WC162-165,31.05.24,ADULT SOCIAL CARE,5 CARE SERVICES LTD,20/05/2024,607.95,6541-Domiciliary Care,THIRD PARTY PAYMENTS,PRIVATE CONTRACTOR,REVENUE
Walsall Council,http://opendatacommunities.org/id/metropolitan-district-council/walsall ,WC162-166,31.05.24,ADULT SOCIAL CARE,5 CARE SERVICES LTD,20/05/2024,540.40,6541-Domiciliary Care,THIRD PARTY PAYMENTS,PRIVATE CONTRACTOR,REVENUE
Walsall Council,http://opendatacommunities.org/id/metropolitan-district-council/walsall ,WC162-167,31.05.24,ADULT SOCIAL CARE,5 CARE SERVICES LTD,20/05/2024,607.95,6541-Domiciliary Care,THIRD PARTY PAYMENTS,PRIVATE CONTRACTOR,REVENUE
Walsall Council,http://opendatacommunities.org/id/metropolitan-district-council/walsall ,WC162-168,31.05.24,ADULT SOCIAL CARE,5 CARE SERVICES LTD,20/05/2024,607.95,6541-Domiciliary Care,THIRD PARTY PAYMENTS,PRIVATE CONTRACTOR,REVENUE
Walsall Council,http://opendatacommunities.org/id/metropolitan-district-council/walsall ,WC162-169,31.05.24,ADULT SOCIAL CARE,5 CARE SERVICES LTD,20/05/2024,270.20,6541-Domiciliary Care,THIRD PARTY PAYMENTS,PRIVATE CONTRACTOR,REVENUE
Walsall Council,http://opendatacommunities.org/id/metropolitan-district-council/walsall ,WC162-170,31.05.24,ADULT SOCIAL CARE,5 CARE SERVICES LTD,20/05/2024,347.40,6541-Domiciliary Care,THIRD PARTY PAYMENTS,PRIVATE CONTRACTOR,REVENUE
Walsall Council,http://opendatacommunities.org/id/metropolitan-district-council/walsall ,WC162-171,31.05.24,ADULT SOCIAL CARE,5 CARE SERVICES LTD,20/05/2024,521.10,6541-Domiciliary Care,THIRD PARTY PAYMENTS,PRIVATE CONTRACTOR,REVENUE
Walsall Council,http://opendatacommunities.org/id/metropolitan-district-council/walsall ,WC162-172,31.05.24,ADULT SOCIAL CARE,5 CARE SERVICES LTD,20/05/2024,607.95,6541-Domiciliary Care,THIRD PARTY PAYMENTS,PRIVATE CONTRACTOR,REVENUE
Walsall Council,http://opendatacommunities.org/id/metropolitan-district-council/walsall ,WC162-173,31.05.24,ADULT SOCIAL CARE,5 CARE SERVICES LTD,20/05/2024,607.95,6541-Domiciliary Care,THIRD PARTY PAYMENTS,PRIVATE CONTRACTOR,REVENUE
Walsall Council,http://opendatacommunities.org/id/metropolitan-district-council/walsall ,WC162-174,31.05.24,ADULT SOCIAL CARE,5 CARE SERVICES LTD,20/05/2024,675.50,6541-Domiciliary Care,THIRD PARTY PAYMENTS,PRIVATE CONTRACTOR,REVENUE
Walsall Council,http://opendatacommunities.org/id/metropolitan-district-council/walsall ,WC162-175,31.05.24,ADULT SOCIAL CARE,5 CARE SERVICES LTD,20/05/2024,607.95,6541-Domiciliary Care,THIRD PARTY PAYMENTS,PRIVATE CONTRACTOR,REVENUE
Walsall Council,http://opendatacommunities.org/id/metropolitan-district-council/walsall ,WC162-176,31.05.24,ADULT SOCIAL CARE,5 CARE SERVICES LTD,20/05/2024,810.60,6541-Domiciliary Care,THIRD PARTY PAYMENTS,PRIVATE CONTRACTOR,REVENUE
Walsall Council,http://opendatacommunities.org/id/metropolitan-district-council/walsall ,WC162-177,31.05.24,ADULT SOCIAL CARE,5 CARE SERVICES LTD,20/05/2024,607.95,6541-Domiciliary Care,THIRD PARTY PAYMENTS,PRIVATE CONTRACTOR,REVENUE
Walsall Council,http://opendatacommunities.org/id/metropolitan-district-council/walsall ,WC162-178,31.05.24,ADULT SOCIAL CARE,5 CARE SERVICES LTD,20/05/2024,304.01,6541-Domiciliary Care,THIRD PARTY PAYMENTS,PRIVATE CONTRACTOR,REVENUE
Walsall Council,http://opendatacommunities.org/id/metropolitan-district-council/walsall ,WC162-179,31.05.24,ADULT SOCIAL CARE,5 CARE SERVICES LTD,20/05/2024,607.95,6541-Domiciliary Care,THIRD PARTY PAYMENTS,PRIVATE CONTRACTOR,REVENUE
Walsall Council,http://opendatacommunities.org/id/metropolitan-district-council/walsall ,WC162-180,31.05.24,ADULT SOCIAL CARE,5 CARE SERVICES LTD,20/05/2024,607.95,6541-Domiciliary Care,THIRD PARTY PAYMENTS,PRIVATE CONTRACTOR,REVENUE
Walsall Council,http://opendatacommunities.org/id/metropolitan-district-council/walsall ,WC162-181,31.05.24,ADULT SOCIAL CARE,5 CARE SERVICES LTD,20/05/2024,945.70,6541-Domiciliary Care,THIRD PARTY PAYMENTS,PRIVATE CONTRACTOR,REVENUE
Walsall Council,http://opendatacommunities.org/id/metropolitan-district-council/walsall ,WC162-182,31.05.24,ADULT SOCIAL CARE,5 CARE SERVICES LTD,20/05/2024,-289.50,6541-Domiciliary Care,THIRD PARTY PAYMENTS,PRIVATE CONTRACTOR,REVENUE
Walsall Council,http://opendatacommunities.org/id/metropolitan-district-council/walsall ,WC162-183,31.05.24,ADULT SOCIAL CARE,5 CARE SERVICES LTD,20/05/2024,304.01,6541-Domiciliary Care,THIRD PARTY PAYMENTS,PRIVATE CONTRACTOR,REVENUE
Walsall Council,http://opendatacommunities.org/id/metropolitan-district-council/walsall ,WC162-184,31.05.24,ADULT SOCIAL CARE,5 CARE SERVICES LTD,20/05/2024,607.95,6541-Domiciliary Care,THIRD PARTY PAYMENTS,PRIVATE CONTRACTOR,REVENUE
Walsall Council,http://opendatacommunities.org/id/metropolitan-district-council/walsall ,WC162-185,31.05.24,ADULT SOCIAL CARE,5 CARE SERVICES LTD,20/05/2024,607.95,6541-Domiciliary Care,THIRD PARTY PAYMENTS,PRIVATE CONTRACTOR,REVENUE
Walsall Council,http://opendatacommunities.org/id/metropolitan-district-council/walsall ,WC162-186,31.05.24,ADULT SOCIAL CARE,5 CARE SERVICES LTD,20/05/2024,386.00,6541-Domiciliary Care,THIRD PARTY PAYMENTS,PRIVATE CONTRACTOR,REVENUE
Walsall Council,http://opendatacommunities.org/id/metropolitan-district-council/walsall ,WC162-187,31.05.24,ADULT SOCIAL CARE,5 CARE SERVICES LTD,20/05/2024,607.95,6541-Domiciliary Care,THIRD PARTY PAYMENTS,PRIVATE CONTRACTOR,REVENUE
Walsall Council,http://opendatacommunities.org/id/metropolitan-district-council/walsall ,WC162-188,31.05.24,ADULT SOCIAL CARE,5 CARE SERVICES LTD,20/05/2024,540.40,6541-Domiciliary Care,THIRD PARTY PAYMENTS,PRIVATE CONTRACTOR,REVENUE
Walsall Council,http://opendatacommunities.org/id/metropolitan-district-council/walsall ,WC162-189,31.05.24,ADULT SOCIAL CARE,5 CARE SERVICES LTD,20/05/2024,521.10,6541-Domiciliary Care,THIRD PARTY PAYMENTS,PRIVATE CONTRACTOR,REVENUE
Walsall Council,http://opendatacommunities.org/id/metropolitan-district-council/walsall ,WC162-190,31.05.24,ADULT SOCIAL CARE,5 CARE SERVICES LTD,20/05/2024,607.95,6541-Domiciliary Care,THIRD PARTY PAYMENTS,PRIVATE CONTRACTOR,REVENUE
Walsall Council,http://opendatacommunities.org/id/metropolitan-district-council/walsall ,WC162-191,31.05.24,ADULT SOCIAL CARE,5 CARE SERVICES LTD,20/05/2024,607.95,6541-Domiciliary Care,THIRD PARTY PAYMENTS,PRIVATE CONTRACTOR,REVENUE
Walsall Council,http://opendatacommunities.org/id/metropolitan-district-council/walsall ,WC162-192,31.05.24,ADULT SOCIAL CARE,5 CARE SERVICES LTD,20/05/2024,675.50,6541-Domiciliary Care,THIRD PARTY PAYMENTS,PRIVATE CONTRACTOR,REVENUE
Walsall Council,http://opendatacommunities.org/id/metropolitan-district-council/walsall ,WC162-193,31.05.24,ADULT SOCIAL CARE,5 CARE SERVICES LTD,20/05/2024,607.95,6541-Domiciliary Care,THIRD PARTY PAYMENTS,PRIVATE CONTRACTOR,REVENUE
Walsall Council,http://opendatacommunities.org/id/metropolitan-district-council/walsall ,WC162-194,31.05.24,ADULT SOCIAL CARE,5 CARE SERVICES LTD,20/05/2024,829.90,6541-Domiciliary Care,THIRD PARTY PAYMENTS,PRIVATE CONTRACTOR,REVENUE
Walsall Council,http://opendatacommunities.org/id/metropolitan-district-council/walsall ,WC162-195,31.05.24,ADULT SOCIAL CARE,5 CARE SERVICES LTD,20/05/2024,675.50,6541-Domiciliary Care,THIRD PARTY PAYMENTS,PRIVATE CONTRACTOR,REVENUE
Walsall Council,http://opendatacommunities.org/id/metropolitan-district-council/walsall ,WC162-196,31.05.24,ADULT SOCIAL CARE,5 CARE SERVICES LTD,20/05/2024,"1,486.10",6541-Domiciliary Care,THIRD PARTY PAYMENTS,PRIVATE CONTRACTOR,REVENUE
Walsall Council,http://opendatacommunities.org/id/metropolitan-district-council/walsall ,WC162-197,31.05.24,ADULT SOCIAL CARE,5 CARE SERVICES LTD,20/05/2024,405.30,6541-Domiciliary Care,THIRD PARTY PAYMENTS,PRIVATE CONTRACTOR,REVENUE
Walsall Council,http://opendatacommunities.org/id/metropolitan-district-council/walsall ,WC162-198,31.05.24,ADULT SOCIAL CARE,5 CARE SERVICES LTD,20/05/2024,347.40,6541-Domiciliary Care,THIRD PARTY PAYMENTS,PRIVATE CONTRACTOR,REVENUE
Walsall Council,http://opendatacommunities.org/id/metropolitan-district-council/walsall ,WC162-199,31.05.24,ADULT SOCIAL CARE,5 CARE SERVICES LTD,20/05/2024,304.01,6541-Domiciliary Care,THIRD PARTY PAYMENTS,PRIVATE CONTRACTOR,REVENUE
Walsall Council,http://opendatacommunities.org/id/metropolitan-district-council/walsall ,WC162-200,31.05.24,ADULT SOCIAL CARE,5 CARE SERVICES LTD,20/05/2024,878.15,6541-Domiciliary Care,THIRD PARTY PAYMENTS,PRIVATE CONTRACTOR,REVENUE
Walsall Council,http://opendatacommunities.org/id/metropolitan-district-council/walsall ,WC162-201,31.05.24,ADULT SOCIAL CARE,5 CARE SERVICES LTD,20/05/2024,607.95,6541-Domiciliary Care,THIRD PARTY PAYMENTS,PRIVATE CONTRACTOR,REVENUE
Walsall Council,http://opendatacommunities.org/id/metropolitan-district-council/walsall ,WC162-202,31.05.24,ADULT SOCIAL CARE,5 CARE SERVICES LTD,20/05/2024,275.06,6541-Domiciliary Care,THIRD PARTY PAYMENTS,PRIVATE CONTRACTOR,REVENUE
Walsall Council,http://opendatacommunities.org/id/metropolitan-district-council/walsall ,WC162-203,31.05.24,ADULT SOCIAL CARE,5 CARE SERVICES LTD,20/05/2024,463.20,6541-Domiciliary Care,THIRD PARTY PAYMENTS,PRIVATE CONTRACTOR,REVENUE
Walsall Council,http://opendatacommunities.org/id/metropolitan-district-council/walsall ,WC162-204,31.05.24,ADULT SOCIAL CARE,5 CARE SERVICES LTD,20/05/2024,607.95,6541-Domiciliary Care,THIRD PARTY PAYMENTS,PRIVATE CONTRACTOR,REVENUE
Walsall Council,http://opendatacommunities.org/id/metropolitan-district-council/walsall ,WC162-205,31.05.24,ADULT SOCIAL CARE,5 CARE SERVICES LTD,20/05/2024,810.60,6541-Domiciliary Care,THIRD PARTY PAYMENTS,PRIVATE CONTRACTOR,REVENUE
Walsall Council,http://opendatacommunities.org/id/metropolitan-district-council/walsall ,WC162-206,31.05.24,ADULT SOCIAL CARE,5 CARE SERVICES LTD,20/05/2024,607.95,6541-Domiciliary Care,THIRD PARTY PAYMENTS,PRIVATE CONTRACTOR,REVENUE
Walsall Council,http://opendatacommunities.org/id/metropolitan-district-council/walsall ,WC162-207,31.05.24,ADULT SOCIAL CARE,5 CARE SERVICES LTD,20/05/2024,304.01,6541-Domiciliary Care,THIRD PARTY PAYMENTS,PRIVATE CONTRACTOR,REVENUE
Walsall Council,http://opendatacommunities.org/id/metropolitan-district-council/walsall ,WC162-208,31.05.24,ADULT SOCIAL CARE,5 CARE SERVICES LTD,20/05/2024,607.95,6541-Domiciliary Care,THIRD PARTY PAYMENTS,PRIVATE CONTRACTOR,REVENUE
Walsall Council,http://opendatacommunities.org/id/metropolitan-district-council/walsall ,WC162-209,31.05.24,ADULT SOCIAL CARE,5 CARE SERVICES LTD,20/05/2024,607.95,6541-Domiciliary Care,THIRD PARTY PAYMENTS,PRIVATE CONTRACTOR,REVENUE
Walsall Council,http://opendatacommunities.org/id/metropolitan-district-council/walsall ,WC162-210,31.05.24,ADULT SOCIAL CARE,5 CARE SERVICES LTD,20/05/2024,675.50,6541-Domiciliary Care,THIRD PARTY PAYMENTS,PRIVATE CONTRACTOR,REVENUE
Walsall Council,http://opendatacommunities.org/id/metropolitan-district-council/walsall ,WC162-211,31.05.24,ADULT SOCIAL CARE,5 CARE SERVICES LTD,20/05/2024,405.30,6541-Domiciliary Care,THIRD PARTY PAYMENTS,PRIVATE CONTRACTOR,REVENUE
Walsall Council,http://opendatacommunities.org/id/metropolitan-district-council/walsall ,WC162-212,31.05.24,ADULT SOCIAL CARE,5 CARE SERVICES LTD,20/05/2024,506.66,6541-Domiciliary Care,THIRD PARTY PAYMENTS,PRIVATE CONTRACTOR,REVENUE
Walsall Council,http://opendatacommunities.org/id/metropolitan-district-council/walsall ,WC162-213,31.05.24,ADULT SOCIAL CARE,5 CARE SERVICES LTD,20/05/2024,270.20,6541-Domiciliary Care,THIRD PARTY PAYMENTS,PRIVATE CONTRACTOR,REVENUE
Walsall Council,http://opendatacommunities.org/id/metropolitan-district-council/walsall ,WC162-214,31.05.24,ADULT SOCIAL CARE,5 CARE SERVICES LTD,20/05/2024,607.95,6541-Domiciliary Care,THIRD PARTY PAYMENTS,PRIVATE CONTRACTOR,REVENUE
Walsall Council,http://opendatacommunities.org/id/metropolitan-district-council/walsall ,WC162-215,31.05.24,ADULT SOCIAL CARE,5 CARE SERVICES LTD,20/05/2024,315.21,6541-Domiciliary Care,THIRD PARTY PAYMENTS,PRIVATE CONTRACTOR,REVENUE
Walsall Council,http://opendatacommunities.org/id/metropolitan-district-council/walsall ,WC162-216,31.05.24,ADULT SOCIAL CARE,5 CARE SERVICES LTD,20/05/2024,257.32,6541-Domiciliary Care,THIRD PARTY PAYMENTS,PRIVATE CONTRACTOR,REVENUE
Walsall Council,http://opendatacommunities.org/id/metropolitan-district-council/walsall ,WC162-217,31.05.24,ADULT SOCIAL CARE,5 CARE SERVICES LTD,20/05/2024,270.20,6541-Domiciliary Care,THIRD PARTY PAYMENTS,PRIVATE CONTRACTOR,REVENUE
Walsall Council,http://opendatacommunities.org/id/metropolitan-district-council/walsall ,WC162-218,31.05.24,ADULT SOCIAL CARE,5 CARE SERVICES LTD,20/05/2024,337.80,6541-Domiciliary Care,THIRD PARTY PAYMENTS,PRIVATE CONTRACTOR,REVENUE
Walsall Council,http://opendatacommunities.org/id/metropolitan-district-council/walsall ,WC162-219,31.05.24,ADULT SOCIAL CARE,5 CARE SERVICES LTD,20/05/2024,540.40,6541-Domiciliary Care,THIRD PARTY PAYMENTS,PRIVATE CONTRACTOR,REVENUE
Walsall Council,http://opendatacommunities.org/id/metropolitan-district-council/walsall ,WC162-220,31.05.24,ADULT SOCIAL CARE,5 CARE SERVICES LTD,20/05/2024,540.40,6541-Domiciliary Care,THIRD PARTY PAYMENTS,PRIVATE CONTRACTOR,REVENUE
Walsall Council,http://opendatacommunities.org/id/metropolitan-district-council/walsall ,WC162-221,31.05.24,ADULT SOCIAL CARE,5 CARE SERVICES LTD,20/05/2024,945.70,6541-Domiciliary Care,THIRD PARTY PAYMENTS,PRIVATE CONTRACTOR,REVENUE
Walsall Council,http://opendatacommunities.org/id/metropolitan-district-council/walsall ,WC162-222,31.05.24,ADULT SOCIAL CARE,5 CARE SERVICES LTD,29/05/2024,"-3,037.95",6554-Professional Services-Priv Contractor & Other Agencies,THIRD PARTY PAYMENTS,PRIVATE CONTRACTOR,REVENUE
Walsall Council,http://opendatacommunities.org/id/metropolitan-district-council/walsall ,WC162-223,31.05.24,ADULT SOCIAL CARE,5 CARE SERVICES LTD,29/05/2024,"2,431.80",6554-Professional Services-Priv Contractor & Other Agencies,THIRD PARTY PAYMENTS,PRIVATE CONTRACTOR,REVENUE
Walsall Council,http://opendatacommunities.org/id/metropolitan-district-council/walsall ,WC162-224,31.05.24,ADULT SOCIAL CARE,5 CARE SERVICES LTD,29/05/2024,347.44,6554-Professional Services-Priv Contractor & Other Agencies,THIRD PARTY PAYMENTS,PRIVATE CONTRACTOR,REVENUE
Walsall Council,http://opendatacommunities.org/id/metropolitan-district-council/walsall ,WC162-225,31.05.24,ADULT SOCIAL CARE,5 CARE SERVICES LTD,29/05/2024,318.45,6554-Professional Services-Priv Contractor & Other Agencies,THIRD PARTY PAYMENTS,PRIVATE CONTRACTOR,REVENUE
Walsall Council,http://opendatacommunities.org/id/metropolitan-district-council/walsall ,WC162-226,31.05.24,ADULT SOCIAL CARE,5 CARE SERVICES LTD,29/05/2024,554.99,6554-Professional Services-Priv Contractor & Other Agencies,THIRD PARTY PAYMENTS,PRIVATE CONTRACTOR,REVENUE
Walsall Council,http://opendatacommunities.org/id/metropolitan-district-council/walsall ,WC162-227,31.05.24,ADULT SOCIAL CARE,5 CARE SERVICES LTD,29/05/2024,675.64,6554-Professional Services-Priv Contractor & Other Agencies,THIRD PARTY PAYMENTS,PRIVATE CONTRACTOR,REVENUE
Walsall Council,http://opendatacommunities.org/id/metropolitan-district-council/walsall ,WC162-228,31.05.24,ADULT SOCIAL CARE,5 CARE SERVICES LTD,29/05/2024,810.88,6554-Professional Services-Priv Contractor & Other Agencies,THIRD PARTY PAYMENTS,PRIVATE CONTRACTOR,REVENUE
Walsall Council,http://opendatacommunities.org/id/metropolitan-district-council/walsall ,WC162-229,31.05.24,ADULT SOCIAL CARE,5 CARE SERVICES LTD,29/05/2024,839.55,6554-Professional Services-Priv Contractor & Other Agencies,THIRD PARTY PAYMENTS,PRIVATE CONTRACTOR,REVENUE
Walsall Council,http://opendatacommunities.org/id/metropolitan-district-council/walsall ,WC162-230,31.05.24,ADULT SOCIAL CARE,5 CARE SERVICES LTD,29/05/2024,"2,431.80",6554-Professional Services-Priv Contractor & Other Agencies,THIRD PARTY PAYMENTS,PRIVATE CONTRACTOR,REVENUE
Walsall Council,http://opendatacommunities.org/id/metropolitan-district-council/walsall ,WC162-231,31.05.24,ADULT SOCIAL CARE,5 CARE SERVICES LTD,29/05/2024,"2,084.40",6554-Professional Services-Priv Contractor & Other Agencies,THIRD PARTY PAYMENTS,PRIVATE CONTRACTOR,REVENUE
Walsall Council,http://opendatacommunities.org/id/metropolitan-district-council/walsall ,WC162-232,31.05.24,ADULT SOCIAL CARE,5 CARE SERVICES LTD,29/05/2024,"1,216.04",6554-Professional Services-Priv Contractor & Other Agencies,THIRD PARTY PAYMENTS,PRIVATE CONTRACTOR,REVENUE
Walsall Council,http://opendatacommunities.org/id/metropolitan-district-council/walsall ,WC162-233,31.05.24,ADULT SOCIAL CARE,5 CARE SERVICES LTD,29/05/2024,386.08,6554-Professional Services-Priv Contractor & Other Agencies,THIRD PARTY PAYMENTS,PRIVATE CONTRACTOR,REVENUE
Walsall Council,http://opendatacommunities.org/id/metropolitan-district-council/walsall ,WC162-234,31.05.24,ADULT SOCIAL CARE,5 CARE SERVICES LTD,29/05/2024,"1,138.83",6554-Professional Services-Priv Contractor & Other Agencies,THIRD PARTY PAYMENTS,PRIVATE CONTRACTOR,REVENUE
Walsall Council,http://opendatacommunities.org/id/metropolitan-district-council/walsall ,WC162-235,31.05.24,ADULT SOCIAL CARE,5 CARE SERVICES LTD,29/05/2024,887.90,6554-Professional Services-Priv Contractor & Other Agencies,THIRD PARTY PAYMENTS,PRIVATE CONTRACTOR,REVENUE
Walsall Council,http://opendatacommunities.org/id/metropolitan-district-council/walsall ,WC162-236,31.05.24,ADULT SOCIAL CARE,5 CARE SERVICES LTD,29/05/2024,"2,431.80",6554-Professional Services-Priv Contractor & Other Agencies,THIRD PARTY PAYMENTS,PRIVATE CONTRACTOR,REVENUE
Walsall Council,http://opendatacommunities.org/id/metropolitan-district-council/walsall ,WC162-237,31.05.24,ADULT SOCIAL CARE,5 CARE SERVICES LTD,29/05/2024,289.50,6554-Professional Services-Priv Contractor & Other Agencies,THIRD PARTY PAYMENTS,PRIVATE CONTRACTOR,REVENUE
Walsall Council,http://opendatacommunities.org/id/metropolitan-district-council/walsall ,WC162-238,31.05.24,ADULT SOCIAL CARE,5 CARE SERVICES LTD,29/05/2024,"2,431.80",6554-Professional Services-Priv Contractor & Other Agencies,THIRD PARTY PAYMENTS,PRIVATE CONTRACTOR,REVENUE
Walsall Council,http://opendatacommunities.org/id/metropolitan-district-council/walsall ,WC162-239,31.05.24,ADULT SOCIAL CARE,5 CARE SERVICES LTD,29/05/2024,"1,080.80",6554-Professional Services-Priv Contractor & Other Agencies,THIRD PARTY PAYMENTS,PRIVATE CONTRACTOR,REVENUE
Walsall Council,http://opendatacommunities.org/id/metropolitan-district-council/walsall ,WC162-240,31.05.24,ADULT SOCIAL CARE,5 CARE SERVICES LTD,29/05/2024,714.10,6554-Professional Services-Priv Contractor & Other Agencies,THIRD PARTY PAYMENTS,PRIVATE CONTRACTOR,REVENUE
Walsall Council,http://opendatacommunities.org/id/metropolitan-district-council/walsall ,WC162-241,31.05.24,ADULT SOCIAL CARE,5 CARE SERVICES LTD,29/05/2024,386.00,6554-Professional Services-Priv Contractor & Other Agencies,THIRD PARTY PAYMENTS,PRIVATE CONTRACTOR,REVENUE
Walsall Council,http://opendatacommunities.org/id/metropolitan-district-council/walsall ,WC162-242,31.05.24,ADULT SOCIAL CARE,5 CARE SERVICES LTD,29/05/2024,386.00,6554-Professional Services-Priv Contractor & Other Agencies,THIRD PARTY PAYMENTS,PRIVATE CONTRACTOR,REVENUE
Walsall Council,http://opendatacommunities.org/id/metropolitan-district-council/walsall ,WC162-243,31.05.24,ADULT SOCIAL CARE,5 CARE SERVICES LTD,29/05/2024,270.24,6554-Professional Services-Priv Contractor & Other Agencies,THIRD PARTY PAYMENTS,PRIVATE CONTRACTOR,REVENUE
Walsall Council,http://opendatacommunities.org/id/metropolitan-district-council/walsall ,WC162-244,31.05.24,ADULT SOCIAL CARE,5 CARE SERVICES LTD,29/05/2024,390.87,6554-Professional Services-Priv Contractor & Other Agencies,THIRD PARTY PAYMENTS,PRIVATE CONTRACTOR,REVENUE
Walsall Council,http://opendatacommunities.org/id/metropolitan-district-council/walsall ,WC162-245,31.05.24,ADULT SOCIAL CARE,5 CARE SERVICES LTD,29/05/2024,"1,862.45",6554-Professional Services-Priv Contractor & Other Agencies,THIRD PARTY PAYMENTS,PRIVATE CONTRACTOR,REVENUE
Walsall Council,http://opendatacommunities.org/id/metropolitan-district-council/walsall ,WC162-246,31.05.24,ADULT SOCIAL CARE,5 CARE SERVICES LTD,29/05/2024,275.08,6554-Professional Services-Priv Contractor & Other Agencies,THIRD PARTY PAYMENTS,PRIVATE CONTRACTOR,REVENUE
Walsall Council,http://opendatacommunities.org/id/metropolitan-district-council/walsall ,WC162-247,31.05.24,ADULT SOCIAL CARE,5 CARE SERVICES LTD,29/05/2024,550.00,6554-Professional Services-Priv Contractor & Other Agencies,THIRD PARTY PAYMENTS,PRIVATE CONTRACTOR,REVENUE
Walsall Council,http://opendatacommunities.org/id/metropolitan-district-council/walsall ,WC162-248,31.05.24,ADULT SOCIAL CARE,5 CARE SERVICES LTD,29/05/2024,"1,129.05",6554-Professional Services-Priv Contractor & Other Agencies,THIRD PARTY PAYMENTS,PRIVATE CONTRACTOR,REVENUE
Walsall Council,http://opendatacommunities.org/id/metropolitan-district-council/walsall ,WC162-249,31.05.24,ADULT SOCIAL CARE,5 CARE SERVICES LTD,01/05/2024,"1,449.00",6554-Professional Services-Priv Contractor & Other Agencies,THIRD PARTY PAYMENTS,PRIVATE CONTRACTOR,REVENUE
Walsall Council,http://opendatacommunities.org/id/metropolitan-district-council/walsall ,WC162-250,31.05.24,CHILDRENS,5 CARE SERVICES LTD,01/05/2024,839.55,6220-Professional Fees & Services,SUPPLIES & SERVICES,SERVICES,REVENUE
Walsall Council,http://opendatacommunities.org/id/metropolitan-district-council/walsall ,WC162-251,31.05.24,CHILDRENS,5 CARE SERVICES LTD,16/05/2024,"1,852.80",6220-Professional Fees & Services,SUPPLIES & SERVICES,SERVICES,REVENUE
Walsall Council,http://opendatacommunities.org/id/metropolitan-district-council/walsall ,WC162-252,31.05.24,CHILDRENS,5 CARE SERVICES LTD,16/05/2024,458.38,6220-Professional Fees & Services,SUPPLIES & SERVICES,SERVICES,REVENUE
Walsall Council,http://opendatacommunities.org/id/metropolitan-district-council/walsall ,WC162-253,31.05.24,CHILDRENS,5 CARE SERVICES LTD,16/05/2024,386.00,6220-Professional Fees & Services,SUPPLIES & SERVICES,SERVICES,REVENUE
Walsall Council,http://opendatacommunities.org/id/metropolitan-district-council/walsall ,WC162-254,31.05.24,CHILDRENS,5 CARE SERVICES LTD,16/05/2024,"2,431.80",6220-Professional Fees & Services,SUPPLIES & SERVICES,SERVICES,REVENUE
Walsall Council,http://opendatacommunities.org/id/metropolitan-district-council/walsall ,WC162-255,31.05.24,CHILDRENS,5 CARE SERVICES LTD,30/05/2024,"1,833.50",6220-Professional Fees & Services,SUPPLIES & SERVICES,SERVICES,REVENUE
Walsall Council,http://opendatacommunities.org/id/metropolitan-district-council/walsall ,WC162-256,31.05.24,CHILDRENS,5 CARE SERVICES LTD,30/05/2024,472.85,6220-Professional Fees & Services,SUPPLIES & SERVICES,SERVICES,REVENUE
Walsall Council,http://opendatacommunities.org/id/metropolitan-district-council/walsall ,WC162-257,31.05.24,CHILDRENS,5 CARE SERVICES LTD,30/05/2024,521.10,6220-Professional Fees & Services,SUPPLIES & SERVICES,SERVICES,REVENUE
Walsall Council,http://opendatacommunities.org/id/metropolitan-district-council/walsall ,WC162-258,31.05.24,CHILDRENS,5 CARE SERVICES LTD,30/05/2024,"2,393.20",6220-Professional Fees & Services,SUPPLIES & SERVICES,SERVICES,REVENUE
Walsall Council,http://opendatacommunities.org/id/metropolitan-district-council/walsall ,WC162-259,31.05.24,ADULT SOCIAL CARE,5 CARE SERVICES LTD,01/05/2024,"1,548.00",6554-Professional Services-Priv Contractor & Other Agencies,THIRD PARTY PAYMENTS,PRIVATE CONTRACTOR,REVENUE
Walsall Council,http://opendatacommunities.org/id/metropolitan-district-council/walsall ,WC162-260,31.05.24,ADULT SOCIAL CARE,5 CARE SERVICES LTD,01/05/2024,864.00,6554-Professional Services-Priv Contractor & Other Agencies,THIRD PARTY PAYMENTS,PRIVATE CONTRACTOR,REVENUE
Walsall Council,http://opendatacommunities.org/id/metropolitan-district-council/walsall ,WC162-261,31.05.24,CHILDRENS,A D T FIRE AND SECURITY PLC,15/05/2024,"1,101.37",6223-Repair & Maintenance of Furniture & Equipment,SUPPLIES & SERVICES,EQUIPMENT FURNITURE & MATERIALS,REVENUE
Walsall Council,http://opendatacommunities.org/id/metropolitan-district-council/walsall ,WC162-262,31.05.24,"ECONOMY, ENVIRONMENT & COMMUNITIES",A F BLAKEMORE & SON LTD,01/05/2024,266.80,6413-Food & Drink Supplies,SUPPLIES & SERVICES,CATERING,REVENUE
Walsall Council,http://opendatacommunities.org/id/metropolitan-district-council/walsall ,WC162-263,31.05.24,"ECONOMY, ENVIRONMENT & COMMUNITIES",A F BLAKEMORE & SON LTD,01/05/2024,403.58,6413-Food & Drink Supplies,SUPPLIES & SERVICES,CATERING,REVENUE
Walsall Council,http://opendatacommunities.org/id/metropolitan-district-council/walsall ,WC162-264,31.05.24,"ECONOMY, ENVIRONMENT & COMMUNITIES",A F BLAKEMORE & SON LTD,16/05/2024,588.40,6413-Food & Drink Supplies,SUPPLIES & SERVICES,CATERING,REVENUE
Walsall Council,http://opendatacommunities.org/id/metropolitan-district-council/walsall ,WC162-265,31.05.24,"ECONOMY, ENVIRONMENT & COMMUNITIES",A F BLAKEMORE & SON LTD,14/05/2024,352.90,6413-Materials,SUPPLIES & SERVICES,EQUIPMENT FURNITURE & MATERIALS,REVENUE
Walsall Council,http://opendatacommunities.org/id/metropolitan-district-council/walsall ,WC162-266,31.05.24,"ECONOMY, ENVIRONMENT & COMMUNITIES",A F BLAKEMORE & SON LTD,14/05/2024,"1,580.83",6413-Materials,SUPPLIES & SERVICES,EQUIPMENT FURNITURE & MATERIALS,REVENUE
Walsall Council,http://opendatacommunities.org/id/metropolitan-district-council/walsall ,WC162-267,31.05.24,"ECONOMY, ENVIRONMENT & COMMUNITIES",A F BLAKEMORE & SON LTD,28/05/2024,"-1,156.30",6413-Food & Drink Supplies,SUPPLIES & SERVICES,CATERING,REVENUE
Walsall Council,http://opendatacommunities.org/id/metropolitan-district-council/walsall ,WC162-268,31.05.24,"ECONOMY, ENVIRONMENT & COMMUNITIES",A F BLAKEMORE & SON LTD,28/05/2024,-960.32,6413-Food & Drink Supplies,SUPPLIES & SERVICES,CATERING,REVENUE
Walsall Council,http://opendatacommunities.org/id/metropolitan-district-council/walsall ,WC162-269,31.05.24,"ECONOMY, ENVIRONMENT & COMMUNITIES",A F BLAKEMORE & SON LTD,28/05/2024,960.32,6413-Food & Drink Supplies,SUPPLIES & SERVICES,CATERING,REVENUE
Walsall Council,http://opendatacommunities.org/id/metropolitan-district-council/walsall ,WC162-270,31.05.24,"ECONOMY, ENVIRONMENT & COMMUNITIES",A F BLAKEMORE & SON LTD,28/05/2024,"1,156.30",6413-Food & Drink Supplies,SUPPLIES & SERVICES,CATERING,REVENUE
Walsall Council,http://opendatacommunities.org/id/metropolitan-district-council/walsall ,WC162-271,31.05.24,"ECONOMY, ENVIRONMENT & COMMUNITIES",A F BLAKEMORE & SON LTD,28/05/2024,268.72,6413-Food & Drink Supplies,SUPPLIES & SERVICES,CATERING,REVENUE
Walsall Council,http://opendatacommunities.org/id/metropolitan-district-council/walsall ,WC162-272,31.05.24,"ECONOMY, ENVIRONMENT & COMMUNITIES",A F BLAKEMORE & SON LTD,28/05/2024,539.25,6413-Food & Drink Supplies,SUPPLIES & SERVICES,CATERING,REVENUE
Walsall Council,http://opendatacommunities.org/id/metropolitan-district-council/walsall ,WC162-273,31.05.24,CHILDRENS,A+ TUTORING SERVICES,29/05/2024,320.00,1220-Professional Fees & Services,SUPPLIES & SERVICES,SERVICES,REVENUE
Walsall Council,http://opendatacommunities.org/id/metropolitan-district-council/walsall ,WC162-274,31.05.24,CHILDRENS,A1 WALSALL RADIO CARS,21/05/2024,"3,360.00",6241-Hire of Vehicle with Driver,TRANSPORT,DIRECT TRANSPORT COSTS,REVENUE
Walsall Council,http://opendatacommunities.org/id/metropolitan-district-council/walsall ,WC162-275,31.05.24,CHILDRENS,A1 WALSALL RADIO CARS,21/05/2024,"1,152.00",6241-Hire of Vehicle with Driver,TRANSPORT,DIRECT TRANSPORT COSTS,REVENUE
Walsall Council,http://opendatacommunities.org/id/metropolitan-district-council/walsall ,WC162-276,31.05.24,CHILDRENS,A1 WALSALL RADIO CARS,21/05/2024,996.00,6241-Hire of Vehicle with Driver,TRANSPORT,DIRECT TRANSPORT COSTS,REVENUE
Walsall Council,http://opendatacommunities.org/id/metropolitan-district-council/walsall ,WC162-277,31.05.24,CHILDRENS,A1 WALSALL RADIO CARS,21/05/2024,"1,960.00",6241-Hire of Vehicle with Driver,TRANSPORT,DIRECT TRANSPORT COSTS,REVENUE
Walsall Council,http://opendatacommunities.org/id/metropolitan-district-council/walsall ,WC162-278,31.05.24,CHILDRENS,A1 WALSALL RADIO CARS,21/05/2024,"1,660.00",6241-Hire of Vehicle with Driver,TRANSPORT,DIRECT TRANSPORT COSTS,REVENUE
Walsall Council,http://opendatacommunities.org/id/metropolitan-district-council/walsall ,WC162-279,31.05.24,CHILDRENS,A1 WALSALL RADIO CARS,21/05/2024,"2,052.00",6241-Hire of Vehicle with Driver,TRANSPORT,DIRECT TRANSPORT COSTS,REVENUE
Walsall Council,http://opendatacommunities.org/id/metropolitan-district-council/walsall ,WC162-280,31.05.24,CHILDRENS,A1 WALSALL RADIO CARS,21/05/2024,"1,280.00",6241-Hire of Vehicle with Driver,TRANSPORT,DIRECT TRANSPORT COSTS,REVENUE
Walsall Council,http://opendatacommunities.org/id/metropolitan-district-council/walsall ,WC162-281,31.05.24,CHILDRENS,A1 WALSALL RADIO CARS,21/05/2024,336.00,6241-Hire of Vehicle with Driver,TRANSPORT,DIRECT TRANSPORT COSTS,REVENUE
Walsall Council,http://opendatacommunities.org/id/metropolitan-district-council/walsall ,WC162-282,31.05.24,CHILDRENS,A1 WALSALL RADIO CARS,21/05/2024,"1,980.00",6241-Hire of Vehicle with Driver,TRANSPORT,DIRECT TRANSPORT COSTS,REVENUE
Walsall Council,http://opendatacommunities.org/id/metropolitan-district-council/walsall ,WC162-283,31.05.24,CHILDRENS,A1 WALSALL RADIO CARS,21/05/2024,"2,100.00",6241-Hire of Vehicle with Driver,TRANSPORT,DIRECT TRANSPORT COSTS,REVENUE
Walsall Council,http://opendatacommunities.org/id/metropolitan-district-council/walsall ,WC162-284,31.05.24,"ECONOMY, ENVIRONMENT & COMMUNITIES",AAINA COMMUNITY HUB,10/05/2024,"1,658.80",6430-Grants to Other Orgs,SUPPLIES & SERVICES,GRANTS (EXP) & SUBSCRIPTIONS,REVENUE
Walsall Council,http://opendatacommunities.org/id/metropolitan-district-council/walsall ,WC162-285,31.05.24,"ECONOMY, ENVIRONMENT & COMMUNITIES",AAINA COMMUNITY HUB,15/05/2024,"1,658.80",6430-Grants to Other Orgs,SUPPLIES & SERVICES,GRANTS (EXP) & SUBSCRIPTIONS,REVENUE
Walsall Council,http://opendatacommunities.org/id/metropolitan-district-council/walsall ,WC162-286,31.05.24,RESOURCES AND TRANSFORMATION,AAINA COMMUNITY HUB,21/05/2024,370.00,6610-Hire of Room,SUPPLIES & SERVICES,SERVICES,REVENUE
Walsall Council,http://opendatacommunities.org/id/metropolitan-district-council/walsall ,WC162-287,31.05.24,ADULT SOCIAL CARE,REDACTED,01/05/2024,942.80,6541-Direct Payment,THIRD PARTY PAYMENTS,PRIVATE CONTRACTOR,REVENUE
Walsall Council,http://opendatacommunities.org/id/metropolitan-district-council/walsall ,WC162-288,31.05.24,CHILDRENS,ABACUS FOSTERING LTD,14/05/2024,"2,874.56",6223-Independent Foster Care-Oth Agency Provision,THIRD PARTY PAYMENTS,PRIVATE CONTRACTOR,REVENUE
Walsall Council,http://opendatacommunities.org/id/metropolitan-district-council/walsall ,WC162-289,31.05.24,CHILDRENS,ABACUS FOSTERING LTD,14/05/2024,"3,261.44",6223-Independent Foster Care-Oth Agency Provision,THIRD PARTY PAYMENTS,PRIVATE CONTRACTOR,REVENUE
Walsall Council,http://opendatacommunities.org/id/metropolitan-district-council/walsall ,WC162-290,31.05.24,CHILDRENS,ABACUS FOSTERING LTD,14/05/2024,"3,098.40",6223-Independent Foster Care-Oth Agency Provision,THIRD PARTY PAYMENTS,PRIVATE CONTRACTOR,REVENUE
Walsall Council,http://opendatacommunities.org/id/metropolitan-district-council/walsall ,WC162-291,31.05.24,CHILDRENS,ABACUS FOSTERING LTD,14/05/2024,"3,043.80",6223-Independent Foster Care-Oth Agency Provision,THIRD PARTY PAYMENTS,PRIVATE CONTRACTOR,REVENUE
Walsall Council,http://opendatacommunities.org/id/metropolitan-district-council/walsall ,WC162-292,31.05.24,ADULT SOCIAL CARE,ABBEY HEALTHCARE HOMES LTD,07/05/2024,"3,180.76",6541-Residential,THIRD PARTY PAYMENTS,PRIVATE CONTRACTOR,REVENUE
Walsall Council,http://opendatacommunities.org/id/metropolitan-district-council/walsall ,WC162-293,31.05.24,ADULT SOCIAL CARE,ABBEY HEALTHCARE HOMES LTD,07/05/2024,"4,000.00",6541-Residential,THIRD PARTY PAYMENTS,PRIVATE CONTRACTOR,REVENUE
Walsall Council,http://opendatacommunities.org/id/metropolitan-district-council/walsall ,WC162-294,31.05.24,ADULT SOCIAL CARE,ABBEY HEALTHCARE HOMES LTD,07/05/2024,"3,180.76",6541-Residential,THIRD PARTY PAYMENTS,PRIVATE CONTRACTOR,REVENUE
Walsall Council,http://opendatacommunities.org/id/metropolitan-district-council/walsall ,WC162-295,31.05.24,ADULT SOCIAL CARE,ABBEY HEALTHCARE HOMES LTD,07/05/2024,"1,216.16",6541-Residential,THIRD PARTY PAYMENTS,PRIVATE CONTRACTOR,REVENUE
Walsall Council,http://opendatacommunities.org/id/metropolitan-district-council/walsall ,WC162-296,31.05.24,ADULT SOCIAL CARE,ABBEY HEALTHCARE HOMES LTD,07/05/2024,"1,306.76",6541-Residential,THIRD PARTY PAYMENTS,PRIVATE CONTRACTOR,REVENUE
Walsall Council,http://opendatacommunities.org/id/metropolitan-district-council/walsall ,WC162-297,31.05.24,CHILDRENS,ABC DAY NURSERY (WILLENHALL) LIMITED,29/05/2024,295.00,6223-Creche Facilities,SUPPLIES & SERVICES,SERVICES,REVENUE
Walsall Council,http://opendatacommunities.org/id/metropolitan-district-council/walsall ,WC162-298,31.05.24,ADULT SOCIAL CARE,REDACTED,01/05/2024,"2,624.44",6541-Direct Payment,THIRD PARTY PAYMENTS,PRIVATE CONTRACTOR,REVENUE
Walsall Council,http://opendatacommunities.org/id/metropolitan-district-council/walsall ,WC162-299,31.05.24,"ECONOMY, ENVIRONMENT & COMMUNITIES",REDACTED,07/05/2024,"1,250.00",6430-Grants to Other Orgs,SUPPLIES & SERVICES,GRANTS (EXP) & SUBSCRIPTIONS,REVENUE
Walsall Council,http://opendatacommunities.org/id/metropolitan-district-council/walsall ,WC162-300,31.05.24,ADULT SOCIAL CARE,ABILITY HEALTHCARE CANNOCK LTD,01/05/2024,648.00,6541-Domiciliary Care,THIRD PARTY PAYMENTS,PRIVATE CONTRACTOR,REVENUE
Walsall Council,http://opendatacommunities.org/id/metropolitan-district-council/walsall ,WC162-301,31.05.24,ADULT SOCIAL CARE,ABILITY HEALTHCARE CANNOCK LTD,01/05/2024,"2,457.00",6541-Domiciliary Care,THIRD PARTY PAYMENTS,PRIVATE CONTRACTOR,REVENUE
Walsall Council,http://opendatacommunities.org/id/metropolitan-district-council/walsall ,WC162-302,31.05.24,ADULT SOCIAL CARE,ABILITY HEALTHCARE CANNOCK LTD,01/05/2024,"1,194.00",6541-Domiciliary Care,THIRD PARTY PAYMENTS,PRIVATE CONTRACTOR,REVENUE
Walsall Council,http://opendatacommunities.org/id/metropolitan-district-council/walsall ,WC162-303,31.05.24,ADULT SOCIAL CARE,ABILITY HEALTHCARE CANNOCK LTD,01/05/2024,"2,052.40",6541-Domiciliary Care,THIRD PARTY PAYMENTS,PRIVATE CONTRACTOR,REVENUE
Walsall Council,http://opendatacommunities.org/id/metropolitan-district-council/walsall ,WC162-304,31.05.24,ADULT SOCIAL CARE,ABILITY HEALTHCARE CANNOCK LTD,01/05/2024,"2,052.40",6541-Domiciliary Care,THIRD PARTY PAYMENTS,PRIVATE CONTRACTOR,REVENUE
Walsall Council,http://opendatacommunities.org/id/metropolitan-district-council/walsall ,WC162-305,31.05.24,ADULT SOCIAL CARE,ABILITY HEALTHCARE CANNOCK LTD,01/05/2024,"1,332.40",6541-Domiciliary Care,THIRD PARTY PAYMENTS,PRIVATE CONTRACTOR,REVENUE
Walsall Council,http://opendatacommunities.org/id/metropolitan-district-council/walsall ,WC162-306,31.05.24,ADULT SOCIAL CARE,ABILITY HEALTHCARE CANNOCK LTD,01/05/2024,"1,512.00",6541-Domiciliary Care,THIRD PARTY PAYMENTS,PRIVATE CONTRACTOR,REVENUE
Walsall Council,http://opendatacommunities.org/id/metropolitan-district-council/walsall ,WC162-307,31.05.24,ADULT SOCIAL CARE,ABILITY HEALTHCARE CANNOCK LTD,01/05/2024,"2,052.40",6541-Domiciliary Care,THIRD PARTY PAYMENTS,PRIVATE CONTRACTOR,REVENUE
Walsall Council,http://opendatacommunities.org/id/metropolitan-district-council/walsall ,WC162-308,31.05.24,ADULT SOCIAL CARE,ABILITY HEALTHCARE CANNOCK LTD,01/05/2024,894.00,6541-Domiciliary Care,THIRD PARTY PAYMENTS,PRIVATE CONTRACTOR,REVENUE
Walsall Council,http://opendatacommunities.org/id/metropolitan-district-council/walsall ,WC162-309,31.05.24,ADULT SOCIAL CARE,ABILITY HEALTHCARE CANNOCK LTD,01/05/2024,"1,660.50",6541-Domiciliary Care,THIRD PARTY PAYMENTS,PRIVATE CONTRACTOR,REVENUE
Walsall Council,http://opendatacommunities.org/id/metropolitan-district-council/walsall ,WC162-310,31.05.24,ADULT SOCIAL CARE,ABILITY HEALTHCARE CANNOCK LTD,01/05/2024,"1,331.10",6541-Domiciliary Care,THIRD PARTY PAYMENTS,PRIVATE CONTRACTOR,REVENUE
Walsall Council,http://opendatacommunities.org/id/metropolitan-district-council/walsall ,WC162-311,31.05.24,ADULT SOCIAL CARE,ABILITY HEALTHCARE CANNOCK LTD,01/05/2024,"2,308.95",6541-Domiciliary Care,THIRD PARTY PAYMENTS,PRIVATE CONTRACTOR,REVENUE
Walsall Council,http://opendatacommunities.org/id/metropolitan-district-council/walsall ,WC162-312,31.05.24,ADULT SOCIAL CARE,ABILITY HEALTHCARE CANNOCK LTD,01/05/2024,"2,021.80",6541-Domiciliary Care,THIRD PARTY PAYMENTS,PRIVATE CONTRACTOR,REVENUE
Walsall Council,http://opendatacommunities.org/id/metropolitan-district-council/walsall ,WC162-313,31.05.24,ADULT SOCIAL CARE,ABILITY HEALTHCARE CANNOCK LTD,01/05/2024,"2,455.55",6541-Domiciliary Care,THIRD PARTY PAYMENTS,PRIVATE CONTRACTOR,REVENUE
Walsall Council,http://opendatacommunities.org/id/metropolitan-district-council/walsall ,WC162-314,31.05.24,ADULT SOCIAL CARE,ABILITY HEALTHCARE CANNOCK LTD,01/05/2024,"1,729.95",6541-Domiciliary Care,THIRD PARTY PAYMENTS,PRIVATE CONTRACTOR,REVENUE
Walsall Council,http://opendatacommunities.org/id/metropolitan-district-council/walsall ,WC162-315,31.05.24,ADULT SOCIAL CARE,ABILITY HEALTHCARE CANNOCK LTD,01/05/2024,"2,308.95",6541-Domiciliary Care,THIRD PARTY PAYMENTS,PRIVATE CONTRACTOR,REVENUE
Walsall Council,http://opendatacommunities.org/id/metropolitan-district-council/walsall ,WC162-316,31.05.24,ADULT SOCIAL CARE,ABILITY HEALTHCARE CANNOCK LTD,01/05/2024,"2,308.95",6541-Domiciliary Care,THIRD PARTY PAYMENTS,PRIVATE CONTRACTOR,REVENUE
Walsall Council,http://opendatacommunities.org/id/metropolitan-district-council/walsall ,WC162-317,31.05.24,ADULT SOCIAL CARE,ABILITY HEALTHCARE CANNOCK LTD,01/05/2024,"3,591.70",6541-Domiciliary Care,THIRD PARTY PAYMENTS,PRIVATE CONTRACTOR,REVENUE
Walsall Council,http://opendatacommunities.org/id/metropolitan-district-council/walsall ,WC162-318,31.05.24,ADULT SOCIAL CARE,ABILITY HEALTHCARE CANNOCK LTD,01/05/2024,"1,345.75",6541-Domiciliary Care,THIRD PARTY PAYMENTS,PRIVATE CONTRACTOR,REVENUE
Walsall Council,http://opendatacommunities.org/id/metropolitan-district-council/walsall ,WC162-319,31.05.24,ADULT SOCIAL CARE,ABILITY HEALTHCARE CANNOCK LTD,01/05/2024,"2,308.95",6541-Domiciliary Care,THIRD PARTY PAYMENTS,PRIVATE CONTRACTOR,REVENUE
Walsall Council,http://opendatacommunities.org/id/metropolitan-district-council/walsall ,WC162-320,31.05.24,ADULT SOCIAL CARE,ABILITY HEALTHCARE CANNOCK LTD,01/05/2024,"2,822.05",6541-Domiciliary Care,THIRD PARTY PAYMENTS,PRIVATE CONTRACTOR,REVENUE
Walsall Council,http://opendatacommunities.org/id/metropolitan-district-council/walsall ,WC162-321,31.05.24,ADULT SOCIAL CARE,ABILITY HEALTHCARE CANNOCK LTD,01/05/2024,"2,345.60",6541-Domiciliary Care,THIRD PARTY PAYMENTS,PRIVATE CONTRACTOR,REVENUE
Walsall Council,http://opendatacommunities.org/id/metropolitan-district-council/walsall ,WC162-322,31.05.24,ADULT SOCIAL CARE,ABILITY HEALTHCARE CANNOCK LTD,01/05/2024,"2,308.95",6541-Domiciliary Care,THIRD PARTY PAYMENTS,PRIVATE CONTRACTOR,REVENUE
Walsall Council,http://opendatacommunities.org/id/metropolitan-district-council/walsall ,WC162-323,31.05.24,ADULT SOCIAL CARE,ABILITY HEALTHCARE CANNOCK LTD,01/05/2024,"1,665.30",6541-Domiciliary Care,THIRD PARTY PAYMENTS,PRIVATE CONTRACTOR,REVENUE
Walsall Council,http://opendatacommunities.org/id/metropolitan-district-council/walsall ,WC162-324,31.05.24,ADULT SOCIAL CARE,ABILITY HEALTHCARE CANNOCK LTD,01/05/2024,"1,152.20",6541-Domiciliary Care,THIRD PARTY PAYMENTS,PRIVATE CONTRACTOR,REVENUE
Walsall Council,http://opendatacommunities.org/id/metropolitan-district-council/walsall ,WC162-325,31.05.24,ADULT SOCIAL CARE,ABILITY HEALTHCARE CANNOCK LTD,01/05/2024,"1,665.30",6541-Domiciliary Care,THIRD PARTY PAYMENTS,PRIVATE CONTRACTOR,REVENUE
Walsall Council,http://opendatacommunities.org/id/metropolitan-district-council/walsall ,WC162-326,31.05.24,ADULT SOCIAL CARE,ABILITY HEALTHCARE CANNOCK LTD,01/05/2024,"2,308.95",6541-Domiciliary Care,THIRD PARTY PAYMENTS,PRIVATE CONTRACTOR,REVENUE
Walsall Council,http://opendatacommunities.org/id/metropolitan-district-council/walsall ,WC162-327,31.05.24,ADULT SOCIAL CARE,ABILITY HEALTHCARE CANNOCK LTD,01/05/2024,429.10,6541-Domiciliary Care,THIRD PARTY PAYMENTS,PRIVATE CONTRACTOR,REVENUE
Walsall Council,http://opendatacommunities.org/id/metropolitan-district-council/walsall ,WC162-328,31.05.24,ADULT SOCIAL CARE,ABILITY HEALTHCARE CANNOCK LTD,01/05/2024,"1,217.95",6541-Domiciliary Care,THIRD PARTY PAYMENTS,PRIVATE CONTRACTOR,REVENUE
Walsall Council,http://opendatacommunities.org/id/metropolitan-district-council/walsall ,WC162-329,31.05.24,ADULT SOCIAL CARE,ABILITY HEALTHCARE CANNOCK LTD,01/05/2024,"1,471.75",6541-Domiciliary Care,THIRD PARTY PAYMENTS,PRIVATE CONTRACTOR,REVENUE
Walsall Council,http://opendatacommunities.org/id/metropolitan-district-council/walsall ,WC162-330,31.05.24,ADULT SOCIAL CARE,ABILITY HEALTHCARE CANNOCK LTD,01/05/2024,"1,539.30",6541-Domiciliary Care,THIRD PARTY PAYMENTS,PRIVATE CONTRACTOR,REVENUE
Walsall Council,http://opendatacommunities.org/id/metropolitan-district-council/walsall ,WC162-331,31.05.24,ADULT SOCIAL CARE,ABILITY HEALTHCARE CANNOCK LTD,01/05/2024,"1,728.00",6541-Domiciliary Care,THIRD PARTY PAYMENTS,PRIVATE CONTRACTOR,REVENUE
Walsall Council,http://opendatacommunities.org/id/metropolitan-district-council/walsall ,WC162-332,31.05.24,ADULT SOCIAL CARE,ABILITY HEALTHCARE CANNOCK LTD,29/05/2024,477.10,6541-Domiciliary Care,THIRD PARTY PAYMENTS,PRIVATE CONTRACTOR,REVENUE
Walsall Council,http://opendatacommunities.org/id/metropolitan-district-council/walsall ,WC162-333,31.05.24,ADULT SOCIAL CARE,ABILITY HEALTHCARE CANNOCK LTD,29/05/2024,"1,090.64",6541-Domiciliary Care,THIRD PARTY PAYMENTS,PRIVATE CONTRACTOR,REVENUE
Walsall Council,http://opendatacommunities.org/id/metropolitan-district-council/walsall ,WC162-334,31.05.24,ADULT SOCIAL CARE,ABILITY HEALTHCARE CANNOCK LTD,29/05/2024,588.72,6541-Domiciliary Care,THIRD PARTY PAYMENTS,PRIVATE CONTRACTOR,REVENUE
Walsall Council,http://opendatacommunities.org/id/metropolitan-district-council/walsall ,WC162-335,31.05.24,ADULT SOCIAL CARE,ABILITY HEALTHCARE CANNOCK LTD,29/05/2024,"2,161.60",6541-Domiciliary Care,THIRD PARTY PAYMENTS,PRIVATE CONTRACTOR,REVENUE
Walsall Council,http://opendatacommunities.org/id/metropolitan-district-council/walsall ,WC162-336,31.05.24,ADULT SOCIAL CARE,ABILITY HEALTHCARE CANNOCK LTD,29/05/2024,"1,621.20",6541-Domiciliary Care,THIRD PARTY PAYMENTS,PRIVATE CONTRACTOR,REVENUE
Walsall Council,http://opendatacommunities.org/id/metropolitan-district-council/walsall ,WC162-337,31.05.24,ADULT SOCIAL CARE,ABILITY HEALTHCARE CANNOCK LTD,29/05/2024,347.40,6541-Domiciliary Care,THIRD PARTY PAYMENTS,PRIVATE CONTRACTOR,REVENUE
Walsall Council,http://opendatacommunities.org/id/metropolitan-district-council/walsall ,WC162-338,31.05.24,ADULT SOCIAL CARE,ABILITY HEALTHCARE CANNOCK LTD,29/05/2024,"1,440.88",6541-Domiciliary Care,THIRD PARTY PAYMENTS,PRIVATE CONTRACTOR,REVENUE
Walsall Council,http://opendatacommunities.org/id/metropolitan-district-council/walsall ,WC162-339,31.05.24,ADULT SOCIAL CARE,ABILITY HEALTHCARE CANNOCK LTD,29/05/2024,"2,161.60",6541-Domiciliary Care,THIRD PARTY PAYMENTS,PRIVATE CONTRACTOR,REVENUE
Walsall Council,http://opendatacommunities.org/id/metropolitan-district-council/walsall ,WC162-340,31.05.24,ADULT SOCIAL CARE,ABILITY HEALTHCARE CANNOCK LTD,29/05/2024,"2,161.60",6541-Domiciliary Care,THIRD PARTY PAYMENTS,PRIVATE CONTRACTOR,REVENUE
Walsall Council,http://opendatacommunities.org/id/metropolitan-district-council/walsall ,WC162-341,31.05.24,ADULT SOCIAL CARE,ABILITY HEALTHCARE CANNOCK LTD,29/05/2024,"1,800.96",6541-Domiciliary Care,THIRD PARTY PAYMENTS,PRIVATE CONTRACTOR,REVENUE
Walsall Council,http://opendatacommunities.org/id/metropolitan-district-council/walsall ,WC162-342,31.05.24,ADULT SOCIAL CARE,ABILITY HEALTHCARE CANNOCK LTD,29/05/2024,"1,260.56",6541-Domiciliary Care,THIRD PARTY PAYMENTS,PRIVATE CONTRACTOR,REVENUE
Walsall Council,http://opendatacommunities.org/id/metropolitan-district-council/walsall ,WC162-343,31.05.24,ADULT SOCIAL CARE,ABILITY HEALTHCARE CANNOCK LTD,29/05/2024,"1,800.96",6541-Domiciliary Care,THIRD PARTY PAYMENTS,PRIVATE CONTRACTOR,REVENUE
Walsall Council,http://opendatacommunities.org/id/metropolitan-district-council/walsall ,WC162-344,31.05.24,ADULT SOCIAL CARE,ABILITY HEALTHCARE CANNOCK LTD,29/05/2024,"1,440.88",6541-Domiciliary Care,THIRD PARTY PAYMENTS,PRIVATE CONTRACTOR,REVENUE
Walsall Council,http://opendatacommunities.org/id/metropolitan-district-council/walsall ,WC162-345,31.05.24,ADULT SOCIAL CARE,ABILITY HEALTHCARE CANNOCK LTD,29/05/2024,"2,142.48",6541-Domiciliary Care,THIRD PARTY PAYMENTS,PRIVATE CONTRACTOR,REVENUE
Walsall Council,http://opendatacommunities.org/id/metropolitan-district-council/walsall ,WC162-346,31.05.24,ADULT SOCIAL CARE,ABILITY HEALTHCARE CANNOCK LTD,29/05/2024,"1,620.64",6541-Domiciliary Care,THIRD PARTY PAYMENTS,PRIVATE CONTRACTOR,REVENUE
Walsall Council,http://opendatacommunities.org/id/metropolitan-district-council/walsall ,WC162-347,31.05.24,ADULT SOCIAL CARE,ABILITY HEALTHCARE CANNOCK LTD,29/05/2024,"2,161.60",6541-Domiciliary Care,THIRD PARTY PAYMENTS,PRIVATE CONTRACTOR,REVENUE
Walsall Council,http://opendatacommunities.org/id/metropolitan-district-council/walsall ,WC162-348,31.05.24,ADULT SOCIAL CARE,ABILITY HEALTHCARE CANNOCK LTD,29/05/2024,"2,055.82",6541-Domiciliary Care,THIRD PARTY PAYMENTS,PRIVATE CONTRACTOR,REVENUE
Walsall Council,http://opendatacommunities.org/id/metropolitan-district-council/walsall ,WC162-349,31.05.24,ADULT SOCIAL CARE,ABILITY HEALTHCARE CANNOCK LTD,29/05/2024,"2,528.58",6541-Domiciliary Care,THIRD PARTY PAYMENTS,PRIVATE CONTRACTOR,REVENUE
Walsall Council,http://opendatacommunities.org/id/metropolitan-district-council/walsall ,WC162-350,31.05.24,ADULT SOCIAL CARE,ABILITY HEALTHCARE CANNOCK LTD,29/05/2024,"2,432.08",6541-Domiciliary Care,THIRD PARTY PAYMENTS,PRIVATE CONTRACTOR,REVENUE
Walsall Council,http://opendatacommunities.org/id/metropolitan-district-council/walsall ,WC162-351,31.05.24,ADULT SOCIAL CARE,ABILITY HEALTHCARE CANNOCK LTD,29/05/2024,"2,432.08",6541-Domiciliary Care,THIRD PARTY PAYMENTS,PRIVATE CONTRACTOR,REVENUE
Walsall Council,http://opendatacommunities.org/id/metropolitan-district-council/walsall ,WC162-352,31.05.24,ADULT SOCIAL CARE,ABILITY HEALTHCARE CANNOCK LTD,29/05/2024,994.04,6541-Domiciliary Care,THIRD PARTY PAYMENTS,PRIVATE CONTRACTOR,REVENUE
Walsall Council,http://opendatacommunities.org/id/metropolitan-district-council/walsall ,WC162-353,31.05.24,ADULT SOCIAL CARE,ABILITY HEALTHCARE CANNOCK LTD,29/05/2024,"2,972.76",6541-Domiciliary Care,THIRD PARTY PAYMENTS,PRIVATE CONTRACTOR,REVENUE
Walsall Council,http://opendatacommunities.org/id/metropolitan-district-council/walsall ,WC162-354,31.05.24,ADULT SOCIAL CARE,ABILITY HEALTHCARE CANNOCK LTD,29/05/2024,"2,973.04",6541-Domiciliary Care,THIRD PARTY PAYMENTS,PRIVATE CONTRACTOR,REVENUE
Walsall Council,http://opendatacommunities.org/id/metropolitan-district-council/walsall ,WC162-355,31.05.24,ADULT SOCIAL CARE,ABILITY HEALTHCARE CANNOCK LTD,29/05/2024,"2,470.64",6541-Domiciliary Care,THIRD PARTY PAYMENTS,PRIVATE CONTRACTOR,REVENUE
Walsall Council,http://opendatacommunities.org/id/metropolitan-district-council/walsall ,WC162-356,31.05.24,ADULT SOCIAL CARE,ABILITY HEALTHCARE CANNOCK LTD,29/05/2024,"2,432.08",6541-Domiciliary Care,THIRD PARTY PAYMENTS,PRIVATE CONTRACTOR,REVENUE
Walsall Council,http://opendatacommunities.org/id/metropolitan-district-council/walsall ,WC162-357,31.05.24,ADULT SOCIAL CARE,ABILITY HEALTHCARE CANNOCK LTD,29/05/2024,"1,621.76",6541-Domiciliary Care,THIRD PARTY PAYMENTS,PRIVATE CONTRACTOR,REVENUE
Walsall Council,http://opendatacommunities.org/id/metropolitan-district-council/walsall ,WC162-358,31.05.24,ADULT SOCIAL CARE,ABILITY HEALTHCARE CANNOCK LTD,01/05/2024,456.00,6554-Professional Services-Priv Contractor & Other Agencies,THIRD PARTY PAYMENTS,PRIVATE CONTRACTOR,REVENUE
Walsall Council,http://opendatacommunities.org/id/metropolitan-district-council/walsall ,WC162-359,31.05.24,ADULT SOCIAL CARE,ABILITY HEALTHCARE CANNOCK LTD,01/05/2024,"2,369.81",6554-Professional Services-Priv Contractor & Other Agencies,THIRD PARTY PAYMENTS,PRIVATE CONTRACTOR,REVENUE
Walsall Council,http://opendatacommunities.org/id/metropolitan-district-council/walsall ,WC162-360,31.05.24,ADULT SOCIAL CARE,ABILITY HEALTHCARE CANNOCK LTD,01/05/2024,279.00,6554-Professional Services-Priv Contractor & Other Agencies,THIRD PARTY PAYMENTS,PRIVATE CONTRACTOR,REVENUE
Walsall Council,http://opendatacommunities.org/id/metropolitan-district-council/walsall ,WC162-361,31.05.24,ADULT SOCIAL CARE,ABILITY HEALTHCARE CANNOCK LTD,01/05/2024,"2,182.95",6554-Professional Services-Priv Contractor & Other Agencies,THIRD PARTY PAYMENTS,PRIVATE CONTRACTOR,REVENUE
Walsall Council,http://opendatacommunities.org/id/metropolitan-district-council/walsall ,WC162-362,31.05.24,ADULT SOCIAL CARE,ABILITY HEALTHCARE CANNOCK LTD,01/05/2024,"1,534.95",6554-Professional Services-Priv Contractor & Other Agencies,THIRD PARTY PAYMENTS,PRIVATE CONTRACTOR,REVENUE
Walsall Council,http://opendatacommunities.org/id/metropolitan-district-council/walsall ,WC162-363,31.05.24,ADULT SOCIAL CARE,ABILITY HEALTHCARE CANNOCK LTD,01/05/2024,"1,147.95",6554-Professional Services-Priv Contractor & Other Agencies,THIRD PARTY PAYMENTS,PRIVATE CONTRACTOR,REVENUE
Walsall Council,http://opendatacommunities.org/id/metropolitan-district-council/walsall ,WC162-364,31.05.24,ADULT SOCIAL CARE,ABILITY HEALTHCARE CANNOCK LTD,01/05/2024,"1,044.40",6554-Professional Services-Priv Contractor & Other Agencies,THIRD PARTY PAYMENTS,PRIVATE CONTRACTOR,REVENUE
Walsall Council,http://opendatacommunities.org/id/metropolitan-district-council/walsall ,WC162-365,31.05.24,ADULT SOCIAL CARE,ABILITY HEALTHCARE CANNOCK LTD,01/05/2024,"1,467.30",6554-Professional Services-Priv Contractor & Other Agencies,THIRD PARTY PAYMENTS,PRIVATE CONTRACTOR,REVENUE
Walsall Council,http://opendatacommunities.org/id/metropolitan-district-council/walsall ,WC162-366,31.05.24,ADULT SOCIAL CARE,ABILITY HEALTHCARE CANNOCK LTD,01/05/2024,756.00,6554-Professional Services-Priv Contractor & Other Agencies,THIRD PARTY PAYMENTS,PRIVATE CONTRACTOR,REVENUE
Walsall Council,http://opendatacommunities.org/id/metropolitan-district-council/walsall ,WC162-367,31.05.24,ADULT SOCIAL CARE,ABILITY HEALTHCARE CANNOCK LTD,29/05/2024,607.95,6554-Professional Services-Priv Contractor & Other Agencies,THIRD PARTY PAYMENTS,PRIVATE CONTRACTOR,REVENUE
Walsall Council,http://opendatacommunities.org/id/metropolitan-district-council/walsall ,WC162-368,31.05.24,ADULT SOCIAL CARE,ABILITY HEALTHCARE CANNOCK LTD,29/05/2024,"2,084.40",6554-Professional Services-Priv Contractor & Other Agencies,THIRD PARTY PAYMENTS,PRIVATE CONTRACTOR,REVENUE
Walsall Council,http://opendatacommunities.org/id/metropolitan-district-council/walsall ,WC162-369,31.05.24,ADULT SOCIAL CARE,ABILITY HEALTHCARE CANNOCK LTD,29/05/2024,347.40,6554-Professional Services-Priv Contractor & Other Agencies,THIRD PARTY PAYMENTS,PRIVATE CONTRACTOR,REVENUE
Walsall Council,http://opendatacommunities.org/id/metropolitan-district-council/walsall ,WC162-370,31.05.24,ADULT SOCIAL CARE,ABILITY HEALTHCARE CANNOCK LTD,29/05/2024,"2,431.80",6554-Professional Services-Priv Contractor & Other Agencies,THIRD PARTY PAYMENTS,PRIVATE CONTRACTOR,REVENUE
Walsall Council,http://opendatacommunities.org/id/metropolitan-district-council/walsall ,WC162-371,31.05.24,ADULT SOCIAL CARE,ABILITY HEALTHCARE CANNOCK LTD,29/05/2024,453.55,6554-Professional Services-Priv Contractor & Other Agencies,THIRD PARTY PAYMENTS,PRIVATE CONTRACTOR,REVENUE
Walsall Council,http://opendatacommunities.org/id/metropolitan-district-council/walsall ,WC162-372,31.05.24,ADULT SOCIAL CARE,ABILITY HEALTHCARE CANNOCK LTD,29/05/2024,360.08,6554-Professional Services-Priv Contractor & Other Agencies,THIRD PARTY PAYMENTS,PRIVATE CONTRACTOR,REVENUE
Walsall Council,http://opendatacommunities.org/id/metropolitan-district-council/walsall ,WC162-373,31.05.24,ADULT SOCIAL CARE,ABILITY HEALTHCARE CANNOCK LTD,29/05/2024,386.00,6554-Professional Services-Priv Contractor & Other Agencies,THIRD PARTY PAYMENTS,PRIVATE CONTRACTOR,REVENUE
Walsall Council,http://opendatacommunities.org/id/metropolitan-district-council/walsall ,WC162-374,31.05.24,ADULT SOCIAL CARE,ABILITY HEALTHCARE CANNOCK LTD,29/05/2024,279.85,6554-Professional Services-Priv Contractor & Other Agencies,THIRD PARTY PAYMENTS,PRIVATE CONTRACTOR,REVENUE
Walsall Council,http://opendatacommunities.org/id/metropolitan-district-council/walsall ,WC162-375,31.05.24,ADULT SOCIAL CARE,ABILITY HEALTHCARE CANNOCK LTD,29/05/2024,"1,621.20",6554-Professional Services-Priv Contractor & Other Agencies,THIRD PARTY PAYMENTS,PRIVATE CONTRACTOR,REVENUE
Walsall Council,http://opendatacommunities.org/id/metropolitan-district-council/walsall ,WC162-376,31.05.24,ADULT SOCIAL CARE,ABILITY HEALTHCARE CANNOCK LTD,29/05/2024,"1,515.05",6554-Professional Services-Priv Contractor & Other Agencies,THIRD PARTY PAYMENTS,PRIVATE CONTRACTOR,REVENUE
Walsall Council,http://opendatacommunities.org/id/metropolitan-district-council/walsall ,WC162-377,31.05.24,ADULT SOCIAL CARE,ABILITY HEALTHCARE CANNOCK LTD,29/05/2024,434.25,6554-Professional Services-Priv Contractor & Other Agencies,THIRD PARTY PAYMENTS,PRIVATE CONTRACTOR,REVENUE
Walsall Council,http://opendatacommunities.org/id/metropolitan-district-council/walsall ,WC162-378,31.05.24,ADULT SOCIAL CARE,ABILITY HEALTHCARE CANNOCK LTD,29/05/2024,347.40,6554-Professional Services-Priv Contractor & Other Agencies,THIRD PARTY PAYMENTS,PRIVATE CONTRACTOR,REVENUE
Walsall Council,http://opendatacommunities.org/id/metropolitan-district-council/walsall ,WC162-379,31.05.24,"ECONOMY, ENVIRONMENT & COMMUNITIES",ABLE INVESTIGATIONS & ENFORCEMENTS LTD,09/05/2024,"-2,295.00",6440-Professional Fees & Services,SUPPLIES & SERVICES,SERVICES,REVENUE
Walsall Council,http://opendatacommunities.org/id/metropolitan-district-council/walsall ,WC162-380,31.05.24,"ECONOMY, ENVIRONMENT & COMMUNITIES",ABLE INVESTIGATIONS & ENFORCEMENTS LTD,09/05/2024,"2,295.00",6440-Professional Fees & Services,SUPPLIES & SERVICES,SERVICES,REVENUE
Walsall Council,http://opendatacommunities.org/id/metropolitan-district-council/walsall ,WC162-381,31.05.24,"ECONOMY, ENVIRONMENT & COMMUNITIES",ABLE INVESTIGATIONS & ENFORCEMENTS LTD,14/05/2024,"-6,675.00",6440-Professional Fees & Services,SUPPLIES & SERVICES,SERVICES,REVENUE
Walsall Council,http://opendatacommunities.org/id/metropolitan-district-council/walsall ,WC162-382,31.05.24,"ECONOMY, ENVIRONMENT & COMMUNITIES",ABLE INVESTIGATIONS & ENFORCEMENTS LTD,14/05/2024,"6,675.00",6440-Professional Fees & Services,SUPPLIES & SERVICES,SERVICES,REVENUE
Walsall Council,http://opendatacommunities.org/id/metropolitan-district-council/walsall ,WC162-383,31.05.24,CHILDRENS,ABLEWELL CARS,21/05/2024,"1,406.00",6241-Hire of Vehicle with Driver,TRANSPORT,DIRECT TRANSPORT COSTS,REVENUE
Walsall Council,http://opendatacommunities.org/id/metropolitan-district-council/walsall ,WC162-384,31.05.24,CHILDRENS,ABLEWELL CARS,21/05/2024,"1,200.80",6241-Hire of Vehicle with Driver,TRANSPORT,DIRECT TRANSPORT COSTS,REVENUE
Walsall Council,http://opendatacommunities.org/id/metropolitan-district-council/walsall ,WC162-385,31.05.24,CHILDRENS,ABLEWELL CARS,21/05/2024,"1,683.20",6241-Hire of Vehicle with Driver,TRANSPORT,DIRECT TRANSPORT COSTS,REVENUE
Walsall Council,http://opendatacommunities.org/id/metropolitan-district-council/walsall ,WC162-386,31.05.24,CHILDRENS,ABLEWELL CARS,21/05/2024,"2,707.50",6241-Hire of Vehicle with Driver,TRANSPORT,DIRECT TRANSPORT COSTS,REVENUE
Walsall Council,http://opendatacommunities.org/id/metropolitan-district-council/walsall ,WC162-387,31.05.24,CHILDRENS,ABS TAXIS (ALDRIDGE),21/05/2024,"3,028.00",6241-Hire of Vehicle with Driver,TRANSPORT,DIRECT TRANSPORT COSTS,REVENUE
Walsall Council,http://opendatacommunities.org/id/metropolitan-district-council/walsall ,WC162-388,31.05.24,CHILDRENS,ABS TAXIS (ALDRIDGE),21/05/2024,"1,529.50",6241-Hire of Vehicle with Driver,TRANSPORT,DIRECT TRANSPORT COSTS,REVENUE
Walsall Council,http://opendatacommunities.org/id/metropolitan-district-council/walsall ,WC162-389,31.05.24,CHILDRENS,ABS TAXIS (ALDRIDGE),21/05/2024,"1,311.44",6241-Hire of Vehicle with Driver,TRANSPORT,DIRECT TRANSPORT COSTS,REVENUE
Walsall Council,http://opendatacommunities.org/id/metropolitan-district-council/walsall ,WC162-390,31.05.24,CHILDRENS,ABS TAXIS (ALDRIDGE),21/05/2024,"1,974.00",6241-Hire of Vehicle with Driver,TRANSPORT,DIRECT TRANSPORT COSTS,REVENUE
Walsall Council,http://opendatacommunities.org/id/metropolitan-district-council/walsall ,WC162-391,31.05.24,ADULT SOCIAL CARE,ABSOLUTE CARE HOMES (CENTRAL) LTD,07/05/2024,"7,200.00",6541-Residential,THIRD PARTY PAYMENTS,PRIVATE CONTRACTOR,REVENUE
Walsall Council,http://opendatacommunities.org/id/metropolitan-district-council/walsall ,WC162-392,31.05.24,ADULT SOCIAL CARE,ABSOLUTE CARE HOMES (CENTRAL) LTD,07/05/2024,"5,197.16",6541-Nursing EMI,THIRD PARTY PAYMENTS,PRIVATE CONTRACTOR,REVENUE
Walsall Council,http://opendatacommunities.org/id/metropolitan-district-council/walsall ,WC162-393,31.05.24,ADULT SOCIAL CARE,ABSOLUTE CARE HOMES (CENTRAL) LTD,07/05/2024,"7,600.00",6541-Nursing EMI,THIRD PARTY PAYMENTS,PRIVATE CONTRACTOR,REVENUE
Walsall Council,http://opendatacommunities.org/id/metropolitan-district-council/walsall ,WC162-394,31.05.24,ADULT SOCIAL CARE,ABSOLUTE HEALTHCARE SWAN HOUSE LTD,07/05/2024,"2,244.50",6541-Residential,THIRD PARTY PAYMENTS,PRIVATE CONTRACTOR,REVENUE
Walsall Council,http://opendatacommunities.org/id/metropolitan-district-council/walsall ,WC162-395,31.05.24,ADULT SOCIAL CARE,ABSOLUTE HEALTHCARE SWAN HOUSE LTD,07/05/2024,"2,076.52",6541-Residential,THIRD PARTY PAYMENTS,PRIVATE CONTRACTOR,REVENUE
Walsall Council,http://opendatacommunities.org/id/metropolitan-district-council/walsall ,WC162-396,31.05.24,ADULT SOCIAL CARE,ABSOLUTE HEALTHCARE SWAN HOUSE LTD,07/05/2024,"3,000.00",6541-Residential EMI,THIRD PARTY PAYMENTS,PRIVATE CONTRACTOR,REVENUE
Walsall Council,http://opendatacommunities.org/id/metropolitan-district-council/walsall ,WC162-397,31.05.24,ADULT SOCIAL CARE,ABSOLUTE HEALTHCARE SWAN HOUSE LTD,07/05/2024,"2,533.66",6541-Residential EMI,THIRD PARTY PAYMENTS,PRIVATE CONTRACTOR,REVENUE
Walsall Council,http://opendatacommunities.org/id/metropolitan-district-council/walsall ,WC162-398,31.05.24,ADULT SOCIAL CARE,ABSOLUTE HEALTHCARE SWAN HOUSE LTD,07/05/2024,"3,400.00",6541-Residential EMI,THIRD PARTY PAYMENTS,PRIVATE CONTRACTOR,REVENUE
Walsall Council,http://opendatacommunities.org/id/metropolitan-district-council/walsall ,WC162-399,31.05.24,ADULT SOCIAL CARE,ABSOLUTE HEALTHCARE SWAN HOUSE LTD,07/05/2024,"2,244.50",6541-Residential,THIRD PARTY PAYMENTS,PRIVATE CONTRACTOR,REVENUE
Walsall Council,http://opendatacommunities.org/id/metropolitan-district-council/walsall ,WC162-400,31.05.24,ADULT SOCIAL CARE,ABSOLUTE HEALTHCARE SWAN HOUSE LTD,07/05/2024,"2,533.66",6541-Residential EMI,THIRD PARTY PAYMENTS,PRIVATE CONTRACTOR,REVENUE
Walsall Council,http://opendatacommunities.org/id/metropolitan-district-council/walsall ,WC162-401,31.05.24,ADULT SOCIAL CARE,ABSOLUTE HEALTHCARE SWAN HOUSE LTD,07/05/2024,"2,314.50",6541-Residential,THIRD PARTY PAYMENTS,PRIVATE CONTRACTOR,REVENUE
Walsall Council,http://opendatacommunities.org/id/metropolitan-district-council/walsall ,WC162-402,31.05.24,ADULT SOCIAL CARE,ABSOLUTE HEALTHCARE SWAN HOUSE LTD,07/05/2024,"3,600.00",6541-Residential,THIRD PARTY PAYMENTS,PRIVATE CONTRACTOR,REVENUE
Walsall Council,http://opendatacommunities.org/id/metropolitan-district-council/walsall ,WC162-403,31.05.24,ADULT SOCIAL CARE,ABSOLUTE HEALTHCARE SWAN HOUSE LTD,07/05/2024,"4,056.00",6541-Residential,THIRD PARTY PAYMENTS,PRIVATE CONTRACTOR,REVENUE
Walsall Council,http://opendatacommunities.org/id/metropolitan-district-council/walsall ,WC162-404,31.05.24,ADULT SOCIAL CARE,ABSOLUTE HEALTHCARE SWAN HOUSE LTD,07/05/2024,"-1,810.02",6541-Residential EMI,THIRD PARTY PAYMENTS,PRIVATE CONTRACTOR,REVENUE
Walsall Council,http://opendatacommunities.org/id/metropolitan-district-council/walsall ,WC162-405,31.05.24,CHILDRENS,ABSOLUTE INTERPRETING & TRANSLATIONS LTD,28/05/2024,300.00,6223-Language & Interpretation Services,SUPPLIES & SERVICES,SERVICES,REVENUE
Walsall Council,http://opendatacommunities.org/id/metropolitan-district-council/walsall ,WC162-406,31.05.24,CHILDRENS,ABSOLUTE INTERPRETING & TRANSLATIONS LTD,28/05/2024,300.00,6223-Language & Interpretation Services,SUPPLIES & SERVICES,SERVICES,REVENUE
Walsall Council,http://opendatacommunities.org/id/metropolitan-district-council/walsall ,WC162-407,31.05.24,CHILDRENS,ABSOLUTE INTERPRETING & TRANSLATIONS LTD,28/05/2024,300.00,6223-Language & Interpretation Services,SUPPLIES & SERVICES,SERVICES,REVENUE
Walsall Council,http://opendatacommunities.org/id/metropolitan-district-council/walsall ,WC162-408,31.05.24,CHILDRENS,ABSOLUTE INTERPRETING & TRANSLATIONS LTD,28/05/2024,300.00,6223-Language & Interpretation Services,SUPPLIES & SERVICES,SERVICES,REVENUE
Walsall Council,http://opendatacommunities.org/id/metropolitan-district-council/walsall ,WC162-409,31.05.24,CHILDRENS,ACADEMY 21 LTD,08/05/2024,468.00,1220-Professional Fees & Services,SUPPLIES & SERVICES,SERVICES,REVENUE
Walsall Council,http://opendatacommunities.org/id/metropolitan-district-council/walsall ,WC162-410,31.05.24,CHILDRENS,ACCALIA CARE SERVICES LTD,14/05/2024,"21,160.00",6223-External Residential Care-Oth Agency Provision,THIRD PARTY PAYMENTS,PRIVATE CONTRACTOR,REVENUE
Walsall Council,http://opendatacommunities.org/id/metropolitan-district-council/walsall ,WC162-411,31.05.24,CHILDRENS,ACCEPTING BEHAVIOUR LTD,07/05/2024,450.00,1220-Professional Fees & Services,SUPPLIES & SERVICES,SERVICES,REVENUE
Walsall Council,http://opendatacommunities.org/id/metropolitan-district-council/walsall ,WC162-412,31.05.24,CHILDRENS,ACCEPTING BEHAVIOUR LTD,07/05/2024,780.00,1220-Professional Fees & Services,SUPPLIES & SERVICES,SERVICES,REVENUE
Walsall Council,http://opendatacommunities.org/id/metropolitan-district-council/walsall ,WC162-413,31.05.24,ADULT SOCIAL CARE,ACCESS UK LTD,14/05/2024,"1,100.00",6551-Computer Equipment,SUPPLIES & SERVICES,COMMUNICATIONS & COMPUTING,REVENUE
Walsall Council,http://opendatacommunities.org/id/metropolitan-district-council/walsall ,WC162-414,31.05.24,ADULT SOCIAL CARE,ACCESS UK LTD,02/05/2024,"18,315.00",6551-Professional Fees & Services,SUPPLIES & SERVICES,SERVICES,REVENUE
Walsall Council,http://opendatacommunities.org/id/metropolitan-district-council/walsall ,WC162-415,31.05.24,ADULT SOCIAL CARE,ACCESS UK LTD,20/05/2024,-950.00,6551-Professional Fees & Services,SUPPLIES & SERVICES,SERVICES,REVENUE
Walsall Council,http://opendatacommunities.org/id/metropolitan-district-council/walsall ,WC162-416,31.05.24,ADULT SOCIAL CARE,ACCESS UK LTD,20/05/2024,950.00,6540-Postages & Courier Services,SUPPLIES & SERVICES,COMMUNICATIONS & COMPUTING,REVENUE
Walsall Council,http://opendatacommunities.org/id/metropolitan-district-council/walsall ,WC162-417,31.05.24,ADULT SOCIAL CARE,ACCESS UK LTD,20/05/2024,950.00,6551-Professional Fees & Services,SUPPLIES & SERVICES,SERVICES,REVENUE
Walsall Council,http://opendatacommunities.org/id/metropolitan-district-council/walsall ,WC162-418,31.05.24,CHILDRENS,ACCESS UK LTD,31/05/2024,"-3,205.48",6240-Fees & Licences,SUPPLIES & SERVICES,SERVICES,REVENUE
Walsall Council,http://opendatacommunities.org/id/metropolitan-district-council/walsall ,WC162-419,31.05.24,CHILDRENS,ACCESS UK LTD,31/05/2024,"39,000.00",6240-Fees & Licences,SUPPLIES & SERVICES,SERVICES,REVENUE
Walsall Council,http://opendatacommunities.org/id/metropolitan-district-council/walsall ,WC162-420,31.05.24,ADULT SOCIAL CARE,ACCORD HOUSING ASSOCIATION LIMITED - HOBS MEADOW,07/05/2024,"4,776.84",6541-Residential,THIRD PARTY PAYMENTS,PRIVATE CONTRACTOR,REVENUE
Walsall Council,http://opendatacommunities.org/id/metropolitan-district-council/walsall ,WC162-421,31.05.24,ADULT SOCIAL CARE,ACCORD HOUSING ASSOCIATION LIMITED - HOBS MEADOW,07/05/2024,"4,872.36",6541-Residential,THIRD PARTY PAYMENTS,PRIVATE CONTRACTOR,REVENUE
Walsall Council,http://opendatacommunities.org/id/metropolitan-district-council/walsall ,WC162-422,31.05.24,ADULT SOCIAL CARE,ACCORD HOUSING ASSOCIATION LIMITED - HOBS MEADOW,07/05/2024,"4,872.36",6541-Residential,THIRD PARTY PAYMENTS,PRIVATE CONTRACTOR,REVENUE
Walsall Council,http://opendatacommunities.org/id/metropolitan-district-council/walsall ,WC162-423,31.05.24,CHILDRENS,ACE CARS & MINIBUSES LTD,21/05/2024,"2,033.00",6241-Hire of Vehicle with Driver,TRANSPORT,DIRECT TRANSPORT COSTS,REVENUE
Walsall Council,http://opendatacommunities.org/id/metropolitan-district-council/walsall ,WC162-424,31.05.24,CHILDRENS,ACE CARS & MINIBUSES LTD,21/05/2024,"2,033.00",6241-Hire of Vehicle with Driver,TRANSPORT,DIRECT TRANSPORT COSTS,REVENUE
Walsall Council,http://opendatacommunities.org/id/metropolitan-district-council/walsall ,WC162-425,31.05.24,CHILDRENS,ACE CARS & MINIBUSES LTD,21/05/2024,"2,033.00",6241-Hire of Vehicle with Driver,TRANSPORT,DIRECT TRANSPORT COSTS,REVENUE
Walsall Council,http://opendatacommunities.org/id/metropolitan-district-council/walsall ,WC162-426,31.05.24,CHILDRENS,ACE CARS & MINIBUSES LTD,21/05/2024,"2,033.00",6241-Hire of Vehicle with Driver,TRANSPORT,DIRECT TRANSPORT COSTS,REVENUE
Walsall Council,http://opendatacommunities.org/id/metropolitan-district-council/walsall ,WC162-427,31.05.24,CHILDRENS,ACE CARS & MINIBUSES LTD,21/05/2024,"2,242.00",6241-Hire of Vehicle with Driver,TRANSPORT,DIRECT TRANSPORT COSTS,REVENUE
Walsall Council,http://opendatacommunities.org/id/metropolitan-district-council/walsall ,WC162-428,31.05.24,CHILDRENS,ACE CARS & MINIBUSES LTD,21/05/2024,"3,011.50",6241-Hire of Vehicle with Driver,TRANSPORT,DIRECT TRANSPORT COSTS,REVENUE
Walsall Council,http://opendatacommunities.org/id/metropolitan-district-council/walsall ,WC162-429,31.05.24,CHILDRENS,ACE CARS & MINIBUSES LTD,21/05/2024,"3,220.50",6241-Hire of Vehicle with Driver,TRANSPORT,DIRECT TRANSPORT COSTS,REVENUE
Walsall Council,http://opendatacommunities.org/id/metropolitan-district-council/walsall ,WC162-430,31.05.24,CHILDRENS,ACE CARS & MINIBUSES LTD,21/05/2024,"2,270.50",6241-Hire of Vehicle with Driver,TRANSPORT,DIRECT TRANSPORT COSTS,REVENUE
Walsall Council,http://opendatacommunities.org/id/metropolitan-district-council/walsall ,WC162-431,31.05.24,CHILDRENS,ACE CARS & MINIBUSES LTD,21/05/2024,"3,360.34",6241-Hire of Vehicle with Driver,TRANSPORT,DIRECT TRANSPORT COSTS,REVENUE
Walsall Council,http://opendatacommunities.org/id/metropolitan-district-council/walsall ,WC162-432,31.05.24,CHILDRENS,ACE CARS & MINIBUSES LTD,21/05/2024,"2,722.00",6241-Hire of Vehicle with Driver,TRANSPORT,DIRECT TRANSPORT COSTS,REVENUE
Walsall Council,http://opendatacommunities.org/id/metropolitan-district-council/walsall ,WC162-433,31.05.24,CHILDRENS,ACE CARS & MINIBUSES LTD,21/05/2024,"2,722.00",6241-Hire of Vehicle with Driver,TRANSPORT,DIRECT TRANSPORT COSTS,REVENUE
Walsall Council,http://opendatacommunities.org/id/metropolitan-district-council/walsall ,WC162-434,31.05.24,CHILDRENS,ACE CARS & MINIBUSES LTD,21/05/2024,"2,033.00",6241-Hire of Vehicle with Driver,TRANSPORT,DIRECT TRANSPORT COSTS,REVENUE
Walsall Council,http://opendatacommunities.org/id/metropolitan-district-council/walsall ,WC162-435,31.05.24,CHILDRENS,ACE CARS & MINIBUSES LTD,21/05/2024,"2,033.00",6241-Hire of Vehicle with Driver,TRANSPORT,DIRECT TRANSPORT COSTS,REVENUE
Walsall Council,http://opendatacommunities.org/id/metropolitan-district-council/walsall ,WC162-436,31.05.24,CHILDRENS,ACE CARS & MINIBUSES LTD,21/05/2024,"2,242.00",6241-Hire of Vehicle with Driver,TRANSPORT,DIRECT TRANSPORT COSTS,REVENUE
Walsall Council,http://opendatacommunities.org/id/metropolitan-district-council/walsall ,WC162-437,31.05.24,CHILDRENS,ACE CARS & MINIBUSES LTD,21/05/2024,"3,224.11",6241-Hire of Vehicle with Driver,TRANSPORT,DIRECT TRANSPORT COSTS,REVENUE
Walsall Council,http://opendatacommunities.org/id/metropolitan-district-council/walsall ,WC162-438,31.05.24,CHILDRENS,ACE CARS & MINIBUSES LTD,21/05/2024,"2,270.50",6241-Hire of Vehicle with Driver,TRANSPORT,DIRECT TRANSPORT COSTS,REVENUE
Walsall Council,http://opendatacommunities.org/id/metropolitan-district-council/walsall ,WC162-439,31.05.24,CHILDRENS,ACE CARS & MINIBUSES LTD,21/05/2024,"2,166.00",6241-Hire of Vehicle with Driver,TRANSPORT,DIRECT TRANSPORT COSTS,REVENUE
Walsall Council,http://opendatacommunities.org/id/metropolitan-district-council/walsall ,WC162-440,31.05.24,CHILDRENS,ACE CARS & MINIBUSES LTD,21/05/2024,"2,033.00",6241-Hire of Vehicle with Driver,TRANSPORT,DIRECT TRANSPORT COSTS,REVENUE
Walsall Council,http://opendatacommunities.org/id/metropolitan-district-council/walsall ,WC162-441,31.05.24,CHILDRENS,ACE CARS & MINIBUSES LTD,21/05/2024,"2,242.00",6241-Hire of Vehicle with Driver,TRANSPORT,DIRECT TRANSPORT COSTS,REVENUE
Walsall Council,http://opendatacommunities.org/id/metropolitan-district-council/walsall ,WC162-442,31.05.24,CHILDRENS,ACE CARS & MINIBUSES LTD,21/05/2024,"2,555.88",6241-Hire of Vehicle with Driver,TRANSPORT,DIRECT TRANSPORT COSTS,REVENUE
Walsall Council,http://opendatacommunities.org/id/metropolitan-district-council/walsall ,WC162-443,31.05.24,CHILDRENS,ACE CARS & MINIBUSES LTD,21/05/2024,"2,376.52",6241-Hire of Vehicle with Driver,TRANSPORT,DIRECT TRANSPORT COSTS,REVENUE
Walsall Council,http://opendatacommunities.org/id/metropolitan-district-council/walsall ,WC162-444,31.05.24,CHILDRENS,ACE CARS & MINIBUSES LTD,21/05/2024,"2,166.00",6241-Hire of Vehicle with Driver,TRANSPORT,DIRECT TRANSPORT COSTS,REVENUE
Walsall Council,http://opendatacommunities.org/id/metropolitan-district-council/walsall ,WC162-445,31.05.24,CHILDRENS,ACE CARS & MINIBUSES LTD,21/05/2024,"2,242.00",6241-Hire of Vehicle with Driver,TRANSPORT,DIRECT TRANSPORT COSTS,REVENUE
Walsall Council,http://opendatacommunities.org/id/metropolitan-district-council/walsall ,WC162-446,31.05.24,CHILDRENS,ACE CARS & MINIBUSES LTD,21/05/2024,"3,783.80",6241-Hire of Vehicle with Driver,TRANSPORT,DIRECT TRANSPORT COSTS,REVENUE
Walsall Council,http://opendatacommunities.org/id/metropolitan-district-council/walsall ,WC162-447,31.05.24,CHILDRENS,ACE CARS & MINIBUSES LTD,21/05/2024,"2,722.00",6241-Hire of Vehicle with Driver,TRANSPORT,DIRECT TRANSPORT COSTS,REVENUE
Walsall Council,http://opendatacommunities.org/id/metropolitan-district-council/walsall ,WC162-448,31.05.24,CHILDRENS,ACE CARS & MINIBUSES LTD,21/05/2024,"3,075.80",6241-Hire of Vehicle with Driver,TRANSPORT,DIRECT TRANSPORT COSTS,REVENUE
Walsall Council,http://opendatacommunities.org/id/metropolitan-district-council/walsall ,WC162-449,31.05.24,CHILDRENS,ACE CARS & MINIBUSES LTD,21/05/2024,"2,959.44",6241-Hire of Vehicle with Driver,TRANSPORT,DIRECT TRANSPORT COSTS,REVENUE
Walsall Council,http://opendatacommunities.org/id/metropolitan-district-council/walsall ,WC162-450,31.05.24,CHILDRENS,ACE CARS & MINIBUSES LTD,21/05/2024,"2,166.00",6241-Hire of Vehicle with Driver,TRANSPORT,DIRECT TRANSPORT COSTS,REVENUE
Walsall Council,http://opendatacommunities.org/id/metropolitan-district-council/walsall ,WC162-451,31.05.24,CHILDRENS,ACE CARS & MINIBUSES LTD,21/05/2024,"2,270.50",6241-Hire of Vehicle with Driver,TRANSPORT,DIRECT TRANSPORT COSTS,REVENUE
Walsall Council,http://opendatacommunities.org/id/metropolitan-district-council/walsall ,WC162-452,31.05.24,CHILDRENS,ACE CARS & MINIBUSES LTD,21/05/2024,"2,270.50",6241-Hire of Vehicle with Driver,TRANSPORT,DIRECT TRANSPORT COSTS,REVENUE
Walsall Council,http://opendatacommunities.org/id/metropolitan-district-council/walsall ,WC162-453,31.05.24,CHILDRENS,ACE CARS & MINIBUSES LTD,21/05/2024,"2,033.00",6241-Hire of Vehicle with Driver,TRANSPORT,DIRECT TRANSPORT COSTS,REVENUE
Walsall Council,http://opendatacommunities.org/id/metropolitan-district-council/walsall ,WC162-454,31.05.24,CHILDRENS,ACE CARS & MINIBUSES LTD,21/05/2024,"4,035.60",6241-Hire of Vehicle with Driver,TRANSPORT,DIRECT TRANSPORT COSTS,REVENUE
Walsall Council,http://opendatacommunities.org/id/metropolitan-district-council/walsall ,WC162-455,31.05.24,CHILDRENS,ACE CARS & MINIBUSES LTD,21/05/2024,"2,033.00",6241-Hire of Vehicle with Driver,TRANSPORT,DIRECT TRANSPORT COSTS,REVENUE
Walsall Council,http://opendatacommunities.org/id/metropolitan-district-council/walsall ,WC162-456,31.05.24,CHILDRENS,ACE CARS & MINIBUSES LTD,21/05/2024,"2,033.00",6241-Hire of Vehicle with Driver,TRANSPORT,DIRECT TRANSPORT COSTS,REVENUE
Walsall Council,http://opendatacommunities.org/id/metropolitan-district-council/walsall ,WC162-457,31.05.24,CHILDRENS,ACE CARS & MINIBUSES LTD,21/05/2024,"2,033.00",6241-Hire of Vehicle with Driver,TRANSPORT,DIRECT TRANSPORT COSTS,REVENUE
Walsall Council,http://opendatacommunities.org/id/metropolitan-district-council/walsall ,WC162-458,31.05.24,CHILDRENS,ACE CARS & MINIBUSES LTD,21/05/2024,"2,242.00",6241-Hire of Vehicle with Driver,TRANSPORT,DIRECT TRANSPORT COSTS,REVENUE
Walsall Council,http://opendatacommunities.org/id/metropolitan-district-council/walsall ,WC162-459,31.05.24,CHILDRENS,ACE CARS & MINIBUSES LTD,21/05/2024,"2,722.00",6241-Hire of Vehicle with Driver,TRANSPORT,DIRECT TRANSPORT COSTS,REVENUE
Walsall Council,http://opendatacommunities.org/id/metropolitan-district-council/walsall ,WC162-460,31.05.24,CHILDRENS,ACE CARS & MINIBUSES LTD,21/05/2024,"2,722.00",6241-Hire of Vehicle with Driver,TRANSPORT,DIRECT TRANSPORT COSTS,REVENUE
Walsall Council,http://opendatacommunities.org/id/metropolitan-district-council/walsall ,WC162-461,31.05.24,CHILDRENS,ACE CARS & MINIBUSES LTD,21/05/2024,"2,722.00",6241-Hire of Vehicle with Driver,TRANSPORT,DIRECT TRANSPORT COSTS,REVENUE
Walsall Council,http://opendatacommunities.org/id/metropolitan-district-council/walsall ,WC162-462,31.05.24,CHILDRENS,ACE CARS & MINIBUSES LTD,21/05/2024,"3,655.60",6241-Hire of Vehicle with Driver,TRANSPORT,DIRECT TRANSPORT COSTS,REVENUE
Walsall Council,http://opendatacommunities.org/id/metropolitan-district-council/walsall ,WC162-463,31.05.24,ADULT SOCIAL CARE,ACEPAY LTD (COTTAGE NUR HOME),07/05/2024,"2,621.48",6541-Nursing,THIRD PARTY PAYMENTS,PRIVATE CONTRACTOR,REVENUE
Walsall Council,http://opendatacommunities.org/id/metropolitan-district-council/walsall ,WC162-464,31.05.24,ADULT SOCIAL CARE,ACEPAY LTD (COTTAGE NUR HOME),07/05/2024,"2,621.48",6541-Nursing,THIRD PARTY PAYMENTS,PRIVATE CONTRACTOR,REVENUE
Walsall Council,http://opendatacommunities.org/id/metropolitan-district-council/walsall ,WC162-465,31.05.24,ADULT SOCIAL CARE,ACEPAY LTD (COTTAGE NUR HOME),07/05/2024,"2,533.66",6541-Residential EMI,THIRD PARTY PAYMENTS,PRIVATE CONTRACTOR,REVENUE
Walsall Council,http://opendatacommunities.org/id/metropolitan-district-council/walsall ,WC162-466,31.05.24,ADULT SOCIAL CARE,ACEPAY LTD (COTTAGE NUR HOME),07/05/2024,"2,621.48",6541-Nursing,THIRD PARTY PAYMENTS,PRIVATE CONTRACTOR,REVENUE
Walsall Council,http://opendatacommunities.org/id/metropolitan-district-council/walsall ,WC162-467,31.05.24,ADULT SOCIAL CARE,ACEPAY LTD (COTTAGE NUR HOME),07/05/2024,"2,621.48",6541-Nursing,THIRD PARTY PAYMENTS,PRIVATE CONTRACTOR,REVENUE
Walsall Council,http://opendatacommunities.org/id/metropolitan-district-council/walsall ,WC162-468,31.05.24,ADULT SOCIAL CARE,ACEPAY LTD (COTTAGE NUR HOME),07/05/2024,"2,621.48",6541-Nursing,THIRD PARTY PAYMENTS,PRIVATE CONTRACTOR,REVENUE
Walsall Council,http://opendatacommunities.org/id/metropolitan-district-council/walsall ,WC162-469,31.05.24,ADULT SOCIAL CARE,ACEPAY LTD (COTTAGE NUR HOME),07/05/2024,"2,621.48",6541-Nursing,THIRD PARTY PAYMENTS,PRIVATE CONTRACTOR,REVENUE
Walsall Council,http://opendatacommunities.org/id/metropolitan-district-council/walsall ,WC162-470,31.05.24,ADULT SOCIAL CARE,ACEPAY LTD (COTTAGE NUR HOME),07/05/2024,"2,621.48",6541-Nursing,THIRD PARTY PAYMENTS,PRIVATE CONTRACTOR,REVENUE
Walsall Council,http://opendatacommunities.org/id/metropolitan-district-council/walsall ,WC162-471,31.05.24,ADULT SOCIAL CARE,ACEPAY LTD (COTTAGE NUR HOME),07/05/2024,"2,621.48",6541-Nursing,THIRD PARTY PAYMENTS,PRIVATE CONTRACTOR,REVENUE
Walsall Council,http://opendatacommunities.org/id/metropolitan-district-council/walsall ,WC162-472,31.05.24,ADULT SOCIAL CARE,ACEPAY LTD (COTTAGE NUR HOME),07/05/2024,"2,621.48",6541-Nursing,THIRD PARTY PAYMENTS,PRIVATE CONTRACTOR,REVENUE
Walsall Council,http://opendatacommunities.org/id/metropolitan-district-council/walsall ,WC162-473,31.05.24,ADULT SOCIAL CARE,ACEPAY LTD (COTTAGE NUR HOME),07/05/2024,"2,621.48",6541-Nursing,THIRD PARTY PAYMENTS,PRIVATE CONTRACTOR,REVENUE
Walsall Council,http://opendatacommunities.org/id/metropolitan-district-council/walsall ,WC162-474,31.05.24,ADULT SOCIAL CARE,ACEPAY LTD (COTTAGE NUR HOME),07/05/2024,"2,621.48",6541-Nursing,THIRD PARTY PAYMENTS,PRIVATE CONTRACTOR,REVENUE
Walsall Council,http://opendatacommunities.org/id/metropolitan-district-council/walsall ,WC162-475,31.05.24,ADULT SOCIAL CARE,ACEPAY LTD (COTTAGE NUR HOME),07/05/2024,"2,949.88",6541-Nursing EMI,THIRD PARTY PAYMENTS,PRIVATE CONTRACTOR,REVENUE
Walsall Council,http://opendatacommunities.org/id/metropolitan-district-council/walsall ,WC162-476,31.05.24,ADULT SOCIAL CARE,ACEPAY LTD (COTTAGE NUR HOME),07/05/2024,"2,533.66",6541-Residential EMI,THIRD PARTY PAYMENTS,PRIVATE CONTRACTOR,REVENUE
Walsall Council,http://opendatacommunities.org/id/metropolitan-district-council/walsall ,WC162-477,31.05.24,ADULT SOCIAL CARE,ACEPAY LTD (COTTAGE NUR HOME),07/05/2024,"3,069.88",6541-Nursing EMI,THIRD PARTY PAYMENTS,PRIVATE CONTRACTOR,REVENUE
Walsall Council,http://opendatacommunities.org/id/metropolitan-district-council/walsall ,WC162-478,31.05.24,ADULT SOCIAL CARE,ACEPAY LTD (COTTAGE NUR HOME),07/05/2024,"2,949.88",6541-Nursing EMI,THIRD PARTY PAYMENTS,PRIVATE CONTRACTOR,REVENUE
Walsall Council,http://opendatacommunities.org/id/metropolitan-district-council/walsall ,WC162-479,31.05.24,ADULT SOCIAL CARE,ACEPAY LTD (COTTAGE NUR HOME),07/05/2024,"4,228.44",6541-Nursing,THIRD PARTY PAYMENTS,PRIVATE CONTRACTOR,REVENUE
Walsall Council,http://opendatacommunities.org/id/metropolitan-district-council/walsall ,WC162-480,31.05.24,ADULT SOCIAL CARE,ACEPAY LTD (COTTAGE NUR HOME),07/05/2024,"2,533.66",6541-Residential EMI,THIRD PARTY PAYMENTS,PRIVATE CONTRACTOR,REVENUE
Walsall Council,http://opendatacommunities.org/id/metropolitan-district-council/walsall ,WC162-481,31.05.24,ADULT SOCIAL CARE,ACEPAY LTD (COTTAGE NUR HOME),07/05/2024,"2,533.66",6541-Residential EMI,THIRD PARTY PAYMENTS,PRIVATE CONTRACTOR,REVENUE
Walsall Council,http://opendatacommunities.org/id/metropolitan-district-council/walsall ,WC162-482,31.05.24,ADULT SOCIAL CARE,ACEPAY LTD (COTTAGE NUR HOME),07/05/2024,"2,949.88",6541-Nursing EMI,THIRD PARTY PAYMENTS,PRIVATE CONTRACTOR,REVENUE
Walsall Council,http://opendatacommunities.org/id/metropolitan-district-council/walsall ,WC162-483,31.05.24,ADULT SOCIAL CARE,ACEPAY LTD (COTTAGE NUR HOME),07/05/2024,"2,949.88",6541-Nursing EMI,THIRD PARTY PAYMENTS,PRIVATE CONTRACTOR,REVENUE
Walsall Council,http://opendatacommunities.org/id/metropolitan-district-council/walsall ,WC162-484,31.05.24,ADULT SOCIAL CARE,ACEPAY LTD (COTTAGE NUR HOME),07/05/2024,"2,949.88",6541-Nursing EMI,THIRD PARTY PAYMENTS,PRIVATE CONTRACTOR,REVENUE
Walsall Council,http://opendatacommunities.org/id/metropolitan-district-council/walsall ,WC162-485,31.05.24,ADULT SOCIAL CARE,ACEPAY LTD (COTTAGE NUR HOME),07/05/2024,"2,621.48",6541-Nursing,THIRD PARTY PAYMENTS,PRIVATE CONTRACTOR,REVENUE
Walsall Council,http://opendatacommunities.org/id/metropolitan-district-council/walsall ,WC162-486,31.05.24,ADULT SOCIAL CARE,ACHIEVE TOGETHER LIMITED,07/05/2024,"6,572.72",6541-Residential,THIRD PARTY PAYMENTS,PRIVATE CONTRACTOR,REVENUE
Walsall Council,http://opendatacommunities.org/id/metropolitan-district-council/walsall ,WC162-487,31.05.24,ADULT SOCIAL CARE,ACHIEVE TOGETHER LIMITED,07/05/2024,"3,852.80",6541-Residential,THIRD PARTY PAYMENTS,PRIVATE CONTRACTOR,REVENUE
Walsall Council,http://opendatacommunities.org/id/metropolitan-district-council/walsall ,WC162-488,31.05.24,ADULT SOCIAL CARE,ACHIEVE TOGETHER LIMITED,07/05/2024,"4,920.72",6541-Residential,THIRD PARTY PAYMENTS,PRIVATE CONTRACTOR,REVENUE
Walsall Council,http://opendatacommunities.org/id/metropolitan-district-council/walsall ,WC162-489,31.05.24,ADULT SOCIAL CARE,ACHIEVE TOGETHER LIMITED,07/05/2024,"5,506.08",6541-Residential,THIRD PARTY PAYMENTS,PRIVATE CONTRACTOR,REVENUE
Walsall Council,http://opendatacommunities.org/id/metropolitan-district-council/walsall ,WC162-490,31.05.24,ADULT SOCIAL CARE,ACHIEVE TOGETHER LIMITED,07/05/2024,"9,178.80",6541-Residential,THIRD PARTY PAYMENTS,PRIVATE CONTRACTOR,REVENUE
Walsall Council,http://opendatacommunities.org/id/metropolitan-district-council/walsall ,WC162-491,31.05.24,CHILDRENS,ACORN CARE & EDUCATION LTD (SALES),14/05/2024,"30,587.60",6223-External Residential Care-Oth Agency Provision,THIRD PARTY PAYMENTS,PRIVATE CONTRACTOR,REVENUE
Walsall Council,http://opendatacommunities.org/id/metropolitan-district-council/walsall ,WC162-492,31.05.24,CHILDRENS,ACORN CARE & EDUCATION LTD (SALES),24/05/2024,408.20,1220-Top Up Funding -Grants to Schools,SUPPLIES & SERVICES,GRANTS (EXP) & SUBSCRIPTIONS,REVENUE
Walsall Council,http://opendatacommunities.org/id/metropolitan-district-council/walsall ,WC162-493,31.05.24,CHILDRENS,ACORN CARE & EDUCATION LTD (SALES),24/05/2024,"1,333.33",1220-Top Up Funding -Grants to Schools,SUPPLIES & SERVICES,GRANTS (EXP) & SUBSCRIPTIONS,REVENUE
Walsall Council,http://opendatacommunities.org/id/metropolitan-district-council/walsall ,WC162-494,31.05.24,CHILDRENS,ACORN CARE & EDUCATION LTD (SALES),24/05/2024,"6,245.46",1220-Top Up Funding -Grants to Schools,SUPPLIES & SERVICES,GRANTS (EXP) & SUBSCRIPTIONS,REVENUE
Walsall Council,http://opendatacommunities.org/id/metropolitan-district-council/walsall ,WC162-495,31.05.24,CHILDRENS,ACORN CARE & EDUCATION LTD (SALES),24/05/2024,"1,333.33",1220-Top Up Funding -Grants to Schools,SUPPLIES & SERVICES,GRANTS (EXP) & SUBSCRIPTIONS,REVENUE
Walsall Council,http://opendatacommunities.org/id/metropolitan-district-council/walsall ,WC162-496,31.05.24,CHILDRENS,ACORN CARE & EDUCATION LTD (SALES),24/05/2024,"18,395.00",1220-Top Up Funding -Grants to Schools,SUPPLIES & SERVICES,GRANTS (EXP) & SUBSCRIPTIONS,REVENUE
Walsall Council,http://opendatacommunities.org/id/metropolitan-district-council/walsall ,WC162-497,31.05.24,CHILDRENS,ACORN CARE & EDUCATION LTD (SALES),24/05/2024,"25,133.33",1220-Top Up Funding -Grants to Schools,SUPPLIES & SERVICES,GRANTS (EXP) & SUBSCRIPTIONS,REVENUE
Walsall Council,http://opendatacommunities.org/id/metropolitan-district-council/walsall ,WC162-498,31.05.24,CHILDRENS,ACORN CARE & EDUCATION LTD (SALES),24/05/2024,"25,133.33",1220-Top Up Funding -Grants to Schools,SUPPLIES & SERVICES,GRANTS (EXP) & SUBSCRIPTIONS,REVENUE
Walsall Council,http://opendatacommunities.org/id/metropolitan-district-council/walsall ,WC162-499,31.05.24,CHILDRENS,ACORN CARE & EDUCATION LTD (SALES),24/05/2024,"25,133.33",1220-Top Up Funding -Grants to Schools,SUPPLIES & SERVICES,GRANTS (EXP) & SUBSCRIPTIONS,REVENUE
Walsall Council,http://opendatacommunities.org/id/metropolitan-district-council/walsall ,WC162-500,31.05.24,CHILDRENS,ACORN CARE & EDUCATION LTD (SALES),21/05/2024,"6,389.17",1220-Professional Fees & Services,SUPPLIES & SERVICES,SERVICES,REVENUE
Walsall Council,http://opendatacommunities.org/id/metropolitan-district-council/walsall ,WC162-501,31.05.24,CHILDRENS,ACORN CARE & EDUCATION LTD (SALES),24/05/2024,"-6,172.14",1220-Top Up Funding -Grants to Schools,SUPPLIES & SERVICES,GRANTS (EXP) & SUBSCRIPTIONS,REVENUE
Walsall Council,http://opendatacommunities.org/id/metropolitan-district-council/walsall ,WC162-502,31.05.24,CHILDRENS,ACORN FOSTERING SERVICES LTD,14/05/2024,"3,340.00",6223-Independent Foster Care-Oth Agency Provision,THIRD PARTY PAYMENTS,PRIVATE CONTRACTOR,REVENUE
Walsall Council,http://opendatacommunities.org/id/metropolitan-district-council/walsall ,WC162-503,31.05.24,CHILDRENS,ACORN RESIDENTIAL CARE LTD T/A ADECYN HOMES,14/05/2024,"23,660.72",6223-External Residential Care-Oth Agency Provision,THIRD PARTY PAYMENTS,PRIVATE CONTRACTOR,REVENUE
Walsall Council,http://opendatacommunities.org/id/metropolitan-district-council/walsall ,WC162-504,31.05.24,CHILDRENS,ACORNS CHILDRENS HOSPICE TRUST,01/05/2024,"1,950.00",6220-Professional Fees & Services,SUPPLIES & SERVICES,SERVICES,REVENUE
Walsall Council,http://opendatacommunities.org/id/metropolitan-district-council/walsall ,WC162-505,31.05.24,CHILDRENS,ACTIVE CARE SOLUTIONS LTD,14/05/2024,"3,576.52",6223-Independent Foster Care-Oth Agency Provision,THIRD PARTY PAYMENTS,PRIVATE CONTRACTOR,REVENUE
Walsall Council,http://opendatacommunities.org/id/metropolitan-district-council/walsall ,WC162-506,31.05.24,"ECONOMY, ENVIRONMENT & COMMUNITIES",ACTIVITY GYM LTD,16/05/2024,"1,500.00",6413-Fees & Licences,SUPPLIES & SERVICES,SERVICES,REVENUE
Walsall Council,http://opendatacommunities.org/id/metropolitan-district-council/walsall ,WC162-507,31.05.24,ADULT SOCIAL CARE,REDACTED,01/05/2024,747.92,6541-Direct Payment,THIRD PARTY PAYMENTS,PRIVATE CONTRACTOR,REVENUE
Walsall Council,http://opendatacommunities.org/id/metropolitan-district-council/walsall ,WC162-508,31.05.24,CHILDRENS,REDACTED,01/05/2024,409.24,6223-Special Guardianship Orders,TRANSFER PAYMENTS,CHILDREN SOCIAL SERVICES CLIENT,REVENUE
Walsall Council,http://opendatacommunities.org/id/metropolitan-district-council/walsall ,WC162-509,31.05.24,CHILDRENS,REDACTED,30/05/2024,535.24,6223-Special Guardianship Orders,TRANSFER PAYMENTS,CHILDREN SOCIAL SERVICES CLIENT,REVENUE
Walsall Council,http://opendatacommunities.org/id/metropolitan-district-council/walsall ,WC162-510,31.05.24,CHILDRENS,ADAMS TOURS LTD,20/05/2024,525.00,6241-Hire of Vehicle with Driver,TRANSPORT,DIRECT TRANSPORT COSTS,REVENUE
Walsall Council,http://opendatacommunities.org/id/metropolitan-district-council/walsall ,WC162-511,31.05.24,CHILDRENS,ADCS (ASSOCIATION OF DIRECTORS OF CHILDRENS SERVICES),16/05/2024,911.00,6213-Conference Expenses,SUPPLIES & SERVICES,EXPENSES,REVENUE
Walsall Council,http://opendatacommunities.org/id/metropolitan-district-council/walsall ,WC162-512,31.05.24,CHILDRENS,ADCS (ASSOCIATION OF DIRECTORS OF CHILDRENS SERVICES),16/05/2024,487.00,6213-External Training,INDIRECT EMPLOYEES,EXTERNAL TRAINING,REVENUE
Walsall Council,http://opendatacommunities.org/id/metropolitan-district-council/walsall ,WC162-513,31.05.24,CHILDRENS,REDACTED,01/05/2024,382.56,6223-Residents Orders,TRANSFER PAYMENTS,CHILDREN SOCIAL SERVICES CLIENT,REVENUE
Walsall Council,http://opendatacommunities.org/id/metropolitan-district-council/walsall ,WC162-514,31.05.24,CHILDRENS,REDACTED,30/05/2024,-382.56,6223-Residents Orders,TRANSFER PAYMENTS,CHILDREN SOCIAL SERVICES CLIENT,REVENUE
Walsall Council,http://opendatacommunities.org/id/metropolitan-district-council/walsall ,WC162-515,31.05.24,CHILDRENS,REDACTED,30/05/2024,"4,380.20",6223-Residents Orders,TRANSFER PAYMENTS,CHILDREN SOCIAL SERVICES CLIENT,REVENUE
Walsall Council,http://opendatacommunities.org/id/metropolitan-district-council/walsall ,WC162-516,31.05.24,CHILDRENS,REDACTED,30/05/2024,964.30,6223-Residents Orders,TRANSFER PAYMENTS,CHILDREN SOCIAL SERVICES CLIENT,REVENUE
Walsall Council,http://opendatacommunities.org/id/metropolitan-district-council/walsall ,WC162-517,31.05.24,ADULT SOCIAL CARE,REDACTED,01/05/2024,"2,114.60",6541-Direct Payment,THIRD PARTY PAYMENTS,PRIVATE CONTRACTOR,REVENUE
Walsall Council,http://opendatacommunities.org/id/metropolitan-district-council/walsall ,WC162-518,31.05.24,ADULT SOCIAL CARE,ADVANCE HEALTH CARE (UK) LTD,07/05/2024,304.01,6541-Domiciliary Care,THIRD PARTY PAYMENTS,PRIVATE CONTRACTOR,REVENUE
Walsall Council,http://opendatacommunities.org/id/metropolitan-district-council/walsall ,WC162-519,31.05.24,ADULT SOCIAL CARE,ADVANCE HEALTH CARE (UK) LTD,07/05/2024,450.38,6541-Domiciliary Care,THIRD PARTY PAYMENTS,PRIVATE CONTRACTOR,REVENUE
Walsall Council,http://opendatacommunities.org/id/metropolitan-district-council/walsall ,WC162-520,31.05.24,ADULT SOCIAL CARE,ADVANCE HEALTH CARE (UK) LTD,07/05/2024,405.37,6541-Domiciliary Care,THIRD PARTY PAYMENTS,PRIVATE CONTRACTOR,REVENUE
Walsall Council,http://opendatacommunities.org/id/metropolitan-district-council/walsall ,WC162-521,31.05.24,ADULT SOCIAL CARE,ADVANCE HEALTH CARE (UK) LTD,07/05/2024,904.50,6541-Domiciliary Care,THIRD PARTY PAYMENTS,PRIVATE CONTRACTOR,REVENUE
Walsall Council,http://opendatacommunities.org/id/metropolitan-district-council/walsall ,WC162-522,31.05.24,ADULT SOCIAL CARE,ADVANCE HEALTH CARE (UK) LTD,07/05/2024,714.10,6541-Domiciliary Care,THIRD PARTY PAYMENTS,PRIVATE CONTRACTOR,REVENUE
Walsall Council,http://opendatacommunities.org/id/metropolitan-district-council/walsall ,WC162-523,31.05.24,ADULT SOCIAL CARE,ADVANCE HEALTH CARE (UK) LTD,07/05/2024,323.31,6541-Domiciliary Care,THIRD PARTY PAYMENTS,PRIVATE CONTRACTOR,REVENUE
Walsall Council,http://opendatacommunities.org/id/metropolitan-district-council/walsall ,WC162-524,31.05.24,ADULT SOCIAL CARE,ADVANCE HEALTH CARE (UK) LTD,07/05/2024,472.85,6541-Domiciliary Care,THIRD PARTY PAYMENTS,PRIVATE CONTRACTOR,REVENUE
Walsall Council,http://opendatacommunities.org/id/metropolitan-district-council/walsall ,WC162-525,31.05.24,ADULT SOCIAL CARE,ADVANCE HEALTH CARE (UK) LTD,07/05/2024,472.85,6541-Domiciliary Care,THIRD PARTY PAYMENTS,PRIVATE CONTRACTOR,REVENUE
Walsall Council,http://opendatacommunities.org/id/metropolitan-district-council/walsall ,WC162-526,31.05.24,ADULT SOCIAL CARE,ADVANCE HEALTH CARE (UK) LTD,07/05/2024,636.90,6541-Domiciliary Care,THIRD PARTY PAYMENTS,PRIVATE CONTRACTOR,REVENUE
Walsall Council,http://opendatacommunities.org/id/metropolitan-district-council/walsall ,WC162-527,31.05.24,ADULT SOCIAL CARE,ADVANCE HEALTH CARE (UK) LTD,07/05/2024,"4,536.00",6541-Domiciliary Care,THIRD PARTY PAYMENTS,PRIVATE CONTRACTOR,REVENUE
Walsall Council,http://opendatacommunities.org/id/metropolitan-district-council/walsall ,WC162-528,31.05.24,ADULT SOCIAL CARE,ADVANCE HEALTH CARE (UK) LTD,07/05/2024,607.95,6541-Domiciliary Care,THIRD PARTY PAYMENTS,PRIVATE CONTRACTOR,REVENUE
Walsall Council,http://opendatacommunities.org/id/metropolitan-district-council/walsall ,WC162-529,31.05.24,ADULT SOCIAL CARE,ADVANCE HEALTH CARE (UK) LTD,07/05/2024,304.01,6541-Domiciliary Care,THIRD PARTY PAYMENTS,PRIVATE CONTRACTOR,REVENUE
Walsall Council,http://opendatacommunities.org/id/metropolitan-district-council/walsall ,WC162-530,31.05.24,ADULT SOCIAL CARE,ADVANCE HEALTH CARE (UK) LTD,07/05/2024,472.85,6541-Domiciliary Care,THIRD PARTY PAYMENTS,PRIVATE CONTRACTOR,REVENUE
Walsall Council,http://opendatacommunities.org/id/metropolitan-district-council/walsall ,WC162-531,31.05.24,ADULT SOCIAL CARE,ADVANCE HEALTH CARE (UK) LTD,07/05/2024,"1,032.55",6541-Domiciliary Care,THIRD PARTY PAYMENTS,PRIVATE CONTRACTOR,REVENUE
Walsall Council,http://opendatacommunities.org/id/metropolitan-district-council/walsall ,WC162-532,31.05.24,ADULT SOCIAL CARE,ADVANCE HEALTH CARE (UK) LTD,07/05/2024,810.60,6541-Domiciliary Care,THIRD PARTY PAYMENTS,PRIVATE CONTRACTOR,REVENUE
Walsall Council,http://opendatacommunities.org/id/metropolitan-district-council/walsall ,WC162-533,31.05.24,ADULT SOCIAL CARE,ADVANCE HEALTH CARE (UK) LTD,07/05/2024,270.20,6541-Domiciliary Care,THIRD PARTY PAYMENTS,PRIVATE CONTRACTOR,REVENUE
Walsall Council,http://opendatacommunities.org/id/metropolitan-district-council/walsall ,WC162-534,31.05.24,ADULT SOCIAL CARE,ADVANCE HEALTH CARE (UK) LTD,07/05/2024,607.95,6541-Domiciliary Care,THIRD PARTY PAYMENTS,PRIVATE CONTRACTOR,REVENUE
Walsall Council,http://opendatacommunities.org/id/metropolitan-district-council/walsall ,WC162-535,31.05.24,ADULT SOCIAL CARE,ADVANCE HEALTH CARE (UK) LTD,07/05/2024,472.92,6541-Domiciliary Care,THIRD PARTY PAYMENTS,PRIVATE CONTRACTOR,REVENUE
Walsall Council,http://opendatacommunities.org/id/metropolitan-district-council/walsall ,WC162-536,31.05.24,ADULT SOCIAL CARE,ADVANCE HEALTH CARE (UK) LTD,07/05/2024,304.01,6541-Domiciliary Care,THIRD PARTY PAYMENTS,PRIVATE CONTRACTOR,REVENUE
Walsall Council,http://opendatacommunities.org/id/metropolitan-district-council/walsall ,WC162-537,31.05.24,ADULT SOCIAL CARE,ADVANCE HEALTH CARE (UK) LTD,07/05/2024,"6,147.00",6541-Domiciliary Care,THIRD PARTY PAYMENTS,PRIVATE CONTRACTOR,REVENUE
Walsall Council,http://opendatacommunities.org/id/metropolitan-district-council/walsall ,WC162-538,31.05.24,ADULT SOCIAL CARE,ADVANCE HEALTH CARE (UK) LTD,07/05/2024,472.85,6541-Domiciliary Care,THIRD PARTY PAYMENTS,PRIVATE CONTRACTOR,REVENUE
Walsall Council,http://opendatacommunities.org/id/metropolitan-district-council/walsall ,WC162-539,31.05.24,ADULT SOCIAL CARE,ADVANCE HEALTH CARE (UK) LTD,07/05/2024,540.40,6541-Domiciliary Care,THIRD PARTY PAYMENTS,PRIVATE CONTRACTOR,REVENUE
Walsall Council,http://opendatacommunities.org/id/metropolitan-district-council/walsall ,WC162-540,31.05.24,ADULT SOCIAL CARE,ADVANCE HEALTH CARE (UK) LTD,07/05/2024,714.10,6541-Domiciliary Care,THIRD PARTY PAYMENTS,PRIVATE CONTRACTOR,REVENUE
Walsall Council,http://opendatacommunities.org/id/metropolitan-district-council/walsall ,WC162-541,31.05.24,ADULT SOCIAL CARE,ADVANCE HEALTH CARE (UK) LTD,07/05/2024,304.01,6541-Domiciliary Care,THIRD PARTY PAYMENTS,PRIVATE CONTRACTOR,REVENUE
Walsall Council,http://opendatacommunities.org/id/metropolitan-district-council/walsall ,WC162-542,31.05.24,ADULT SOCIAL CARE,ADVANCE HEALTH CARE (UK) LTD,07/05/2024,450.38,6541-Domiciliary Care,THIRD PARTY PAYMENTS,PRIVATE CONTRACTOR,REVENUE
Walsall Council,http://opendatacommunities.org/id/metropolitan-district-council/walsall ,WC162-543,31.05.24,ADULT SOCIAL CARE,ADVANCE HEALTH CARE (UK) LTD,07/05/2024,405.37,6541-Domiciliary Care,THIRD PARTY PAYMENTS,PRIVATE CONTRACTOR,REVENUE
Walsall Council,http://opendatacommunities.org/id/metropolitan-district-council/walsall ,WC162-544,31.05.24,ADULT SOCIAL CARE,ADVANCE HEALTH CARE (UK) LTD,07/05/2024,323.31,6541-Domiciliary Care,THIRD PARTY PAYMENTS,PRIVATE CONTRACTOR,REVENUE
Walsall Council,http://opendatacommunities.org/id/metropolitan-district-council/walsall ,WC162-545,31.05.24,ADULT SOCIAL CARE,ADVANCE HEALTH CARE (UK) LTD,07/05/2024,304.01,6541-Domiciliary Care,THIRD PARTY PAYMENTS,PRIVATE CONTRACTOR,REVENUE
Walsall Council,http://opendatacommunities.org/id/metropolitan-district-council/walsall ,WC162-546,31.05.24,ADULT SOCIAL CARE,ADVANCE HEALTH CARE (UK) LTD,07/05/2024,810.60,6541-Domiciliary Care,THIRD PARTY PAYMENTS,PRIVATE CONTRACTOR,REVENUE
Walsall Council,http://opendatacommunities.org/id/metropolitan-district-council/walsall ,WC162-547,31.05.24,ADULT SOCIAL CARE,ADVANCE HEALTH CARE (UK) LTD,07/05/2024,607.95,6541-Domiciliary Care,THIRD PARTY PAYMENTS,PRIVATE CONTRACTOR,REVENUE
Walsall Council,http://opendatacommunities.org/id/metropolitan-district-council/walsall ,WC162-548,31.05.24,ADULT SOCIAL CARE,ADVANCE HEALTH CARE (UK) LTD,07/05/2024,472.85,6541-Domiciliary Care,THIRD PARTY PAYMENTS,PRIVATE CONTRACTOR,REVENUE
Walsall Council,http://opendatacommunities.org/id/metropolitan-district-council/walsall ,WC162-549,31.05.24,ADULT SOCIAL CARE,ADVANCE HEALTH CARE (UK) LTD,07/05/2024,"1,032.55",6541-Domiciliary Care,THIRD PARTY PAYMENTS,PRIVATE CONTRACTOR,REVENUE
Walsall Council,http://opendatacommunities.org/id/metropolitan-district-council/walsall ,WC162-550,31.05.24,ADULT SOCIAL CARE,ADVANCE HEALTH CARE (UK) LTD,07/05/2024,472.85,6541-Domiciliary Care,THIRD PARTY PAYMENTS,PRIVATE CONTRACTOR,REVENUE
Walsall Council,http://opendatacommunities.org/id/metropolitan-district-council/walsall ,WC162-551,31.05.24,ADULT SOCIAL CARE,ADVANCE HEALTH CARE (UK) LTD,07/05/2024,472.85,6541-Domiciliary Care,THIRD PARTY PAYMENTS,PRIVATE CONTRACTOR,REVENUE
Walsall Council,http://opendatacommunities.org/id/metropolitan-district-council/walsall ,WC162-552,31.05.24,ADULT SOCIAL CARE,ADVANCE HEALTH CARE (UK) LTD,07/05/2024,636.90,6541-Domiciliary Care,THIRD PARTY PAYMENTS,PRIVATE CONTRACTOR,REVENUE
Walsall Council,http://opendatacommunities.org/id/metropolitan-district-council/walsall ,WC162-553,31.05.24,ADULT SOCIAL CARE,ADVANCE HEALTH CARE (UK) LTD,07/05/2024,270.20,6541-Domiciliary Care,THIRD PARTY PAYMENTS,PRIVATE CONTRACTOR,REVENUE
Walsall Council,http://opendatacommunities.org/id/metropolitan-district-council/walsall ,WC162-554,31.05.24,ADULT SOCIAL CARE,ADVANCE HEALTH CARE (UK) LTD,07/05/2024,607.95,6541-Domiciliary Care,THIRD PARTY PAYMENTS,PRIVATE CONTRACTOR,REVENUE
Walsall Council,http://opendatacommunities.org/id/metropolitan-district-council/walsall ,WC162-555,31.05.24,ADULT SOCIAL CARE,ADVANCE HEALTH CARE (UK) LTD,07/05/2024,472.92,6541-Domiciliary Care,THIRD PARTY PAYMENTS,PRIVATE CONTRACTOR,REVENUE
Walsall Council,http://opendatacommunities.org/id/metropolitan-district-council/walsall ,WC162-556,31.05.24,ADULT SOCIAL CARE,ADVANCE HEALTH CARE (UK) LTD,07/05/2024,304.01,6541-Domiciliary Care,THIRD PARTY PAYMENTS,PRIVATE CONTRACTOR,REVENUE
Walsall Council,http://opendatacommunities.org/id/metropolitan-district-council/walsall ,WC162-557,31.05.24,ADULT SOCIAL CARE,ADVANCE HEALTH CARE (UK) LTD,07/05/2024,955.41,6541-Domiciliary Care,THIRD PARTY PAYMENTS,PRIVATE CONTRACTOR,REVENUE
Walsall Council,http://opendatacommunities.org/id/metropolitan-district-council/walsall ,WC162-558,31.05.24,ADULT SOCIAL CARE,ADVANCE HEALTH CARE (UK) LTD,07/05/2024,472.85,6541-Domiciliary Care,THIRD PARTY PAYMENTS,PRIVATE CONTRACTOR,REVENUE
Walsall Council,http://opendatacommunities.org/id/metropolitan-district-council/walsall ,WC162-559,31.05.24,ADULT SOCIAL CARE,ADVANCE HEALTH CARE (UK) LTD,07/05/2024,540.40,6541-Domiciliary Care,THIRD PARTY PAYMENTS,PRIVATE CONTRACTOR,REVENUE
Walsall Council,http://opendatacommunities.org/id/metropolitan-district-council/walsall ,WC162-560,31.05.24,ADULT SOCIAL CARE,ADVANCE HEALTH CARE (UK) LTD,20/05/2024,323.31,6541-Domiciliary Care,THIRD PARTY PAYMENTS,PRIVATE CONTRACTOR,REVENUE
Walsall Council,http://opendatacommunities.org/id/metropolitan-district-council/walsall ,WC162-561,31.05.24,ADULT SOCIAL CARE,ADVANCE HEALTH CARE (UK) LTD,20/05/2024,304.01,6541-Domiciliary Care,THIRD PARTY PAYMENTS,PRIVATE CONTRACTOR,REVENUE
Walsall Council,http://opendatacommunities.org/id/metropolitan-district-council/walsall ,WC162-562,31.05.24,ADULT SOCIAL CARE,ADVANCE HEALTH CARE (UK) LTD,20/05/2024,472.85,6541-Domiciliary Care,THIRD PARTY PAYMENTS,PRIVATE CONTRACTOR,REVENUE
Walsall Council,http://opendatacommunities.org/id/metropolitan-district-council/walsall ,WC162-563,31.05.24,ADULT SOCIAL CARE,ADVANCE HEALTH CARE (UK) LTD,20/05/2024,"1,032.55",6541-Domiciliary Care,THIRD PARTY PAYMENTS,PRIVATE CONTRACTOR,REVENUE
Walsall Council,http://opendatacommunities.org/id/metropolitan-district-council/walsall ,WC162-564,31.05.24,ADULT SOCIAL CARE,ADVANCE HEALTH CARE (UK) LTD,20/05/2024,607.95,6541-Domiciliary Care,THIRD PARTY PAYMENTS,PRIVATE CONTRACTOR,REVENUE
Walsall Council,http://opendatacommunities.org/id/metropolitan-district-council/walsall ,WC162-565,31.05.24,ADULT SOCIAL CARE,ADVANCE HEALTH CARE (UK) LTD,20/05/2024,304.01,6541-Domiciliary Care,THIRD PARTY PAYMENTS,PRIVATE CONTRACTOR,REVENUE
Walsall Council,http://opendatacommunities.org/id/metropolitan-district-council/walsall ,WC162-566,31.05.24,ADULT SOCIAL CARE,ADVANCE HEALTH CARE (UK) LTD,20/05/2024,450.38,6541-Domiciliary Care,THIRD PARTY PAYMENTS,PRIVATE CONTRACTOR,REVENUE
Walsall Council,http://opendatacommunities.org/id/metropolitan-district-council/walsall ,WC162-567,31.05.24,ADULT SOCIAL CARE,ADVANCE HEALTH CARE (UK) LTD,20/05/2024,405.37,6541-Domiciliary Care,THIRD PARTY PAYMENTS,PRIVATE CONTRACTOR,REVENUE
Walsall Council,http://opendatacommunities.org/id/metropolitan-district-council/walsall ,WC162-568,31.05.24,ADULT SOCIAL CARE,ADVANCE HEALTH CARE (UK) LTD,20/05/2024,714.10,6541-Domiciliary Care,THIRD PARTY PAYMENTS,PRIVATE CONTRACTOR,REVENUE
Walsall Council,http://opendatacommunities.org/id/metropolitan-district-council/walsall ,WC162-569,31.05.24,ADULT SOCIAL CARE,ADVANCE HEALTH CARE (UK) LTD,20/05/2024,270.20,6541-Domiciliary Care,THIRD PARTY PAYMENTS,PRIVATE CONTRACTOR,REVENUE
Walsall Council,http://opendatacommunities.org/id/metropolitan-district-council/walsall ,WC162-570,31.05.24,ADULT SOCIAL CARE,ADVANCE HEALTH CARE (UK) LTD,20/05/2024,607.95,6541-Domiciliary Care,THIRD PARTY PAYMENTS,PRIVATE CONTRACTOR,REVENUE
Walsall Council,http://opendatacommunities.org/id/metropolitan-district-council/walsall ,WC162-571,31.05.24,ADULT SOCIAL CARE,ADVANCE HEALTH CARE (UK) LTD,20/05/2024,472.92,6541-Domiciliary Care,THIRD PARTY PAYMENTS,PRIVATE CONTRACTOR,REVENUE
Walsall Council,http://opendatacommunities.org/id/metropolitan-district-council/walsall ,WC162-572,31.05.24,ADULT SOCIAL CARE,ADVANCE HEALTH CARE (UK) LTD,20/05/2024,304.01,6541-Domiciliary Care,THIRD PARTY PAYMENTS,PRIVATE CONTRACTOR,REVENUE
Walsall Council,http://opendatacommunities.org/id/metropolitan-district-council/walsall ,WC162-573,31.05.24,ADULT SOCIAL CARE,ADVANCE HEALTH CARE (UK) LTD,20/05/2024,955.41,6541-Domiciliary Care,THIRD PARTY PAYMENTS,PRIVATE CONTRACTOR,REVENUE
Walsall Council,http://opendatacommunities.org/id/metropolitan-district-council/walsall ,WC162-574,31.05.24,ADULT SOCIAL CARE,ADVANCE HEALTH CARE (UK) LTD,20/05/2024,472.85,6541-Domiciliary Care,THIRD PARTY PAYMENTS,PRIVATE CONTRACTOR,REVENUE
Walsall Council,http://opendatacommunities.org/id/metropolitan-district-council/walsall ,WC162-575,31.05.24,ADULT SOCIAL CARE,ADVANCE HEALTH CARE (UK) LTD,20/05/2024,540.40,6541-Domiciliary Care,THIRD PARTY PAYMENTS,PRIVATE CONTRACTOR,REVENUE
Walsall Council,http://opendatacommunities.org/id/metropolitan-district-council/walsall ,WC162-576,31.05.24,ADULT SOCIAL CARE,ADVANCE HEALTH CARE (UK) LTD,20/05/2024,472.85,6541-Domiciliary Care,THIRD PARTY PAYMENTS,PRIVATE CONTRACTOR,REVENUE
Walsall Council,http://opendatacommunities.org/id/metropolitan-district-council/walsall ,WC162-577,31.05.24,ADULT SOCIAL CARE,ADVANCE HEALTH CARE (UK) LTD,20/05/2024,472.85,6541-Domiciliary Care,THIRD PARTY PAYMENTS,PRIVATE CONTRACTOR,REVENUE
Walsall Council,http://opendatacommunities.org/id/metropolitan-district-council/walsall ,WC162-578,31.05.24,ADULT SOCIAL CARE,ADVANCE HEALTH CARE (UK) LTD,20/05/2024,636.90,6541-Domiciliary Care,THIRD PARTY PAYMENTS,PRIVATE CONTRACTOR,REVENUE
Walsall Council,http://opendatacommunities.org/id/metropolitan-district-council/walsall ,WC162-579,31.05.24,ADULT SOCIAL CARE,ADVANCE HEALTH CARE (UK) LTD,20/05/2024,810.60,6541-Domiciliary Care,THIRD PARTY PAYMENTS,PRIVATE CONTRACTOR,REVENUE
Walsall Council,http://opendatacommunities.org/id/metropolitan-district-council/walsall ,WC162-580,31.05.24,ADULT SOCIAL CARE,ADVANCE HEALTH CARE (UK) LTD,20/05/2024,607.95,6541-Domiciliary Care,THIRD PARTY PAYMENTS,PRIVATE CONTRACTOR,REVENUE
Walsall Council,http://opendatacommunities.org/id/metropolitan-district-council/walsall ,WC162-581,31.05.24,ADULT SOCIAL CARE,ADVANCE HEALTH CARE (UK) LTD,20/05/2024,304.01,6541-Domiciliary Care,THIRD PARTY PAYMENTS,PRIVATE CONTRACTOR,REVENUE
Walsall Council,http://opendatacommunities.org/id/metropolitan-district-council/walsall ,WC162-582,31.05.24,ADULT SOCIAL CARE,ADVANCE HEALTH CARE (UK) LTD,20/05/2024,450.38,6541-Domiciliary Care,THIRD PARTY PAYMENTS,PRIVATE CONTRACTOR,REVENUE
Walsall Council,http://opendatacommunities.org/id/metropolitan-district-council/walsall ,WC162-583,31.05.24,ADULT SOCIAL CARE,ADVANCE HEALTH CARE (UK) LTD,20/05/2024,405.37,6541-Domiciliary Care,THIRD PARTY PAYMENTS,PRIVATE CONTRACTOR,REVENUE
Walsall Council,http://opendatacommunities.org/id/metropolitan-district-council/walsall ,WC162-584,31.05.24,ADULT SOCIAL CARE,ADVANCE HEALTH CARE (UK) LTD,20/05/2024,714.10,6541-Domiciliary Care,THIRD PARTY PAYMENTS,PRIVATE CONTRACTOR,REVENUE
Walsall Council,http://opendatacommunities.org/id/metropolitan-district-council/walsall ,WC162-585,31.05.24,ADULT SOCIAL CARE,ADVANCE HEALTH CARE (UK) LTD,20/05/2024,270.20,6541-Domiciliary Care,THIRD PARTY PAYMENTS,PRIVATE CONTRACTOR,REVENUE
Walsall Council,http://opendatacommunities.org/id/metropolitan-district-council/walsall ,WC162-586,31.05.24,ADULT SOCIAL CARE,ADVANCE HEALTH CARE (UK) LTD,20/05/2024,607.95,6541-Domiciliary Care,THIRD PARTY PAYMENTS,PRIVATE CONTRACTOR,REVENUE
Walsall Council,http://opendatacommunities.org/id/metropolitan-district-council/walsall ,WC162-587,31.05.24,ADULT SOCIAL CARE,ADVANCE HEALTH CARE (UK) LTD,20/05/2024,472.92,6541-Domiciliary Care,THIRD PARTY PAYMENTS,PRIVATE CONTRACTOR,REVENUE
Walsall Council,http://opendatacommunities.org/id/metropolitan-district-council/walsall ,WC162-588,31.05.24,ADULT SOCIAL CARE,ADVANCE HEALTH CARE (UK) LTD,20/05/2024,304.01,6541-Domiciliary Care,THIRD PARTY PAYMENTS,PRIVATE CONTRACTOR,REVENUE
Walsall Council,http://opendatacommunities.org/id/metropolitan-district-council/walsall ,WC162-589,31.05.24,ADULT SOCIAL CARE,ADVANCE HEALTH CARE (UK) LTD,20/05/2024,955.41,6541-Domiciliary Care,THIRD PARTY PAYMENTS,PRIVATE CONTRACTOR,REVENUE
Walsall Council,http://opendatacommunities.org/id/metropolitan-district-council/walsall ,WC162-590,31.05.24,ADULT SOCIAL CARE,ADVANCE HEALTH CARE (UK) LTD,20/05/2024,810.60,6541-Domiciliary Care,THIRD PARTY PAYMENTS,PRIVATE CONTRACTOR,REVENUE
Walsall Council,http://opendatacommunities.org/id/metropolitan-district-council/walsall ,WC162-591,31.05.24,ADULT SOCIAL CARE,ADVANCE HEALTH CARE (UK) LTD,20/05/2024,323.31,6541-Domiciliary Care,THIRD PARTY PAYMENTS,PRIVATE CONTRACTOR,REVENUE
Walsall Council,http://opendatacommunities.org/id/metropolitan-district-council/walsall ,WC162-592,31.05.24,ADULT SOCIAL CARE,ADVANCE HEALTH CARE (UK) LTD,20/05/2024,304.01,6541-Domiciliary Care,THIRD PARTY PAYMENTS,PRIVATE CONTRACTOR,REVENUE
Walsall Council,http://opendatacommunities.org/id/metropolitan-district-council/walsall ,WC162-593,31.05.24,ADULT SOCIAL CARE,ADVANCE HEALTH CARE (UK) LTD,20/05/2024,472.85,6541-Domiciliary Care,THIRD PARTY PAYMENTS,PRIVATE CONTRACTOR,REVENUE
Walsall Council,http://opendatacommunities.org/id/metropolitan-district-council/walsall ,WC162-594,31.05.24,ADULT SOCIAL CARE,ADVANCE HEALTH CARE (UK) LTD,20/05/2024,472.85,6541-Domiciliary Care,THIRD PARTY PAYMENTS,PRIVATE CONTRACTOR,REVENUE
Walsall Council,http://opendatacommunities.org/id/metropolitan-district-council/walsall ,WC162-595,31.05.24,ADULT SOCIAL CARE,ADVANCE HEALTH CARE (UK) LTD,20/05/2024,540.40,6541-Domiciliary Care,THIRD PARTY PAYMENTS,PRIVATE CONTRACTOR,REVENUE
Walsall Council,http://opendatacommunities.org/id/metropolitan-district-council/walsall ,WC162-596,31.05.24,ADULT SOCIAL CARE,ADVANCE HEALTH CARE (UK) LTD,20/05/2024,"1,032.55",6541-Domiciliary Care,THIRD PARTY PAYMENTS,PRIVATE CONTRACTOR,REVENUE
Walsall Council,http://opendatacommunities.org/id/metropolitan-district-council/walsall ,WC162-597,31.05.24,ADULT SOCIAL CARE,ADVANCE HEALTH CARE (UK) LTD,20/05/2024,472.85,6541-Domiciliary Care,THIRD PARTY PAYMENTS,PRIVATE CONTRACTOR,REVENUE
Walsall Council,http://opendatacommunities.org/id/metropolitan-district-council/walsall ,WC162-598,31.05.24,ADULT SOCIAL CARE,ADVANCE HEALTH CARE (UK) LTD,20/05/2024,472.85,6541-Domiciliary Care,THIRD PARTY PAYMENTS,PRIVATE CONTRACTOR,REVENUE
Walsall Council,http://opendatacommunities.org/id/metropolitan-district-council/walsall ,WC162-599,31.05.24,ADULT SOCIAL CARE,ADVANCE HEALTH CARE (UK) LTD,20/05/2024,636.90,6541-Domiciliary Care,THIRD PARTY PAYMENTS,PRIVATE CONTRACTOR,REVENUE
Walsall Council,http://opendatacommunities.org/id/metropolitan-district-council/walsall ,WC162-600,31.05.24,ADULT SOCIAL CARE,ADVANCE HEALTH CARE (UK) LTD,01/05/2024,459.10,6541-Domiciliary Care,THIRD PARTY PAYMENTS,PRIVATE CONTRACTOR,REVENUE
Walsall Council,http://opendatacommunities.org/id/metropolitan-district-council/walsall ,WC162-601,31.05.24,ADULT SOCIAL CARE,ADVANCE HEALTH CARE (UK) LTD,01/05/2024,913.58,6541-Domiciliary Care,THIRD PARTY PAYMENTS,PRIVATE CONTRACTOR,REVENUE
Walsall Council,http://opendatacommunities.org/id/metropolitan-district-council/walsall ,WC162-602,31.05.24,ADULT SOCIAL CARE,ADVANCE HEALTH CARE (UK) LTD,01/05/2024,757.34,6541-Domiciliary Care,THIRD PARTY PAYMENTS,PRIVATE CONTRACTOR,REVENUE
Walsall Council,http://opendatacommunities.org/id/metropolitan-district-council/walsall ,WC162-603,31.05.24,ADULT SOCIAL CARE,ADVANCE HEALTH CARE (UK) LTD,01/05/2024,"1,154.51",6541-Domiciliary Care,THIRD PARTY PAYMENTS,PRIVATE CONTRACTOR,REVENUE
Walsall Council,http://opendatacommunities.org/id/metropolitan-district-council/walsall ,WC162-604,31.05.24,ADULT SOCIAL CARE,ADVANCE HEALTH CARE (UK) LTD,01/05/2024,"1,013.96",6541-Domiciliary Care,THIRD PARTY PAYMENTS,PRIVATE CONTRACTOR,REVENUE
Walsall Council,http://opendatacommunities.org/id/metropolitan-district-council/walsall ,WC162-605,31.05.24,ADULT SOCIAL CARE,ADVANCE HEALTH CARE (UK) LTD,01/05/2024,"1,264.46",6541-Domiciliary Care,THIRD PARTY PAYMENTS,PRIVATE CONTRACTOR,REVENUE
Walsall Council,http://opendatacommunities.org/id/metropolitan-district-council/walsall ,WC162-606,31.05.24,ADULT SOCIAL CARE,ADVANCE HEALTH CARE (UK) LTD,01/05/2024,"1,324.52",6541-Domiciliary Care,THIRD PARTY PAYMENTS,PRIVATE CONTRACTOR,REVENUE
Walsall Council,http://opendatacommunities.org/id/metropolitan-district-council/walsall ,WC162-607,31.05.24,ADULT SOCIAL CARE,ADVANCE HEALTH CARE (UK) LTD,01/05/2024,855.12,6541-Domiciliary Care,THIRD PARTY PAYMENTS,PRIVATE CONTRACTOR,REVENUE
Walsall Council,http://opendatacommunities.org/id/metropolitan-district-council/walsall ,WC162-608,31.05.24,ADULT SOCIAL CARE,ADVANCE HEALTH CARE (UK) LTD,01/05/2024,511.17,6541-Domiciliary Care,THIRD PARTY PAYMENTS,PRIVATE CONTRACTOR,REVENUE
Walsall Council,http://opendatacommunities.org/id/metropolitan-district-council/walsall ,WC162-609,31.05.24,ADULT SOCIAL CARE,ADVANCE HEALTH CARE (UK) LTD,01/05/2024,940.66,6541-Domiciliary Care,THIRD PARTY PAYMENTS,PRIVATE CONTRACTOR,REVENUE
Walsall Council,http://opendatacommunities.org/id/metropolitan-district-council/walsall ,WC162-610,31.05.24,ADULT SOCIAL CARE,ADVANCE HEALTH CARE (UK) LTD,01/05/2024,842.88,6541-Domiciliary Care,THIRD PARTY PAYMENTS,PRIVATE CONTRACTOR,REVENUE
Walsall Council,http://opendatacommunities.org/id/metropolitan-district-council/walsall ,WC162-611,31.05.24,ADULT SOCIAL CARE,ADVANCE HEALTH CARE (UK) LTD,01/05/2024,"1,068.97",6541-Domiciliary Care,THIRD PARTY PAYMENTS,PRIVATE CONTRACTOR,REVENUE
Walsall Council,http://opendatacommunities.org/id/metropolitan-district-council/walsall ,WC162-612,31.05.24,ADULT SOCIAL CARE,ADVANCE HEALTH CARE (UK) LTD,01/05/2024,"1,093.38",6541-Domiciliary Care,THIRD PARTY PAYMENTS,PRIVATE CONTRACTOR,REVENUE
Walsall Council,http://opendatacommunities.org/id/metropolitan-district-council/walsall ,WC162-613,31.05.24,ADULT SOCIAL CARE,ADVANCE HEALTH CARE (UK) LTD,01/05/2024,965.07,6541-Domiciliary Care,THIRD PARTY PAYMENTS,PRIVATE CONTRACTOR,REVENUE
Walsall Council,http://opendatacommunities.org/id/metropolitan-district-council/walsall ,WC162-614,31.05.24,ADULT SOCIAL CARE,ADVANCE HEALTH CARE (UK) LTD,01/05/2024,932.08,6541-Domiciliary Care,THIRD PARTY PAYMENTS,PRIVATE CONTRACTOR,REVENUE
Walsall Council,http://opendatacommunities.org/id/metropolitan-district-council/walsall ,WC162-615,31.05.24,ADULT SOCIAL CARE,ADVANCE HEALTH CARE (UK) LTD,01/05/2024,555.87,6541-Domiciliary Care,THIRD PARTY PAYMENTS,PRIVATE CONTRACTOR,REVENUE
Walsall Council,http://opendatacommunities.org/id/metropolitan-district-council/walsall ,WC162-616,31.05.24,ADULT SOCIAL CARE,ADVANCE HEALTH CARE (UK) LTD,01/05/2024,439.80,6541-Domiciliary Care,THIRD PARTY PAYMENTS,PRIVATE CONTRACTOR,REVENUE
Walsall Council,http://opendatacommunities.org/id/metropolitan-district-council/walsall ,WC162-617,31.05.24,ADULT SOCIAL CARE,ADVANCE HEALTH CARE (UK) LTD,01/05/2024,773.84,6541-Domiciliary Care,THIRD PARTY PAYMENTS,PRIVATE CONTRACTOR,REVENUE
Walsall Council,http://opendatacommunities.org/id/metropolitan-district-council/walsall ,WC162-618,31.05.24,ADULT SOCIAL CARE,ADVANCE HEALTH CARE (UK) LTD,01/05/2024,"1,301.11",6541-Domiciliary Care,THIRD PARTY PAYMENTS,PRIVATE CONTRACTOR,REVENUE
Walsall Council,http://opendatacommunities.org/id/metropolitan-district-council/walsall ,WC162-619,31.05.24,ADULT SOCIAL CARE,ADVANCE HEALTH CARE (UK) LTD,29/05/2024,675.43,6541-Domiciliary Care,THIRD PARTY PAYMENTS,PRIVATE CONTRACTOR,REVENUE
Walsall Council,http://opendatacommunities.org/id/metropolitan-district-council/walsall ,WC162-620,31.05.24,ADULT SOCIAL CARE,ADVANCE HEALTH CARE (UK) LTD,29/05/2024,964.72,6541-Domiciliary Care,THIRD PARTY PAYMENTS,PRIVATE CONTRACTOR,REVENUE
Walsall Council,http://opendatacommunities.org/id/metropolitan-district-council/walsall ,WC162-621,31.05.24,ADULT SOCIAL CARE,ADVANCE HEALTH CARE (UK) LTD,29/05/2024,797.36,6541-Domiciliary Care,THIRD PARTY PAYMENTS,PRIVATE CONTRACTOR,REVENUE
Walsall Council,http://opendatacommunities.org/id/metropolitan-district-council/walsall ,WC162-622,31.05.24,ADULT SOCIAL CARE,ADVANCE HEALTH CARE (UK) LTD,29/05/2024,"1,216.04",6541-Domiciliary Care,THIRD PARTY PAYMENTS,PRIVATE CONTRACTOR,REVENUE
Walsall Council,http://opendatacommunities.org/id/metropolitan-district-council/walsall ,WC162-623,31.05.24,ADULT SOCIAL CARE,ADVANCE HEALTH CARE (UK) LTD,29/05/2024,"1,067.84",6541-Domiciliary Care,THIRD PARTY PAYMENTS,PRIVATE CONTRACTOR,REVENUE
Walsall Council,http://opendatacommunities.org/id/metropolitan-district-council/walsall ,WC162-624,31.05.24,ADULT SOCIAL CARE,ADVANCE HEALTH CARE (UK) LTD,29/05/2024,"1,331.84",6541-Domiciliary Care,THIRD PARTY PAYMENTS,PRIVATE CONTRACTOR,REVENUE
Walsall Council,http://opendatacommunities.org/id/metropolitan-district-council/walsall ,WC162-625,31.05.24,ADULT SOCIAL CARE,ADVANCE HEALTH CARE (UK) LTD,29/05/2024,"1,396.08",6541-Domiciliary Care,THIRD PARTY PAYMENTS,PRIVATE CONTRACTOR,REVENUE
Walsall Council,http://opendatacommunities.org/id/metropolitan-district-council/walsall ,WC162-626,31.05.24,ADULT SOCIAL CARE,ADVANCE HEALTH CARE (UK) LTD,29/05/2024,900.48,6541-Domiciliary Care,THIRD PARTY PAYMENTS,PRIVATE CONTRACTOR,REVENUE
Walsall Council,http://opendatacommunities.org/id/metropolitan-district-council/walsall ,WC162-627,31.05.24,ADULT SOCIAL CARE,ADVANCE HEALTH CARE (UK) LTD,29/05/2024,675.64,6541-Domiciliary Care,THIRD PARTY PAYMENTS,PRIVATE CONTRACTOR,REVENUE
Walsall Council,http://opendatacommunities.org/id/metropolitan-district-council/walsall ,WC162-628,31.05.24,ADULT SOCIAL CARE,ADVANCE HEALTH CARE (UK) LTD,29/05/2024,990.64,6541-Domiciliary Care,THIRD PARTY PAYMENTS,PRIVATE CONTRACTOR,REVENUE
Walsall Council,http://opendatacommunities.org/id/metropolitan-district-council/walsall ,WC162-629,31.05.24,ADULT SOCIAL CARE,ADVANCE HEALTH CARE (UK) LTD,29/05/2024,887.52,6541-Domiciliary Care,THIRD PARTY PAYMENTS,PRIVATE CONTRACTOR,REVENUE
Walsall Council,http://opendatacommunities.org/id/metropolitan-district-council/walsall ,WC162-630,31.05.24,ADULT SOCIAL CARE,ADVANCE HEALTH CARE (UK) LTD,29/05/2024,"1,125.88",6541-Domiciliary Care,THIRD PARTY PAYMENTS,PRIVATE CONTRACTOR,REVENUE
Walsall Council,http://opendatacommunities.org/id/metropolitan-district-council/walsall ,WC162-631,31.05.24,ADULT SOCIAL CARE,ADVANCE HEALTH CARE (UK) LTD,29/05/2024,"1,151.52",6541-Domiciliary Care,THIRD PARTY PAYMENTS,PRIVATE CONTRACTOR,REVENUE
Walsall Council,http://opendatacommunities.org/id/metropolitan-district-council/walsall ,WC162-632,31.05.24,ADULT SOCIAL CARE,ADVANCE HEALTH CARE (UK) LTD,29/05/2024,"1,016.28",6541-Domiciliary Care,THIRD PARTY PAYMENTS,PRIVATE CONTRACTOR,REVENUE
Walsall Council,http://opendatacommunities.org/id/metropolitan-district-council/walsall ,WC162-633,31.05.24,ADULT SOCIAL CARE,ADVANCE HEALTH CARE (UK) LTD,29/05/2024,951.36,6541-Domiciliary Care,THIRD PARTY PAYMENTS,PRIVATE CONTRACTOR,REVENUE
Walsall Council,http://opendatacommunities.org/id/metropolitan-district-council/walsall ,WC162-634,31.05.24,ADULT SOCIAL CARE,ADVANCE HEALTH CARE (UK) LTD,29/05/2024,585.48,6541-Domiciliary Care,THIRD PARTY PAYMENTS,PRIVATE CONTRACTOR,REVENUE
Walsall Council,http://opendatacommunities.org/id/metropolitan-district-council/walsall ,WC162-635,31.05.24,ADULT SOCIAL CARE,ADVANCE HEALTH CARE (UK) LTD,29/05/2024,463.20,6541-Domiciliary Care,THIRD PARTY PAYMENTS,PRIVATE CONTRACTOR,REVENUE
Walsall Council,http://opendatacommunities.org/id/metropolitan-district-council/walsall ,WC162-636,31.05.24,ADULT SOCIAL CARE,ADVANCE HEALTH CARE (UK) LTD,29/05/2024,842.72,6541-Domiciliary Care,THIRD PARTY PAYMENTS,PRIVATE CONTRACTOR,REVENUE
Walsall Council,http://opendatacommunities.org/id/metropolitan-district-council/walsall ,WC162-637,31.05.24,ADULT SOCIAL CARE,ADVANCE HEALTH CARE (UK) LTD,29/05/2024,"1,370.44",6541-Domiciliary Care,THIRD PARTY PAYMENTS,PRIVATE CONTRACTOR,REVENUE
Walsall Council,http://opendatacommunities.org/id/metropolitan-district-council/walsall ,WC162-638,31.05.24,ADULT SOCIAL CARE,ADVINIA CARE HOMES LTD - HAMMERWICH HALL CARE HOME,07/05/2024,"2,533.66",6541-Residential EMI,THIRD PARTY PAYMENTS,PRIVATE CONTRACTOR,REVENUE
Walsall Council,http://opendatacommunities.org/id/metropolitan-district-council/walsall ,WC162-639,31.05.24,ADULT SOCIAL CARE,ADVINIA CARE HOMES LTD - HAMMERWICH HALL CARE HOME,07/05/2024,"2,244.50",6541-Residential,THIRD PARTY PAYMENTS,PRIVATE CONTRACTOR,REVENUE
Walsall Council,http://opendatacommunities.org/id/metropolitan-district-council/walsall ,WC162-640,31.05.24,ADULT SOCIAL CARE,REDACTED,01/05/2024,"1,017.68",6541-Direct Payment,THIRD PARTY PAYMENTS,PRIVATE CONTRACTOR,REVENUE
Walsall Council,http://opendatacommunities.org/id/metropolitan-district-council/walsall ,WC162-641,31.05.24,ADULT SOCIAL CARE,REDACTED,01/05/2024,"1,351.28",6541-Direct Payment,THIRD PARTY PAYMENTS,PRIVATE CONTRACTOR,REVENUE
Walsall Council,http://opendatacommunities.org/id/metropolitan-district-council/walsall ,WC162-642,31.05.24,CHILDRENS,REDACTED,01/05/2024,881.08,6223-Special Guardianship Orders,TRANSFER PAYMENTS,CHILDREN SOCIAL SERVICES CLIENT,REVENUE
Walsall Council,http://opendatacommunities.org/id/metropolitan-district-council/walsall ,WC162-643,31.05.24,CHILDRENS,REDACTED,30/05/2024,633.60,6223-Special Guardianship Orders,TRANSFER PAYMENTS,CHILDREN SOCIAL SERVICES CLIENT,REVENUE
Walsall Council,http://opendatacommunities.org/id/metropolitan-district-council/walsall ,WC162-644,31.05.24,ADULT SOCIAL CARE,REDACTED,01/05/2024,321.36,6541-Direct Payment,THIRD PARTY PAYMENTS,PRIVATE CONTRACTOR,REVENUE
Walsall Council,http://opendatacommunities.org/id/metropolitan-district-council/walsall ,WC162-645,31.05.24,ADULT SOCIAL CARE,REDACTED,01/05/2024,"3,052.92",6541-Direct Payment,THIRD PARTY PAYMENTS,PRIVATE CONTRACTOR,REVENUE
Walsall Council,http://opendatacommunities.org/id/metropolitan-district-council/walsall ,WC162-646,31.05.24,"ECONOMY, ENVIRONMENT & COMMUNITIES",AIRQUEE,01/05/2024,"3,910.50",6413-Materials,SUPPLIES & SERVICES,EQUIPMENT FURNITURE & MATERIALS,REVENUE
Walsall Council,http://opendatacommunities.org/id/metropolitan-district-council/walsall ,WC162-647,31.05.24,ADULT SOCIAL CARE,REDACTED,01/05/2024,"1,233.74",6541-Direct Payment,THIRD PARTY PAYMENTS,PRIVATE CONTRACTOR,REVENUE
Walsall Council,http://opendatacommunities.org/id/metropolitan-district-council/walsall ,WC162-648,31.05.24,ADULT SOCIAL CARE,REDACTED,01/05/2024,513.88,6541-Direct Payment,THIRD PARTY PAYMENTS,PRIVATE CONTRACTOR,REVENUE
Walsall Council,http://opendatacommunities.org/id/metropolitan-district-council/walsall ,WC162-649,31.05.24,ADULT SOCIAL CARE,REDACTED,01/05/2024,434.28,6541-Direct Payment,THIRD PARTY PAYMENTS,PRIVATE CONTRACTOR,REVENUE
Walsall Council,http://opendatacommunities.org/id/metropolitan-district-council/walsall ,WC162-650,31.05.24,ADULT SOCIAL CARE,REDACTED,01/05/2024,267.44,6541-Direct Payment,THIRD PARTY PAYMENTS,PRIVATE CONTRACTOR,REVENUE
Walsall Council,http://opendatacommunities.org/id/metropolitan-district-council/walsall ,WC162-651,31.05.24,ADULT SOCIAL CARE,REDACTED,01/05/2024,"1,599.12",6541-Direct Payment,THIRD PARTY PAYMENTS,PRIVATE CONTRACTOR,REVENUE
Walsall Council,http://opendatacommunities.org/id/metropolitan-district-council/walsall ,WC162-652,31.05.24,ADULT SOCIAL CARE,ALDBOURNE NURSING HOME LTD,07/05/2024,"5,920.00",6541-Nursing EMI,THIRD PARTY PAYMENTS,PRIVATE CONTRACTOR,REVENUE
Walsall Council,http://opendatacommunities.org/id/metropolitan-district-council/walsall ,WC162-653,31.05.24,CHILDRENS,ALDRIDGE & BARONS LIMITED,21/05/2024,"2,434.00",6241-Hire of Vehicle with Driver,TRANSPORT,DIRECT TRANSPORT COSTS,REVENUE
Walsall Council,http://opendatacommunities.org/id/metropolitan-district-council/walsall ,WC162-654,31.05.24,CHILDRENS,ALDRIDGE & BARONS LIMITED,21/05/2024,"2,938.60",6241-Hire of Vehicle with Driver,TRANSPORT,DIRECT TRANSPORT COSTS,REVENUE
Walsall Council,http://opendatacommunities.org/id/metropolitan-district-council/walsall ,WC162-655,31.05.24,CHILDRENS,ALDRIDGE & BARONS LIMITED,21/05/2024,"2,860.00",6241-Hire of Vehicle with Driver,TRANSPORT,DIRECT TRANSPORT COSTS,REVENUE
Walsall Council,http://opendatacommunities.org/id/metropolitan-district-council/walsall ,WC162-656,31.05.24,CHILDRENS,ALDRIDGE & BARONS LIMITED,21/05/2024,"2,470.00",6241-Hire of Vehicle with Driver,TRANSPORT,DIRECT TRANSPORT COSTS,REVENUE
Walsall Council,http://opendatacommunities.org/id/metropolitan-district-council/walsall ,WC162-657,31.05.24,CHILDRENS,ALDRIDGE & BARONS LIMITED,21/05/2024,920.00,6241-Hire of Vehicle with Driver,TRANSPORT,DIRECT TRANSPORT COSTS,REVENUE
Walsall Council,http://opendatacommunities.org/id/metropolitan-district-council/walsall ,WC162-658,31.05.24,CHILDRENS,ALDRIDGE & BARONS LIMITED,21/05/2024,"2,811.60",6241-Hire of Vehicle with Driver,TRANSPORT,DIRECT TRANSPORT COSTS,REVENUE
Walsall Council,http://opendatacommunities.org/id/metropolitan-district-council/walsall ,WC162-659,31.05.24,CHILDRENS,ALDRIDGE & BARONS LIMITED,21/05/2024,"3,350.00",6241-Hire of Vehicle with Driver,TRANSPORT,DIRECT TRANSPORT COSTS,REVENUE
Walsall Council,http://opendatacommunities.org/id/metropolitan-district-council/walsall ,WC162-660,31.05.24,CHILDRENS,ALDRIDGE & BARONS LIMITED,21/05/2024,"1,062.00",6241-Hire of Vehicle with Driver,TRANSPORT,DIRECT TRANSPORT COSTS,REVENUE
Walsall Council,http://opendatacommunities.org/id/metropolitan-district-council/walsall ,WC162-661,31.05.24,CHILDRENS,ALDRIDGE & BARONS LIMITED,21/05/2024,"1,914.00",6241-Hire of Vehicle with Driver,TRANSPORT,DIRECT TRANSPORT COSTS,REVENUE
Walsall Council,http://opendatacommunities.org/id/metropolitan-district-council/walsall ,WC162-662,31.05.24,CHILDRENS,ALDRIDGE & BARONS LIMITED,21/05/2024,"3,454.60",6241-Hire of Vehicle with Driver,TRANSPORT,DIRECT TRANSPORT COSTS,REVENUE
Walsall Council,http://opendatacommunities.org/id/metropolitan-district-council/walsall ,WC162-663,31.05.24,CHILDRENS,ALDRIDGE & BARONS LIMITED,21/05/2024,"2,120.40",6241-Hire of Vehicle with Driver,TRANSPORT,DIRECT TRANSPORT COSTS,REVENUE
Walsall Council,http://opendatacommunities.org/id/metropolitan-district-council/walsall ,WC162-664,31.05.24,CHILDRENS,ALDRIDGE & BARONS LIMITED,21/05/2024,"3,000.00",6241-Hire of Vehicle with Driver,TRANSPORT,DIRECT TRANSPORT COSTS,REVENUE
Walsall Council,http://opendatacommunities.org/id/metropolitan-district-council/walsall ,WC162-665,31.05.24,CHILDRENS,ALDRIDGE & BARONS LIMITED,21/05/2024,"3,600.00",6241-Hire of Vehicle with Driver,TRANSPORT,DIRECT TRANSPORT COSTS,REVENUE
Walsall Council,http://opendatacommunities.org/id/metropolitan-district-council/walsall ,WC162-666,31.05.24,CHILDRENS,ALDRIDGE & BARONS LIMITED,21/05/2024,"1,980.00",6241-Hire of Vehicle with Driver,TRANSPORT,DIRECT TRANSPORT COSTS,REVENUE
Walsall Council,http://opendatacommunities.org/id/metropolitan-district-council/walsall ,WC162-667,31.05.24,CHILDRENS,ALDRIDGE & BARONS LIMITED,21/05/2024,"2,717.00",6241-Hire of Vehicle with Driver,TRANSPORT,DIRECT TRANSPORT COSTS,REVENUE
Walsall Council,http://opendatacommunities.org/id/metropolitan-district-council/walsall ,WC162-668,31.05.24,CHILDRENS,ALDRIDGE & BARONS LIMITED,21/05/2024,392.00,6241-Hire of Vehicle with Driver,TRANSPORT,DIRECT TRANSPORT COSTS,REVENUE
Walsall Council,http://opendatacommunities.org/id/metropolitan-district-council/walsall ,WC162-669,31.05.24,CHILDRENS,ALDRIDGE & BARONS LIMITED,21/05/2024,396.00,6241-Hire of Vehicle with Driver,TRANSPORT,DIRECT TRANSPORT COSTS,REVENUE
Walsall Council,http://opendatacommunities.org/id/metropolitan-district-council/walsall ,WC162-670,31.05.24,CHILDRENS,ALDRIDGE & BARONS LIMITED,21/05/2024,"3,000.00",6241-Hire of Vehicle with Driver,TRANSPORT,DIRECT TRANSPORT COSTS,REVENUE
Walsall Council,http://opendatacommunities.org/id/metropolitan-district-council/walsall ,WC162-671,31.05.24,CHILDRENS,ALDRIDGE & BARONS LIMITED,21/05/2024,"3,173.80",6241-Hire of Vehicle with Driver,TRANSPORT,DIRECT TRANSPORT COSTS,REVENUE
Walsall Council,http://opendatacommunities.org/id/metropolitan-district-council/walsall ,WC162-672,31.05.24,CHILDRENS,ALDRIDGE & BARONS LIMITED,21/05/2024,"2,400.00",6241-Hire of Vehicle with Driver,TRANSPORT,DIRECT TRANSPORT COSTS,REVENUE
Walsall Council,http://opendatacommunities.org/id/metropolitan-district-council/walsall ,WC162-673,31.05.24,CHILDRENS,ALDRIDGE & BARONS LIMITED,21/05/2024,"3,045.00",6241-Hire of Vehicle with Driver,TRANSPORT,DIRECT TRANSPORT COSTS,REVENUE
Walsall Council,http://opendatacommunities.org/id/metropolitan-district-council/walsall ,WC162-674,31.05.24,CHILDRENS,ALDRIDGE & BARONS LIMITED,21/05/2024,"2,887.60",6241-Hire of Vehicle with Driver,TRANSPORT,DIRECT TRANSPORT COSTS,REVENUE
Walsall Council,http://opendatacommunities.org/id/metropolitan-district-council/walsall ,WC162-675,31.05.24,CHILDRENS,ALDRIDGE & BARONS LIMITED,21/05/2024,"2,340.00",6241-Hire of Vehicle with Driver,TRANSPORT,DIRECT TRANSPORT COSTS,REVENUE
Walsall Council,http://opendatacommunities.org/id/metropolitan-district-council/walsall ,WC162-676,31.05.24,CHILDRENS,ALDRIDGE & BARONS LIMITED,21/05/2024,"2,250.00",6241-Hire of Vehicle with Driver,TRANSPORT,DIRECT TRANSPORT COSTS,REVENUE
Walsall Council,http://opendatacommunities.org/id/metropolitan-district-council/walsall ,WC162-677,31.05.24,CHILDRENS,ALDRIDGE & BARONS LIMITED,21/05/2024,"3,680.00",6241-Hire of Vehicle with Driver,TRANSPORT,DIRECT TRANSPORT COSTS,REVENUE
Walsall Council,http://opendatacommunities.org/id/metropolitan-district-council/walsall ,WC162-678,31.05.24,CHILDRENS,ALDRIDGE & BARONS LIMITED,21/05/2024,"3,040.00",6241-Hire of Vehicle with Driver,TRANSPORT,DIRECT TRANSPORT COSTS,REVENUE
Walsall Council,http://opendatacommunities.org/id/metropolitan-district-council/walsall ,WC162-679,31.05.24,CHILDRENS,ALDRIDGE & BARONS LIMITED,21/05/2024,"3,374.40",6241-Hire of Vehicle with Driver,TRANSPORT,DIRECT TRANSPORT COSTS,REVENUE
Walsall Council,http://opendatacommunities.org/id/metropolitan-district-council/walsall ,WC162-680,31.05.24,CHILDRENS,ALDRIDGE & BARONS LIMITED,21/05/2024,"1,578.00",6241-Hire of Vehicle with Driver,TRANSPORT,DIRECT TRANSPORT COSTS,REVENUE
Walsall Council,http://opendatacommunities.org/id/metropolitan-district-council/walsall ,WC162-681,31.05.24,CHILDRENS,ALDRIDGE & BARONS LIMITED,21/05/2024,"1,750.00",6241-Hire of Vehicle with Driver,TRANSPORT,DIRECT TRANSPORT COSTS,REVENUE
Walsall Council,http://opendatacommunities.org/id/metropolitan-district-council/walsall ,WC162-682,31.05.24,CHILDRENS,ALDRIDGE & BARONS LIMITED,21/05/2024,"3,004.00",6241-Hire of Vehicle with Driver,TRANSPORT,DIRECT TRANSPORT COSTS,REVENUE
Walsall Council,http://opendatacommunities.org/id/metropolitan-district-council/walsall ,WC162-683,31.05.24,CHILDRENS,ALDRIDGE & BARONS LIMITED,21/05/2024,"1,980.00",6241-Hire of Vehicle with Driver,TRANSPORT,DIRECT TRANSPORT COSTS,REVENUE
Walsall Council,http://opendatacommunities.org/id/metropolitan-district-council/walsall ,WC162-684,31.05.24,CHILDRENS,ALDRIDGE & BARONS LIMITED,21/05/2024,"2,717.00",6241-Hire of Vehicle with Driver,TRANSPORT,DIRECT TRANSPORT COSTS,REVENUE
Walsall Council,http://opendatacommunities.org/id/metropolitan-district-council/walsall ,WC162-685,31.05.24,CHILDRENS,ALDRIDGE & BARONS LIMITED,21/05/2024,"2,500.00",6241-Hire of Vehicle with Driver,TRANSPORT,DIRECT TRANSPORT COSTS,REVENUE
Walsall Council,http://opendatacommunities.org/id/metropolitan-district-council/walsall ,WC162-686,31.05.24,CHILDRENS,ALDRIDGE & BARONS LIMITED,21/05/2024,"2,200.00",6241-Hire of Vehicle with Driver,TRANSPORT,DIRECT TRANSPORT COSTS,REVENUE
Walsall Council,http://opendatacommunities.org/id/metropolitan-district-council/walsall ,WC162-687,31.05.24,RESOURCES AND TRANSFORMATION,ALDRIDGE METHODIST CHURCH 001,21/05/2024,400.00,6610-Hire of Room,SUPPLIES & SERVICES,SERVICES,REVENUE
Walsall Council,http://opendatacommunities.org/id/metropolitan-district-council/walsall ,WC162-688,31.05.24,ADULT SOCIAL CARE,REDACTED,01/05/2024,"1,852.80",6541-Direct Payment,THIRD PARTY PAYMENTS,PRIVATE CONTRACTOR,REVENUE
Walsall Council,http://opendatacommunities.org/id/metropolitan-district-council/walsall ,WC162-689,31.05.24,ADULT SOCIAL CARE,ALEXANDRA HOUSE CARE SERVICES LTD T/A STONEBRIDGE NURSING HOME,07/05/2024,"7,546.24",6541-Residential,THIRD PARTY PAYMENTS,PRIVATE CONTRACTOR,REVENUE
Walsall Council,http://opendatacommunities.org/id/metropolitan-district-council/walsall ,WC162-690,31.05.24,ADULT SOCIAL CARE,ALEXANDRA HOUSE SUPPORT SERVICES LTD,07/05/2024,"5,936.00",6541-Residential,THIRD PARTY PAYMENTS,PRIVATE CONTRACTOR,REVENUE
Walsall Council,http://opendatacommunities.org/id/metropolitan-district-council/walsall ,WC162-691,31.05.24,ADULT SOCIAL CARE,REDACTED,01/05/2024,"1,178.32",6541-Direct Payment,THIRD PARTY PAYMENTS,PRIVATE CONTRACTOR,REVENUE
Walsall Council,http://opendatacommunities.org/id/metropolitan-district-council/walsall ,WC162-692,31.05.24,ADULT SOCIAL CARE,REDACTED,01/05/2024,"3,109.56",6541-Direct Payment,THIRD PARTY PAYMENTS,PRIVATE CONTRACTOR,REVENUE
Walsall Council,http://opendatacommunities.org/id/metropolitan-district-council/walsall ,WC162-693,31.05.24,CHILDRENS,REDACTED,01/05/2024,323.60,6223-Special Guardianship Orders,TRANSFER PAYMENTS,CHILDREN SOCIAL SERVICES CLIENT,REVENUE
Walsall Council,http://opendatacommunities.org/id/metropolitan-district-council/walsall ,WC162-694,31.05.24,CHILDRENS,REDACTED,30/05/2024,418.46,6223-Special Guardianship Orders,TRANSFER PAYMENTS,CHILDREN SOCIAL SERVICES CLIENT,REVENUE
Walsall Council,http://opendatacommunities.org/id/metropolitan-district-council/walsall ,WC162-695,31.05.24,ADULT SOCIAL CARE,REDACTED,16/05/2024,979.90,6541-Shared Lives,THIRD PARTY PAYMENTS,PRIVATE CONTRACTOR,REVENUE
Walsall Council,http://opendatacommunities.org/id/metropolitan-district-council/walsall ,WC162-696,31.05.24,"ECONOMY, ENVIRONMENT & COMMUNITIES",ALL CLEAR SERVICES LTD.,03/05/2024,560.00,6411-Hazardous Waste Removal & Disposal,THIRD PARTY PAYMENTS,PRIVATE CONTRACTOR,REVENUE
Walsall Council,http://opendatacommunities.org/id/metropolitan-district-council/walsall ,WC162-697,31.05.24,"ECONOMY, ENVIRONMENT & COMMUNITIES",ALL TERRAIN ENGINEERING LIMITED,23/05/2024,"1,680.00",6410-Professional Services-Priv Contractor & Other Agencies,THIRD PARTY PAYMENTS,PRIVATE CONTRACTOR,REVENUE
Walsall Council,http://opendatacommunities.org/id/metropolitan-district-council/walsall ,WC162-698,31.05.24,"ECONOMY, ENVIRONMENT & COMMUNITIES",ALL TERRAIN ENGINEERING LIMITED,23/05/2024,954.00,6410-Professional Services-Priv Contractor & Other Agencies,THIRD PARTY PAYMENTS,PRIVATE CONTRACTOR,REVENUE
Walsall Council,http://opendatacommunities.org/id/metropolitan-district-council/walsall ,WC162-699,31.05.24,"ECONOMY, ENVIRONMENT & COMMUNITIES",THE GEORGE HARRISON PROJECT,22/05/2024,937.91,6414-Professional Fees & Services,SUPPLIES & SERVICES,SERVICES,REVENUE
Walsall Council,http://opendatacommunities.org/id/metropolitan-district-council/walsall ,WC162-700,31.05.24,RESOURCES AND TRANSFORMATION,ALLIED PUBLICITY SERVICES (MANCHESTER) LIMITED T/A APS GROUP,01/05/2024,"-2,137.32",6312-External Printing Services,SUPPLIES & SERVICES,PRINTING STATIONERY & GENERAL OFFICE,REVENUE
Walsall Council,http://opendatacommunities.org/id/metropolitan-district-council/walsall ,WC162-701,31.05.24,RESOURCES AND TRANSFORMATION,ALLIED PUBLICITY SERVICES (MANCHESTER) LIMITED T/A APS GROUP,01/05/2024,"2,137.32",6312-External Printing Services,SUPPLIES & SERVICES,PRINTING STATIONERY & GENERAL OFFICE,REVENUE
Walsall Council,http://opendatacommunities.org/id/metropolitan-district-council/walsall ,WC162-702,31.05.24,RESOURCES AND TRANSFORMATION,ALLIED PUBLICITY SERVICES (MANCHESTER) LIMITED T/A APS GROUP,01/05/2024,"2,137.32",6312-Professional Fees & Services,SUPPLIES & SERVICES,SERVICES,REVENUE
Walsall Council,http://opendatacommunities.org/id/metropolitan-district-council/walsall ,WC162-703,31.05.24,RESOURCES AND TRANSFORMATION,ALLIED PUBLICITY SERVICES (MANCHESTER) LIMITED T/A APS GROUP,30/05/2024,"1,183.80",6312-Professional Fees & Services,SUPPLIES & SERVICES,SERVICES,REVENUE
Walsall Council,http://opendatacommunities.org/id/metropolitan-district-council/walsall ,WC162-704,31.05.24,ADULT SOCIAL CARE,ALMA COURT,07/05/2024,"4,861.00",6541-Nursing EMI,THIRD PARTY PAYMENTS,PRIVATE CONTRACTOR,REVENUE
Walsall Council,http://opendatacommunities.org/id/metropolitan-district-council/walsall ,WC162-705,31.05.24,ADULT SOCIAL CARE,ALMA COURT,07/05/2024,"6,718.40",6541-Residential,THIRD PARTY PAYMENTS,PRIVATE CONTRACTOR,REVENUE
Walsall Council,http://opendatacommunities.org/id/metropolitan-district-council/walsall ,WC162-706,31.05.24,ADULT SOCIAL CARE,ALMA COURT,07/05/2024,"4,263.00",6541-Residential,THIRD PARTY PAYMENTS,PRIVATE CONTRACTOR,REVENUE
Walsall Council,http://opendatacommunities.org/id/metropolitan-district-council/walsall ,WC162-707,31.05.24,ADULT SOCIAL CARE,ALMA COURT,07/05/2024,"4,055.28",6541-Nursing EMI,THIRD PARTY PAYMENTS,PRIVATE CONTRACTOR,REVENUE
Walsall Council,http://opendatacommunities.org/id/metropolitan-district-council/walsall ,WC162-708,31.05.24,ADULT SOCIAL CARE,ALMA COURT,07/05/2024,"5,200.00",6541-Residential,THIRD PARTY PAYMENTS,PRIVATE CONTRACTOR,REVENUE
Walsall Council,http://opendatacommunities.org/id/metropolitan-district-council/walsall ,WC162-709,31.05.24,CHILDRENS,ALMOZENE NURSERY & CHILDRENS CENTRE,08/05/2024,300.00,6220-Creche Facilities,SUPPLIES & SERVICES,SERVICES,REVENUE
Walsall Council,http://opendatacommunities.org/id/metropolitan-district-council/walsall ,WC162-710,31.05.24,ADULT SOCIAL CARE,ALPHA HEALTH CARE LTD,07/05/2024,"2,949.88",6541-Nursing EMI,THIRD PARTY PAYMENTS,PRIVATE CONTRACTOR,REVENUE
Walsall Council,http://opendatacommunities.org/id/metropolitan-district-council/walsall ,WC162-711,31.05.24,ADULT SOCIAL CARE,ALPHA HEALTH CARE LTD,07/05/2024,395.70,6541-Residential EMI,THIRD PARTY PAYMENTS,PRIVATE CONTRACTOR,REVENUE
Walsall Council,http://opendatacommunities.org/id/metropolitan-district-council/walsall ,WC162-712,31.05.24,ADULT SOCIAL CARE,ALPHA HEALTH CARE LTD,07/05/2024,"3,049.66",6541-Residential EMI,THIRD PARTY PAYMENTS,PRIVATE CONTRACTOR,REVENUE
Walsall Council,http://opendatacommunities.org/id/metropolitan-district-council/walsall ,WC162-713,31.05.24,ADULT SOCIAL CARE,ALPHA HEALTH CARE LTD,07/05/2024,"2,813.36",6541-Residential EMI,THIRD PARTY PAYMENTS,PRIVATE CONTRACTOR,REVENUE
Walsall Council,http://opendatacommunities.org/id/metropolitan-district-council/walsall ,WC162-714,31.05.24,ADULT SOCIAL CARE,ALPHA HEALTH CARE LTD,07/05/2024,686.68,6541-Residential EMI,THIRD PARTY PAYMENTS,PRIVATE CONTRACTOR,REVENUE
Walsall Council,http://opendatacommunities.org/id/metropolitan-district-council/walsall ,WC162-715,31.05.24,ADULT SOCIAL CARE,ALPHA HEALTH CARE LTD,07/05/2024,"3,340.64",6541-Residential EMI,THIRD PARTY PAYMENTS,PRIVATE CONTRACTOR,REVENUE
Walsall Council,http://opendatacommunities.org/id/metropolitan-district-council/walsall ,WC162-716,31.05.24,ADULT SOCIAL CARE,ALPHA HEALTH CARE LTD,07/05/2024,"2,413.36",6541-Residential EMI,THIRD PARTY PAYMENTS,PRIVATE CONTRACTOR,REVENUE
Walsall Council,http://opendatacommunities.org/id/metropolitan-district-council/walsall ,WC162-717,31.05.24,ADULT SOCIAL CARE,ALPHA HEALTH CARE LTD,07/05/2024,"1,428.00",6541-Nursing EMI,THIRD PARTY PAYMENTS,PRIVATE CONTRACTOR,REVENUE
Walsall Council,http://opendatacommunities.org/id/metropolitan-district-council/walsall ,WC162-718,31.05.24,ADULT SOCIAL CARE,ALPHA HEALTH CARE LTD,07/05/2024,"4,440.00",6541-Nursing EMI,THIRD PARTY PAYMENTS,PRIVATE CONTRACTOR,REVENUE
Walsall Council,http://opendatacommunities.org/id/metropolitan-district-council/walsall ,WC162-719,31.05.24,ADULT SOCIAL CARE,ALPHA HEALTH CARE LTD,07/05/2024,"3,723.08",6541-Nursing EMI,THIRD PARTY PAYMENTS,PRIVATE CONTRACTOR,REVENUE
Walsall Council,http://opendatacommunities.org/id/metropolitan-district-council/walsall ,WC162-720,31.05.24,ADULT SOCIAL CARE,ALPHA HEALTH CARE LTD,07/05/2024,"2,856.00",6541-Nursing,THIRD PARTY PAYMENTS,PRIVATE CONTRACTOR,REVENUE
Walsall Council,http://opendatacommunities.org/id/metropolitan-district-council/walsall ,WC162-721,31.05.24,ADULT SOCIAL CARE,ALPHA HEALTH CARE LTD,07/05/2024,"7,980.00",6541-Residential,THIRD PARTY PAYMENTS,PRIVATE CONTRACTOR,REVENUE
Walsall Council,http://opendatacommunities.org/id/metropolitan-district-council/walsall ,WC162-722,31.05.24,ADULT SOCIAL CARE,ALPHA HEALTH CARE LTD,07/05/2024,"1,289.56",6541-Nursing,THIRD PARTY PAYMENTS,PRIVATE CONTRACTOR,REVENUE
Walsall Council,http://opendatacommunities.org/id/metropolitan-district-council/walsall ,WC162-723,31.05.24,ADULT SOCIAL CARE,ALPHA HEALTH CARE LTD,07/05/2024,"3,090.44",6541-Residential,THIRD PARTY PAYMENTS,PRIVATE CONTRACTOR,REVENUE
Walsall Council,http://opendatacommunities.org/id/metropolitan-district-council/walsall ,WC162-724,31.05.24,ADULT SOCIAL CARE,ALPHA HEALTH CARE LTD,07/05/2024,"-4,459.15",6541-Residential EMI,THIRD PARTY PAYMENTS,PRIVATE CONTRACTOR,REVENUE
Walsall Council,http://opendatacommunities.org/id/metropolitan-district-council/walsall ,WC162-725,31.05.24,ADULT SOCIAL CARE,ALPHA HEALTH CARE LTD,07/05/2024,"4,855.28",6541-Nursing EMI,THIRD PARTY PAYMENTS,PRIVATE CONTRACTOR,REVENUE
Walsall Council,http://opendatacommunities.org/id/metropolitan-district-council/walsall ,WC162-726,31.05.24,ADULT SOCIAL CARE,ALPHA HEALTH CARE LTD,07/05/2024,"7,105.00",6541-Residential,THIRD PARTY PAYMENTS,PRIVATE CONTRACTOR,REVENUE
Walsall Council,http://opendatacommunities.org/id/metropolitan-district-council/walsall ,WC162-727,31.05.24,ADULT SOCIAL CARE,ALPHA HEALTH CARE LTD,07/05/2024,"3,422.28",6541-Residential EMI,THIRD PARTY PAYMENTS,PRIVATE CONTRACTOR,REVENUE
Walsall Council,http://opendatacommunities.org/id/metropolitan-district-council/walsall ,WC162-728,31.05.24,ADULT SOCIAL CARE,ALPHA HEALTH CARE LTD,07/05/2024,"2,936.84",6541-Residential EMI,THIRD PARTY PAYMENTS,PRIVATE CONTRACTOR,REVENUE
Walsall Council,http://opendatacommunities.org/id/metropolitan-district-council/walsall ,WC162-729,31.05.24,ADULT SOCIAL CARE,ALPHA HEALTH CARE LTD,07/05/2024,"7,600.00",6541-Residential,THIRD PARTY PAYMENTS,PRIVATE CONTRACTOR,REVENUE
Walsall Council,http://opendatacommunities.org/id/metropolitan-district-council/walsall ,WC162-730,31.05.24,ADULT SOCIAL CARE,ALPHA HEALTH CARE LTD,07/05/2024,"5,055.28",6541-Nursing EMI,THIRD PARTY PAYMENTS,PRIVATE CONTRACTOR,REVENUE
Walsall Council,http://opendatacommunities.org/id/metropolitan-district-council/walsall ,WC162-731,31.05.24,ADULT SOCIAL CARE,ALPHA HEALTH CARE LTD,07/05/2024,"3,800.00",6541-Residential,THIRD PARTY PAYMENTS,PRIVATE CONTRACTOR,REVENUE
Walsall Council,http://opendatacommunities.org/id/metropolitan-district-council/walsall ,WC162-732,31.05.24,ADULT SOCIAL CARE,ALPHA HEALTH CARE LTD,07/05/2024,"4,600.00",6541-Residential,THIRD PARTY PAYMENTS,PRIVATE CONTRACTOR,REVENUE
Walsall Council,http://opendatacommunities.org/id/metropolitan-district-council/walsall ,WC162-733,31.05.24,ADULT SOCIAL CARE,ALPHA HEALTH CARE LTD,07/05/2024,"7,980.00",6541-Residential,THIRD PARTY PAYMENTS,PRIVATE CONTRACTOR,REVENUE
Walsall Council,http://opendatacommunities.org/id/metropolitan-district-council/walsall ,WC162-734,31.05.24,ADULT SOCIAL CARE,ALPHA HEALTH CARE LTD,07/05/2024,"4,800.00",6541-Nursing EMI,THIRD PARTY PAYMENTS,PRIVATE CONTRACTOR,REVENUE
Walsall Council,http://opendatacommunities.org/id/metropolitan-district-council/walsall ,WC162-735,31.05.24,ADULT SOCIAL CARE,ALPHA HEALTH CARE LTD,07/05/2024,"4,500.00",6541-Residential,THIRD PARTY PAYMENTS,PRIVATE CONTRACTOR,REVENUE
Walsall Council,http://opendatacommunities.org/id/metropolitan-district-council/walsall ,WC162-736,31.05.24,ADULT SOCIAL CARE,ALPHA HEALTH CARE LTD,07/05/2024,"5,000.00",6541-Nursing EMI,THIRD PARTY PAYMENTS,PRIVATE CONTRACTOR,REVENUE
Walsall Council,http://opendatacommunities.org/id/metropolitan-district-council/walsall ,WC162-737,31.05.24,ADULT SOCIAL CARE,ALPHA HEALTH CARE LTD,07/05/2024,"7,600.00",6541-Residential,THIRD PARTY PAYMENTS,PRIVATE CONTRACTOR,REVENUE
Walsall Council,http://opendatacommunities.org/id/metropolitan-district-council/walsall ,WC162-738,31.05.24,ADULT SOCIAL CARE,ALPHA HEALTH CARE LTD,07/05/2024,"8,110.80",6541-Nursing EMI,THIRD PARTY PAYMENTS,PRIVATE CONTRACTOR,REVENUE
Walsall Council,http://opendatacommunities.org/id/metropolitan-district-council/walsall ,WC162-739,31.05.24,ADULT SOCIAL CARE,ALPHA HEALTH CARE LTD,07/05/2024,"7,310.80",6541-Nursing EMI,THIRD PARTY PAYMENTS,PRIVATE CONTRACTOR,REVENUE
Walsall Council,http://opendatacommunities.org/id/metropolitan-district-council/walsall ,WC162-740,31.05.24,ADULT SOCIAL CARE,ALPHA HEALTH CARE LTD,07/05/2024,"3,621.16",6541-Nursing EMI,THIRD PARTY PAYMENTS,PRIVATE CONTRACTOR,REVENUE
Walsall Council,http://opendatacommunities.org/id/metropolitan-district-council/walsall ,WC162-741,31.05.24,ADULT SOCIAL CARE,ALPHA HEALTH CARE LTD,07/05/2024,"2,417.32",6541-Short Stay Residential,THIRD PARTY PAYMENTS,PRIVATE CONTRACTOR,REVENUE
Walsall Council,http://opendatacommunities.org/id/metropolitan-district-council/walsall ,WC162-742,31.05.24,ADULT SOCIAL CARE,ALPHA HEALTH CARE LTD,07/05/2024,"5,712.00",6541-Nursing,THIRD PARTY PAYMENTS,PRIVATE CONTRACTOR,REVENUE
Walsall Council,http://opendatacommunities.org/id/metropolitan-district-council/walsall ,WC162-743,31.05.24,ADULT SOCIAL CARE,ALPHA HEALTH CARE LTD,07/05/2024,"7,695.00",6541-Residential,THIRD PARTY PAYMENTS,PRIVATE CONTRACTOR,REVENUE
Walsall Council,http://opendatacommunities.org/id/metropolitan-district-council/walsall ,WC162-744,31.05.24,ADULT SOCIAL CARE,ALPHA HEALTH CARE LTD,07/05/2024,"7,980.00",6541-Residential,THIRD PARTY PAYMENTS,PRIVATE CONTRACTOR,REVENUE
Walsall Council,http://opendatacommunities.org/id/metropolitan-district-council/walsall ,WC162-745,31.05.24,ADULT SOCIAL CARE,ALPHA HEALTH CARE LTD,07/05/2024,"3,829.36",6541-Residential EMI,THIRD PARTY PAYMENTS,PRIVATE CONTRACTOR,REVENUE
Walsall Council,http://opendatacommunities.org/id/metropolitan-district-council/walsall ,WC162-746,31.05.24,ADULT SOCIAL CARE,ALPHA HEALTH CARE LTD,07/05/2024,"7,600.00",6541-Residential,THIRD PARTY PAYMENTS,PRIVATE CONTRACTOR,REVENUE
Walsall Council,http://opendatacommunities.org/id/metropolitan-district-council/walsall ,WC162-747,31.05.24,ADULT SOCIAL CARE,ALPHA HEALTH CARE LTD,07/05/2024,"3,721.16",6541-Nursing EMI,THIRD PARTY PAYMENTS,PRIVATE CONTRACTOR,REVENUE
Walsall Council,http://opendatacommunities.org/id/metropolitan-district-council/walsall ,WC162-748,31.05.24,ADULT SOCIAL CARE,ALPHA HEALTH CARE LTD,07/05/2024,"3,800.00",6541-Residential,THIRD PARTY PAYMENTS,PRIVATE CONTRACTOR,REVENUE
Walsall Council,http://opendatacommunities.org/id/metropolitan-district-council/walsall ,WC162-749,31.05.24,ADULT SOCIAL CARE,ALPHA HEALTH CARE LTD,07/05/2024,"4,200.00",6541-Nursing EMI,THIRD PARTY PAYMENTS,PRIVATE CONTRACTOR,REVENUE
Walsall Council,http://opendatacommunities.org/id/metropolitan-district-council/walsall ,WC162-750,31.05.24,ADULT SOCIAL CARE,ALPHA HEALTH CARE LTD,07/05/2024,"7,123.08",6541-Residential,THIRD PARTY PAYMENTS,PRIVATE CONTRACTOR,REVENUE
Walsall Council,http://opendatacommunities.org/id/metropolitan-district-council/walsall ,WC162-751,31.05.24,ADULT SOCIAL CARE,ALPHA HEALTH CARE LTD,07/05/2024,"7,600.00",6541-Residential,THIRD PARTY PAYMENTS,PRIVATE CONTRACTOR,REVENUE
Walsall Council,http://opendatacommunities.org/id/metropolitan-district-council/walsall ,WC162-752,31.05.24,ADULT SOCIAL CARE,ALPHA HEALTH CARE LTD,07/05/2024,"8,146.77",6541-Residential EMI,THIRD PARTY PAYMENTS,PRIVATE CONTRACTOR,REVENUE
Walsall Council,http://opendatacommunities.org/id/metropolitan-district-council/walsall ,WC162-753,31.05.24,ADULT SOCIAL CARE,ALPHA HEALTH CARE LTD,29/05/2024,"18,257.14",6541-Nursing EMI,THIRD PARTY PAYMENTS,PRIVATE CONTRACTOR,REVENUE
Walsall Council,http://opendatacommunities.org/id/metropolitan-district-council/walsall ,WC162-754,31.05.24,ADULT SOCIAL CARE,ALPHA HEALTH CARE LTD,29/05/2024,"1,224.00",6541-Nursing EMI,THIRD PARTY PAYMENTS,PRIVATE CONTRACTOR,REVENUE
Walsall Council,http://opendatacommunities.org/id/metropolitan-district-council/walsall ,WC162-755,31.05.24,ADULT SOCIAL CARE,ALPHA HEALTH CARE LTD,29/05/2024,"5,000.00",6541-Nursing EMI,THIRD PARTY PAYMENTS,PRIVATE CONTRACTOR,REVENUE
Walsall Council,http://opendatacommunities.org/id/metropolitan-district-council/walsall ,WC162-756,31.05.24,CHILDRENS,ALPHA TRAINING ACADEMY UK LTD,07/05/2024,"3,230.00",1187-Materials,SUPPLIES & SERVICES,EQUIPMENT FURNITURE & MATERIALS,REVENUE
Walsall Council,http://opendatacommunities.org/id/metropolitan-district-council/walsall ,WC162-757,31.05.24,ADULT SOCIAL CARE,REDACTED,01/05/2024,787.22,6541-Direct Payment,THIRD PARTY PAYMENTS,PRIVATE CONTRACTOR,REVENUE
Walsall Council,http://opendatacommunities.org/id/metropolitan-district-council/walsall ,WC162-758,31.05.24,ADULT SOCIAL CARE,REDACTED,01/05/2024,"1,416.84",6541-Shared Lives,THIRD PARTY PAYMENTS,PRIVATE CONTRACTOR,REVENUE
Walsall Council,http://opendatacommunities.org/id/metropolitan-district-council/walsall ,WC162-759,31.05.24,ADULT SOCIAL CARE,REDACTED,16/05/2024,745.92,6541-Shared Lives,THIRD PARTY PAYMENTS,PRIVATE CONTRACTOR,REVENUE
Walsall Council,http://opendatacommunities.org/id/metropolitan-district-council/walsall ,WC162-760,31.05.24,CHILDRENS,LITTLE BLOSSOMS CHILDMINDING,30/05/2024,"1,755.00",6223-Creche Facilities,SUPPLIES & SERVICES,SERVICES,REVENUE
Walsall Council,http://opendatacommunities.org/id/metropolitan-district-council/walsall ,WC162-761,31.05.24,CHILDRENS,AMANS TRAVEL LTD,21/05/2024,"3,105.00",6241-Hire of Vehicle with Driver,TRANSPORT,DIRECT TRANSPORT COSTS,REVENUE
Walsall Council,http://opendatacommunities.org/id/metropolitan-district-council/walsall ,WC162-762,31.05.24,CHILDRENS,AMANS TRAVEL LTD,21/05/2024,"7,000.00",6241-Hire of Vehicle with Driver,TRANSPORT,DIRECT TRANSPORT COSTS,REVENUE
Walsall Council,http://opendatacommunities.org/id/metropolitan-district-council/walsall ,WC162-763,31.05.24,CHILDRENS,AMANS TRAVEL LTD,21/05/2024,"4,370.00",6241-Hire of Vehicle with Driver,TRANSPORT,DIRECT TRANSPORT COSTS,REVENUE
Walsall Council,http://opendatacommunities.org/id/metropolitan-district-council/walsall ,WC162-764,31.05.24,CHILDRENS,AMANS TRAVEL LTD,21/05/2024,"4,370.00",6241-Hire of Vehicle with Driver,TRANSPORT,DIRECT TRANSPORT COSTS,REVENUE
Walsall Council,http://opendatacommunities.org/id/metropolitan-district-council/walsall ,WC162-765,31.05.24,CHILDRENS,AMANS TRAVEL LTD,21/05/2024,"4,770.00",6241-Hire of Vehicle with Driver,TRANSPORT,DIRECT TRANSPORT COSTS,REVENUE
Walsall Council,http://opendatacommunities.org/id/metropolitan-district-council/walsall ,WC162-766,31.05.24,ADULT SOCIAL CARE,REDACTED,01/05/2024,"4,174.62",6541-Direct Payment,THIRD PARTY PAYMENTS,PRIVATE CONTRACTOR,REVENUE
Walsall Council,http://opendatacommunities.org/id/metropolitan-district-council/walsall ,WC162-767,31.05.24,ECONOMY & ENVIRONMENT CAPITAL,AMEY LG LIMITED,01/05/2024,"18,475.01",7200-Site Works Contractors,CAPITAL,"NEW CONSTRUCTION,CONVERSION & RENOVATION",CAPITAL
Walsall Council,http://opendatacommunities.org/id/metropolitan-district-council/walsall ,WC162-768,31.05.24,"ECONOMY, ENVIRONMENT & COMMUNITIES",AMEY LG LIMITED,08/05/2024,968.01,6310-Professional Services-Priv Contractor & Other Agencies,THIRD PARTY PAYMENTS,PRIVATE CONTRACTOR,REVENUE
Walsall Council,http://opendatacommunities.org/id/metropolitan-district-council/walsall ,WC162-769,31.05.24,ECONOMY & ENVIRONMENT CAPITAL,AMEY LG LIMITED,13/05/2024,"14,061.70",7200-Site Works Contractors,CAPITAL,"NEW CONSTRUCTION,CONVERSION & RENOVATION",CAPITAL
Walsall Council,http://opendatacommunities.org/id/metropolitan-district-council/walsall ,WC162-770,31.05.24,"ECONOMY, ENVIRONMENT & COMMUNITIES",AMEY LG LIMITED,29/05/2024,"18,380.40",6411-Repair & Maintenance of Furniture & Equipment,SUPPLIES & SERVICES,EQUIPMENT FURNITURE & MATERIALS,REVENUE
Walsall Council,http://opendatacommunities.org/id/metropolitan-district-council/walsall ,WC162-771,31.05.24,ECONOMY & ENVIRONMENT CAPITAL,AMEY LG LIMITED,29/05/2024,"18,322.79",7200-Site Works Contractors,CAPITAL,"NEW CONSTRUCTION,CONVERSION & RENOVATION",CAPITAL
Walsall Council,http://opendatacommunities.org/id/metropolitan-district-council/walsall ,WC162-772,31.05.24,ECONOMY & ENVIRONMENT CAPITAL,AMEY OW LTD,15/05/2024,"18,785.86",7200-Site Works Contractors,CAPITAL,"NEW CONSTRUCTION,CONVERSION & RENOVATION",CAPITAL
Walsall Council,http://opendatacommunities.org/id/metropolitan-district-council/walsall ,WC162-773,31.05.24,CHILDRENS,AMG NURSING CARE SERVICES,07/05/2024,535.30,6220-Professional Fees & Services,SUPPLIES & SERVICES,SERVICES,REVENUE
Walsall Council,http://opendatacommunities.org/id/metropolitan-district-council/walsall ,WC162-774,31.05.24,CHILDRENS,AMG NURSING CARE SERVICES,07/05/2024,"1,337.81",6220-Professional Fees & Services,SUPPLIES & SERVICES,SERVICES,REVENUE
Walsall Council,http://opendatacommunities.org/id/metropolitan-district-council/walsall ,WC162-775,31.05.24,CHILDRENS,AMG NURSING CARE SERVICES,07/05/2024,598.46,6220-Professional Fees & Services,SUPPLIES & SERVICES,SERVICES,REVENUE
Walsall Council,http://opendatacommunities.org/id/metropolitan-district-council/walsall ,WC162-776,31.05.24,CHILDRENS,AMG NURSING CARE SERVICES,17/05/2024,428.24,6220-Professional Fees & Services,SUPPLIES & SERVICES,SERVICES,REVENUE
Walsall Council,http://opendatacommunities.org/id/metropolitan-district-council/walsall ,WC162-777,31.05.24,CHILDRENS,AMG NURSING CARE SERVICES,17/05/2024,633.07,6220-Professional Fees & Services,SUPPLIES & SERVICES,SERVICES,REVENUE
Walsall Council,http://opendatacommunities.org/id/metropolitan-district-council/walsall ,WC162-778,31.05.24,CHILDRENS,AMG NURSING CARE SERVICES,17/05/2024,574.52,6220-Professional Fees & Services,SUPPLIES & SERVICES,SERVICES,REVENUE
Walsall Council,http://opendatacommunities.org/id/metropolitan-district-council/walsall ,WC162-779,31.05.24,CHILDRENS,AMG NURSING CARE SERVICES,17/05/2024,602.80,6220-Professional Fees & Services,SUPPLIES & SERVICES,SERVICES,REVENUE
Walsall Council,http://opendatacommunities.org/id/metropolitan-district-council/walsall ,WC162-780,31.05.24,CHILDRENS,AMG NURSING CARE SERVICES,17/05/2024,517.99,6220-Professional Fees & Services,SUPPLIES & SERVICES,SERVICES,REVENUE
Walsall Council,http://opendatacommunities.org/id/metropolitan-district-council/walsall ,WC162-781,31.05.24,CHILDRENS,AMG NURSING CARE SERVICES,17/05/2024,683.16,6220-Professional Fees & Services,SUPPLIES & SERVICES,SERVICES,REVENUE
Walsall Council,http://opendatacommunities.org/id/metropolitan-district-council/walsall ,WC162-782,31.05.24,CHILDRENS,AMG NURSING CARE SERVICES,30/05/2024,535.30,6220-Professional Fees & Services,SUPPLIES & SERVICES,SERVICES,REVENUE
Walsall Council,http://opendatacommunities.org/id/metropolitan-district-council/walsall ,WC162-783,31.05.24,CHILDRENS,AMG NURSING CARE SERVICES,30/05/2024,458.43,6220-Professional Fees & Services,SUPPLIES & SERVICES,SERVICES,REVENUE
Walsall Council,http://opendatacommunities.org/id/metropolitan-district-council/walsall ,WC162-784,31.05.24,CHILDRENS,AMG NURSING CARE SERVICES,30/05/2024,521.86,6220-Professional Fees & Services,SUPPLIES & SERVICES,SERVICES,REVENUE
Walsall Council,http://opendatacommunities.org/id/metropolitan-district-council/walsall ,WC162-785,31.05.24,CHILDRENS,AMMA CHILDCARE SERVICES LTD,14/05/2024,"24,760.00",6223-External Residential Care-Oth Agency Provision,THIRD PARTY PAYMENTS,PRIVATE CONTRACTOR,REVENUE
Walsall Council,http://opendatacommunities.org/id/metropolitan-district-council/walsall ,WC162-786,31.05.24,"ECONOMY, ENVIRONMENT & COMMUNITIES",AMRITA JHAVERI LIMITED,03/05/2024,"3,000.00",6414-Events & Visual Arts,SUPPLIES & SERVICES,SERVICES,REVENUE
Walsall Council,http://opendatacommunities.org/id/metropolitan-district-council/walsall ,WC162-787,31.05.24,CHILDRENS,REDACTED,01/05/2024,700.00,6223-Special Guardianship Orders,TRANSFER PAYMENTS,CHILDREN SOCIAL SERVICES CLIENT,REVENUE
Walsall Council,http://opendatacommunities.org/id/metropolitan-district-council/walsall ,WC162-788,31.05.24,CHILDRENS,REDACTED,01/05/2024,374.00,6223-Special Guardianship Orders,TRANSFER PAYMENTS,CHILDREN SOCIAL SERVICES CLIENT,REVENUE
Walsall Council,http://opendatacommunities.org/id/metropolitan-district-council/walsall ,WC162-789,31.05.24,CHILDRENS,REDACTED,30/05/2024,826.00,6223-Special Guardianship Orders,TRANSFER PAYMENTS,CHILDREN SOCIAL SERVICES CLIENT,REVENUE
Walsall Council,http://opendatacommunities.org/id/metropolitan-district-council/walsall ,WC162-790,31.05.24,CHILDRENS,REDACTED,30/05/2024,374.00,6223-Special Guardianship Orders,TRANSFER PAYMENTS,CHILDREN SOCIAL SERVICES CLIENT,REVENUE
Walsall Council,http://opendatacommunities.org/id/metropolitan-district-council/walsall ,WC162-791,31.05.24,ADULT SOCIAL CARE,ANCHOR HANOVER GROUP - AUGUSTA COURT,07/05/2024,"15,773.89",6541-Residential EMI,THIRD PARTY PAYMENTS,PRIVATE CONTRACTOR,REVENUE
Walsall Council,http://opendatacommunities.org/id/metropolitan-district-council/walsall ,WC162-792,31.05.24,ADULT SOCIAL CARE,ANCHOR HANOVER GROUP - BLOOMFIELD COURT,07/05/2024,"2,773.36",6541-Residential EMI,THIRD PARTY PAYMENTS,PRIVATE CONTRACTOR,REVENUE
Walsall Council,http://opendatacommunities.org/id/metropolitan-district-council/walsall ,WC162-793,31.05.24,ADULT SOCIAL CARE,ANCHOR HANOVER GROUP - HARDEN HALL CARE HOME,07/05/2024,"2,533.66",6541-Residential EMI,THIRD PARTY PAYMENTS,PRIVATE CONTRACTOR,REVENUE
Walsall Council,http://opendatacommunities.org/id/metropolitan-district-council/walsall ,WC162-794,31.05.24,ADULT SOCIAL CARE,ANCHOR HANOVER GROUP - HARDEN HALL CARE HOME,07/05/2024,"2,533.66",6541-Residential EMI,THIRD PARTY PAYMENTS,PRIVATE CONTRACTOR,REVENUE
Walsall Council,http://opendatacommunities.org/id/metropolitan-district-council/walsall ,WC162-795,31.05.24,ADULT SOCIAL CARE,ANCHOR HANOVER GROUP - HARDEN HALL CARE HOME,07/05/2024,"2,773.36",6541-Residential EMI,THIRD PARTY PAYMENTS,PRIVATE CONTRACTOR,REVENUE
Walsall Council,http://opendatacommunities.org/id/metropolitan-district-council/walsall ,WC162-796,31.05.24,ADULT SOCIAL CARE,ANCHOR HANOVER GROUP - HARDEN HALL CARE HOME,07/05/2024,"2,244.50",6541-Residential,THIRD PARTY PAYMENTS,PRIVATE CONTRACTOR,REVENUE
Walsall Council,http://opendatacommunities.org/id/metropolitan-district-council/walsall ,WC162-797,31.05.24,ADULT SOCIAL CARE,ANCHOR HANOVER GROUP - HARDEN HALL CARE HOME,07/05/2024,"2,533.66",6541-Residential EMI,THIRD PARTY PAYMENTS,PRIVATE CONTRACTOR,REVENUE
Walsall Council,http://opendatacommunities.org/id/metropolitan-district-council/walsall ,WC162-798,31.05.24,ADULT SOCIAL CARE,ANCHOR HANOVER GROUP - HARDEN HALL CARE HOME,07/05/2024,"2,533.66",6541-Residential EMI,THIRD PARTY PAYMENTS,PRIVATE CONTRACTOR,REVENUE
Walsall Council,http://opendatacommunities.org/id/metropolitan-district-council/walsall ,WC162-799,31.05.24,ADULT SOCIAL CARE,ANCHOR HANOVER GROUP - HARDEN HALL CARE HOME,07/05/2024,"1,206.68",6541-Residential EMI,THIRD PARTY PAYMENTS,PRIVATE CONTRACTOR,REVENUE
Walsall Council,http://opendatacommunities.org/id/metropolitan-district-council/walsall ,WC162-800,31.05.24,ADULT SOCIAL CARE,ANCHOR HANOVER GROUP - HARDEN HALL CARE HOME,07/05/2024,"2,773.36",6541-Residential EMI,THIRD PARTY PAYMENTS,PRIVATE CONTRACTOR,REVENUE
Walsall Council,http://opendatacommunities.org/id/metropolitan-district-council/walsall ,WC162-801,31.05.24,ADULT SOCIAL CARE,ANCHOR HANOVER GROUP - HARDEN HALL CARE HOME,07/05/2024,"2,773.36",6541-Residential EMI,THIRD PARTY PAYMENTS,PRIVATE CONTRACTOR,REVENUE
Walsall Council,http://opendatacommunities.org/id/metropolitan-district-council/walsall ,WC162-802,31.05.24,ADULT SOCIAL CARE,ANCHOR HANOVER GROUP - HARDEN HALL CARE HOME,07/05/2024,"2,773.36",6541-Residential EMI,THIRD PARTY PAYMENTS,PRIVATE CONTRACTOR,REVENUE
Walsall Council,http://opendatacommunities.org/id/metropolitan-district-council/walsall ,WC162-803,31.05.24,ADULT SOCIAL CARE,ANCHOR HANOVER GROUP - HARDEN HALL CARE HOME,07/05/2024,"2,533.66",6541-Residential EMI,THIRD PARTY PAYMENTS,PRIVATE CONTRACTOR,REVENUE
Walsall Council,http://opendatacommunities.org/id/metropolitan-district-council/walsall ,WC162-804,31.05.24,ADULT SOCIAL CARE,ANCHOR HANOVER GROUP - HARDEN HALL CARE HOME,07/05/2024,"2,533.66",6541-Residential EMI,THIRD PARTY PAYMENTS,PRIVATE CONTRACTOR,REVENUE
Walsall Council,http://opendatacommunities.org/id/metropolitan-district-council/walsall ,WC162-805,31.05.24,ADULT SOCIAL CARE,ANCHOR HANOVER GROUP - HARDEN HALL CARE HOME,07/05/2024,"2,244.50",6541-Residential,THIRD PARTY PAYMENTS,PRIVATE CONTRACTOR,REVENUE
Walsall Council,http://opendatacommunities.org/id/metropolitan-district-council/walsall ,WC162-806,31.05.24,ADULT SOCIAL CARE,ANCHOR HANOVER GROUP - HARDEN HALL CARE HOME,07/05/2024,"2,773.36",6541-Residential EMI,THIRD PARTY PAYMENTS,PRIVATE CONTRACTOR,REVENUE
Walsall Council,http://opendatacommunities.org/id/metropolitan-district-council/walsall ,WC162-807,31.05.24,ADULT SOCIAL CARE,ANCHOR HANOVER GROUP - HARDEN HALL CARE HOME,07/05/2024,"2,773.36",6541-Residential EMI,THIRD PARTY PAYMENTS,PRIVATE CONTRACTOR,REVENUE
Walsall Council,http://opendatacommunities.org/id/metropolitan-district-council/walsall ,WC162-808,31.05.24,ADULT SOCIAL CARE,ANCHOR HANOVER GROUP - HARDEN HALL CARE HOME,07/05/2024,"2,773.36",6541-Residential EMI,THIRD PARTY PAYMENTS,PRIVATE CONTRACTOR,REVENUE
Walsall Council,http://opendatacommunities.org/id/metropolitan-district-council/walsall ,WC162-809,31.05.24,ADULT SOCIAL CARE,ANCHOR HANOVER GROUP - HARDEN HALL CARE HOME,07/05/2024,"2,633.66",6541-Residential EMI,THIRD PARTY PAYMENTS,PRIVATE CONTRACTOR,REVENUE
Walsall Council,http://opendatacommunities.org/id/metropolitan-district-council/walsall ,WC162-810,31.05.24,ADULT SOCIAL CARE,ANCHOR HANOVER GROUP - HARDEN HALL CARE HOME,07/05/2024,"2,773.36",6541-Residential EMI,THIRD PARTY PAYMENTS,PRIVATE CONTRACTOR,REVENUE
Walsall Council,http://opendatacommunities.org/id/metropolitan-district-council/walsall ,WC162-811,31.05.24,ADULT SOCIAL CARE,ANCHOR HANOVER GROUP - HARDEN HALL CARE HOME,07/05/2024,"2,773.36",6541-Residential EMI,THIRD PARTY PAYMENTS,PRIVATE CONTRACTOR,REVENUE
